Body Name,Date Paid,Transaction Number,Amount,Supplier Name,Supplier Type,Expense Area,Cost Centre Description,Expense Type
Cambridgeshire County Council,13-Jul-22,51301803325,"-305,021.02",TOTALENERGIES GAS AND POWER LTD,TRADE SUPPLIER,Street Lighting,Street Lighting Energy,Street Light Energy
Cambridgeshire County Council,13-Jul-22,51301802550,"-292,320.81",TOTALENERGIES GAS AND POWER LTD,TRADE SUPPLIER,Street Lighting,Street Lighting Energy,Street Light Energy
Cambridgeshire County Council,13-Jul-22,51301805337,"-274,171.92",TOTALENERGIES GAS AND POWER LTD,TRADE SUPPLIER,Street Lighting,Street Lighting Energy,Street Light Energy
Cambridgeshire County Council,13-Jul-22,51301803570,"-271,388.80",TOTALENERGIES GAS AND POWER LTD,TRADE SUPPLIER,Street Lighting,Street Lighting Energy,Street Light Energy
Cambridgeshire County Council,13-Jul-22,51301803561,"-241,770.16",TOTALENERGIES GAS AND POWER LTD,TRADE SUPPLIER,Street Lighting,Street Lighting Energy,Street Light Energy
Cambridgeshire County Council,13-Jul-22,51301806288,"-236,646.17",TOTALENERGIES GAS AND POWER LTD,TRADE SUPPLIER,Street Lighting,Street Lighting Energy,Street Light Energy
Cambridgeshire County Council,13-Jul-22,51301802224,"-232,944.47",TOTALENERGIES GAS AND POWER LTD,TRADE SUPPLIER,Street Lighting,Street Lighting Energy,Street Light Energy
Cambridgeshire County Council,13-Jul-22,51301805272,"-218,685.55",TOTALENERGIES GAS AND POWER LTD,TRADE SUPPLIER,Street Lighting,Street Lighting Energy,Street Light Energy
Cambridgeshire County Council,13-Jul-22,51301806257,"-210,915.28",TOTALENERGIES GAS AND POWER LTD,TRADE SUPPLIER,Street Lighting,Street Lighting Energy,Street Light Energy
Cambridgeshire County Council,13-Jul-22,51301805502,"-208,934.14",TOTALENERGIES GAS AND POWER LTD,TRADE SUPPLIER,Street Lighting,Street Lighting Energy,Street Light Energy
Cambridgeshire County Council,13-Jul-22,51301805583,"-194,897.99",TOTALENERGIES GAS AND POWER LTD,TRADE SUPPLIER,Street Lighting,Street Lighting Energy,Street Light Energy
Cambridgeshire County Council,13-Jul-22,51301803367,"-174,073.38",TOTALENERGIES GAS AND POWER LTD,TRADE SUPPLIER,Street Lighting,Street Lighting Energy,Street Light Energy
Cambridgeshire County Council,13-Jul-22,51301807310,"-153,443.19",TOTALENERGIES GAS AND POWER LTD,TRADE SUPPLIER,Street Lighting,Street Lighting Energy,Street Light Energy
Cambridgeshire County Council,13-Jul-22,51301804631,"-141,725.46",TOTALENERGIES GAS AND POWER LTD,TRADE SUPPLIER,Street Lighting,Street Lighting Energy,Street Light Energy
Cambridgeshire County Council,13-Jul-22,51301805889,"-123,952.12",TOTALENERGIES GAS AND POWER LTD,TRADE SUPPLIER,Street Lighting,Street Lighting Energy,Street Light Energy
Cambridgeshire County Council,13-Jul-22,51301806215,"-123,775.10",TOTALENERGIES GAS AND POWER LTD,TRADE SUPPLIER,Street Lighting,Street Lighting Energy,Street Light Energy
Cambridgeshire County Council,13-Jul-22,51301804952,"-114,521.37",TOTALENERGIES GAS AND POWER LTD,TRADE SUPPLIER,Street Lighting,Street Lighting Energy,Street Light Energy
Cambridgeshire County Council,13-Jul-22,51301806522,"-108,766.41",TOTALENERGIES GAS AND POWER LTD,TRADE SUPPLIER,Street Lighting,Street Lighting Energy,Street Light Energy
Cambridgeshire County Council,13-Jul-22,51301806206,"-101,649.77",TOTALENERGIES GAS AND POWER LTD,TRADE SUPPLIER,Street Lighting,Street Lighting Energy,Street Light Energy
Cambridgeshire County Council,13-Jul-22,51301806293,"-98,958.11",TOTALENERGIES GAS AND POWER LTD,TRADE SUPPLIER,Street Lighting,Street Lighting Energy,Street Light Energy
Cambridgeshire County Council,13-Jul-22,51301806504,"-93,008.89",TOTALENERGIES GAS AND POWER LTD,TRADE SUPPLIER,Street Lighting,Street Lighting Energy,Street Light Energy
Cambridgeshire County Council,08-Jul-22,51301814494,"-61,995.94",THE EDMUND TRUST,CARE ESTABLISHMENT,LD - South Locality - Cost of Care,LD - South Cambs - Care,Rehabilitation And Respite Care
Cambridgeshire County Council,11-Jul-22,51301818141,"-57,857.10",Key Living Project,CARE ESTABLISHMENT,LAC Placements,Placements - residential homes,Agency Placements - Out of  County
Cambridgeshire County Council,13-Jul-22,51301818631,"-51,350.06",AURORA MELDRETH & ORCHARD MANOR,EDUCATION,LAC Placements,Placements - residential schools,Agency Placements - In County
Cambridgeshire County Council,13-Jul-22,51301818633,"-50,233.76",AURORA MELDRETH & ORCHARD MANOR,EDUCATION,LAC Placements,Placements - residential schools,Agency Placements - In County
Cambridgeshire County Council,14-Jul-22,51301807955,"-16,800.00",WDM LTD,TRADE SUPPLIER,Asset Planning,Asset Planning,Computer software - purchase
Cambridgeshire County Council,13-Jul-22,51301818629,"-16,744.59",AURORA MELDRETH & ORCHARD MANOR,EDUCATION,LAC Placements,Placements - residential schools,Agency Placements - In County
Cambridgeshire County Council,11-Jul-22,51301818163,"-15,800.00",Keys PCE Ltd,CARE ESTABLISHMENT,LAC Placements,Placements - residential homes,Agency Placements - Out of  County
Cambridgeshire County Council,11-Jul-22,51301818169,"-15,800.00",Keys PCE Ltd,CARE ESTABLISHMENT,LAC Placements,Placements - residential homes,Agency Placements - Out of  County
Cambridgeshire County Council,11-Jul-22,51301818154,"-15,800.00",Keys PCE Ltd,CARE ESTABLISHMENT,LAC Placements,Placements - residential homes,Agency Placements - In County
Cambridgeshire County Council,11-Jul-22,51301818172,"-15,800.00",Keys PCE Ltd,CARE ESTABLISHMENT,LAC Placements,Placements - residential homes,Agency Placements - Out of  County
Cambridgeshire County Council,11-Jul-22,51301818157,"-15,800.00",Keys PCE Ltd,CARE ESTABLISHMENT,LAC Placements,Placements - residential homes,Agency Placements - In County
Cambridgeshire County Council,11-Jul-22,51301818160,"-15,800.00",Keys PCE Ltd,CARE ESTABLISHMENT,LAC Placements,Placements - residential homes,Agency Placements - In County
Cambridgeshire County Council,11-Jul-22,51301818166,"-15,800.00",Keys PCE Ltd,CARE ESTABLISHMENT,LAC Placements,Placements - residential disability,Agency Placements - Out of  County
Cambridgeshire County Council,20-Jul-22,51301736159,"-15,065.00",NORFOLK COUNTY COUNCIL,OTHER PUBLIC BODIES,Opportunity Area,Opportunity Area,Payments to Other Local Authorities
Cambridgeshire County Council,15-Jul-22,51301819202,"-12,428.57",BREAK,CHARITY,LAC Placements,Placements - residential homes,Agency Placements - In County
Cambridgeshire County Council,08-Jul-22,51301816354,"-12,420.00",ST GEORGE'S COURT,CARE ESTABLISHMENT,OPPD - Cost of Care - City South Blocks,City and South - Long term blocks,Nursing Care
Cambridgeshire County Council,20-Jul-22,51301753180,"-12,409.50",HEATHLANDS SCHOOL,EDUCATION,Recoupment,Procurement - Out-County Special Schools & ER,Independent School Placements
Cambridgeshire County Council,28-Jul-22,51301824748,"-9,101.68",RNID,CARE ESTABLISHMENT,OPPD - Cost of Care - City South - Over 65,Older People - City & South - Care,Residential Care
Cambridgeshire County Council,08-Jul-22,51301816345,"-6,645.22",RADIS COMMUNITY CARE,CARE ESTABLISHMENT,OPPD - Cost of Care - Fenland - Over 65,Older People - Fenland - Care,Supported Living
Cambridgeshire County Council,08-Jul-22,51301816345,"-6,645.22",RADIS COMMUNITY CARE,CARE ESTABLISHMENT,OPPD - Cost of Care - Fenland - Over 65,Older People - Fenland - Care,Supported Living
Cambridgeshire County Council,08-Jul-22,51301816345,"-6,645.22",RADIS COMMUNITY CARE,CARE ESTABLISHMENT,OPPD - Cost of Care - Fenland - Over 65,Older People - Fenland - Care,Supported Living
Cambridgeshire County Council,08-Jul-22,51301816345,"-6,645.22",RADIS COMMUNITY CARE,CARE ESTABLISHMENT,OPPD - Cost of Care - Fenland - Over 65,Older People - Fenland - Care,Supported Living
Cambridgeshire County Council,08-Jul-22,51301816345,"-6,645.22",RADIS COMMUNITY CARE,CARE ESTABLISHMENT,OPPD - Cost of Care - Fenland - Over 65,Older People - Fenland - Care,Supported Living
Cambridgeshire County Council,08-Jul-22,51301816345,"-6,645.22",RADIS COMMUNITY CARE,CARE ESTABLISHMENT,OPPD - Cost of Care - Fenland - Over 65,Older People - Fenland - Care,Supported Living
Cambridgeshire County Council,08-Jul-22,51301816345,"-6,645.22",RADIS COMMUNITY CARE,CARE ESTABLISHMENT,OPPD - Cost of Care - Fenland - Over 65,Older People - Fenland - Care,Supported Living
Cambridgeshire County Council,08-Jul-22,51301816345,"-6,645.22",RADIS COMMUNITY CARE,CARE ESTABLISHMENT,OPPD - Cost of Care - Fenland - Over 65,Older People - Fenland - Care,Supported Living
Cambridgeshire County Council,08-Jul-22,51301816345,"-6,645.22",RADIS COMMUNITY CARE,CARE ESTABLISHMENT,OPPD - Cost of Care - Fenland - Over 65,Older People - Fenland - Care,Supported Living
Cambridgeshire County Council,08-Jul-22,51301816345,"-6,645.22",RADIS COMMUNITY CARE,CARE ESTABLISHMENT,OPPD - Cost of Care - Fenland - Over 65,Older People - Fenland - Care,Supported Living
Cambridgeshire County Council,08-Jul-22,51301816345,"-6,645.22",RADIS COMMUNITY CARE,CARE ESTABLISHMENT,OPPD - Cost of Care - Fenland - Over 65,Older People - Fenland - Care,Supported Living
Cambridgeshire County Council,08-Jul-22,51301816345,"-6,645.22",RADIS COMMUNITY CARE,CARE ESTABLISHMENT,OPPD - Cost of Care - Fenland - Over 65,Older People - Fenland - Care,Supported Living
Cambridgeshire County Council,08-Jul-22,51301816345,"-6,645.22",RADIS COMMUNITY CARE,CARE ESTABLISHMENT,OPPD - Cost of Care - Fenland - Over 65,Older People - Fenland - Care,Supported Living
Cambridgeshire County Council,08-Jul-22,51301816345,"-6,645.22",RADIS COMMUNITY CARE,CARE ESTABLISHMENT,OPPD - Cost of Care - Fenland - Over 65,Older People - Fenland - Care,Supported Living
Cambridgeshire County Council,08-Jul-22,51301816345,"-6,645.22",RADIS COMMUNITY CARE,CARE ESTABLISHMENT,OPPD - Cost of Care - Fenland - Over 65,Older People - Fenland - Care,Supported Living
Cambridgeshire County Council,08-Jul-22,51301816345,"-6,645.22",RADIS COMMUNITY CARE,CARE ESTABLISHMENT,OPPD - Cost of Care - Fenland - Over 65,Older People - Fenland - Care,Supported Living
Cambridgeshire County Council,08-Jul-22,51301816345,"-6,645.22",RADIS COMMUNITY CARE,CARE ESTABLISHMENT,OPPD - Cost of Care - Fenland - Over 65,Older People - Fenland - Care,Supported Living
Cambridgeshire County Council,08-Jul-22,51301816345,"-6,645.22",RADIS COMMUNITY CARE,CARE ESTABLISHMENT,OPPD - Cost of Care - Fenland - Over 65,Older People - Fenland - Care,Supported Living
Cambridgeshire County Council,08-Jul-22,51301816345,"-6,645.22",RADIS COMMUNITY CARE,CARE ESTABLISHMENT,OPPD - Cost of Care - Fenland - Over 65,Older People - Fenland - Care,Supported Living
Cambridgeshire County Council,08-Jul-22,51301816345,"-6,645.22",RADIS COMMUNITY CARE,CARE ESTABLISHMENT,OPPD - Cost of Care - Fenland - Over 65,Older People - Fenland - Care,Supported Living
Cambridgeshire County Council,08-Jul-22,51301816345,"-6,645.22",RADIS COMMUNITY CARE,CARE ESTABLISHMENT,OPPD - Cost of Care - Fenland - Over 65,Older People - Fenland - Care,Supported Living
Cambridgeshire County Council,08-Jul-22,51301816345,"-6,645.22",RADIS COMMUNITY CARE,CARE ESTABLISHMENT,OPPD - Cost of Care - Fenland - Over 65,Older People - Fenland - Care,Supported Living
Cambridgeshire County Council,08-Jul-22,51301816345,"-6,645.22",RADIS COMMUNITY CARE,CARE ESTABLISHMENT,OPPD - Cost of Care - Fenland - Over 65,Older People - Fenland - Care,Supported Living
Cambridgeshire County Council,08-Jul-22,51301816345,"-6,645.22",RADIS COMMUNITY CARE,CARE ESTABLISHMENT,OPPD - Cost of Care - Fenland - Over 65,Older People - Fenland - Care,Supported Living
Cambridgeshire County Council,08-Jul-22,51301816345,"-6,645.22",RADIS COMMUNITY CARE,CARE ESTABLISHMENT,OPPD - Cost of Care - Fenland - Over 65,Older People - Fenland - Care,Supported Living
Cambridgeshire County Council,08-Jul-22,51301816345,"-6,645.22",RADIS COMMUNITY CARE,CARE ESTABLISHMENT,OPPD - Cost of Care - Fenland - Over 65,Older People - Fenland - Care,Supported Living
Cambridgeshire County Council,08-Jul-22,51301816345,"-6,645.22",RADIS COMMUNITY CARE,CARE ESTABLISHMENT,OPPD - Cost of Care - Fenland - Over 65,Older People - Fenland - Care,Supported Living
Cambridgeshire County Council,08-Jul-22,51301816345,"-6,645.22",RADIS COMMUNITY CARE,CARE ESTABLISHMENT,OPPD - Cost of Care - Fenland - Over 65,Older People - Fenland - Care,Supported Living
Cambridgeshire County Council,08-Jul-22,51301816345,"-6,645.22",RADIS COMMUNITY CARE,CARE ESTABLISHMENT,OPPD - Cost of Care - Fenland - Over 65,Older People - Fenland - Care,Supported Living
Cambridgeshire County Council,08-Jul-22,51301816345,"-6,645.22",RADIS COMMUNITY CARE,CARE ESTABLISHMENT,OPPD - Cost of Care - Fenland - Over 65,Older People - Fenland - Care,Supported Living
Cambridgeshire County Council,08-Jul-22,51301816345,"-6,645.22",RADIS COMMUNITY CARE,CARE ESTABLISHMENT,OPPD - Cost of Care - Fenland - Over 65,Older People - Fenland - Care,Supported Living
Cambridgeshire County Council,08-Jul-22,51301816345,"-6,645.22",RADIS COMMUNITY CARE,CARE ESTABLISHMENT,OPPD - Cost of Care - Fenland - Over 65,Older People - Fenland - Care,Supported Living
Cambridgeshire County Council,08-Jul-22,51301816345,"-6,645.22",RADIS COMMUNITY CARE,CARE ESTABLISHMENT,OPPD - Cost of Care - Fenland - Over 65,Older People - Fenland - Care,Supported Living
Cambridgeshire County Council,08-Jul-22,51301816345,"-6,645.22",RADIS COMMUNITY CARE,CARE ESTABLISHMENT,OPPD - Cost of Care - Fenland - Over 65,Older People - Fenland - Care,Supported Living
Cambridgeshire County Council,08-Jul-22,51301816345,"-6,645.22",RADIS COMMUNITY CARE,CARE ESTABLISHMENT,OPPD - Cost of Care - Fenland - Over 65,Older People - Fenland - Care,Supported Living
Cambridgeshire County Council,08-Jul-22,51301816345,"-6,645.22",RADIS COMMUNITY CARE,CARE ESTABLISHMENT,OPPD - Cost of Care - Fenland - Over 65,Older People - Fenland - Care,Supported Living
Cambridgeshire County Council,08-Jul-22,51301816345,"-6,645.22",RADIS COMMUNITY CARE,CARE ESTABLISHMENT,OPPD - Cost of Care - Fenland - Over 65,Older People - Fenland - Care,Supported Living
Cambridgeshire County Council,08-Jul-22,51301816345,"-6,645.22",RADIS COMMUNITY CARE,CARE ESTABLISHMENT,OPPD - Cost of Care - Fenland - Over 65,Older People - Fenland - Care,Supported Living
Cambridgeshire County Council,08-Jul-22,51301816345,"-6,645.22",RADIS COMMUNITY CARE,CARE ESTABLISHMENT,OPPD - Cost of Care - Fenland - Over 65,Older People - Fenland - Care,Supported Living
Cambridgeshire County Council,08-Jul-22,51301816345,"-6,645.22",RADIS COMMUNITY CARE,CARE ESTABLISHMENT,OPPD - Cost of Care - Fenland - Over 65,Older People - Fenland - Care,Supported Living
Cambridgeshire County Council,08-Jul-22,51301816345,"-6,645.22",RADIS COMMUNITY CARE,CARE ESTABLISHMENT,OPPD - Cost of Care - Fenland - Over 65,Older People - Fenland - Care,Supported Living
Cambridgeshire County Council,08-Jul-22,51301816345,"-6,645.22",RADIS COMMUNITY CARE,CARE ESTABLISHMENT,OPPD - Cost of Care - Fenland - Over 65,Older People - Fenland - Care,Supported Living
Cambridgeshire County Council,08-Jul-22,51301816345,"-6,645.22",RADIS COMMUNITY CARE,CARE ESTABLISHMENT,OPPD - Cost of Care - Fenland - Over 65,Older People - Fenland - Care,Supported Living
Cambridgeshire County Council,08-Jul-22,51301816345,"-6,645.22",RADIS COMMUNITY CARE,CARE ESTABLISHMENT,OPPD - Cost of Care - Fenland - Over 65,Older People - Fenland - Care,Supported Living
Cambridgeshire County Council,08-Jul-22,51301816345,"-6,645.22",RADIS COMMUNITY CARE,CARE ESTABLISHMENT,OPPD - Cost of Care - Fenland - Over 65,Older People - Fenland - Care,Supported Living
Cambridgeshire County Council,08-Jul-22,51301816345,"-6,645.22",RADIS COMMUNITY CARE,CARE ESTABLISHMENT,OPPD - Cost of Care - Fenland - Over 65,Older People - Fenland - Care,Supported Living
Cambridgeshire County Council,08-Jul-22,51301816345,"-6,645.22",RADIS COMMUNITY CARE,CARE ESTABLISHMENT,OPPD - Cost of Care - Fenland - Over 65,Older People - Fenland - Care,Supported Living
Cambridgeshire County Council,08-Jul-22,51301816345,"-6,645.22",RADIS COMMUNITY CARE,CARE ESTABLISHMENT,OPPD - Cost of Care - Fenland - Over 65,Older People - Fenland - Care,Supported Living
Cambridgeshire County Council,08-Jul-22,51301816345,"-6,645.22",RADIS COMMUNITY CARE,CARE ESTABLISHMENT,OPPD - Cost of Care - Fenland - Over 65,Older People - Fenland - Care,Supported Living
Cambridgeshire County Council,08-Jul-22,51301816345,"-6,645.22",RADIS COMMUNITY CARE,CARE ESTABLISHMENT,OPPD - Cost of Care - Fenland - Over 65,Older People - Fenland - Care,Supported Living
Cambridgeshire County Council,08-Jul-22,51301816345,"-6,645.22",RADIS COMMUNITY CARE,CARE ESTABLISHMENT,OPPD - Cost of Care - Fenland - Over 65,Older People - Fenland - Care,Supported Living
Cambridgeshire County Council,08-Jul-22,51301816345,"-6,645.22",RADIS COMMUNITY CARE,CARE ESTABLISHMENT,OPPD - Cost of Care - Fenland - Over 65,Older People - Fenland - Care,Supported Living
Cambridgeshire County Council,08-Jul-22,51301816345,"-6,645.22",RADIS COMMUNITY CARE,CARE ESTABLISHMENT,OPPD - Cost of Care - Fenland - Over 65,Older People - Fenland - Care,Supported Living
Cambridgeshire County Council,08-Jul-22,51301816345,"-6,645.22",RADIS COMMUNITY CARE,CARE ESTABLISHMENT,OPPD - Cost of Care - Fenland - Over 65,Older People - Fenland - Care,Supported Living
Cambridgeshire County Council,08-Jul-22,51301816345,"-6,645.22",RADIS COMMUNITY CARE,CARE ESTABLISHMENT,OPPD - Cost of Care - Fenland - Over 65,Older People - Fenland - Care,Supported Living
Cambridgeshire County Council,08-Jul-22,51301816345,"-6,645.22",RADIS COMMUNITY CARE,CARE ESTABLISHMENT,OPPD - Cost of Care - Fenland - Over 65,Older People - Fenland - Care,Supported Living
Cambridgeshire County Council,08-Jul-22,51301816345,"-6,645.22",RADIS COMMUNITY CARE,CARE ESTABLISHMENT,OPPD - Cost of Care - Fenland - Over 65,Older People - Fenland - Care,Supported Living
Cambridgeshire County Council,08-Jul-22,51301816345,"-6,645.22",RADIS COMMUNITY CARE,CARE ESTABLISHMENT,OPPD - Cost of Care - Fenland - Over 65,Older People - Fenland - Care,Supported Living
Cambridgeshire County Council,08-Jul-22,51301816345,"-6,645.22",RADIS COMMUNITY CARE,CARE ESTABLISHMENT,OPPD - Cost of Care - Fenland - Over 65,Older People - Fenland - Care,Supported Living
Cambridgeshire County Council,08-Jul-22,51301816345,"-6,645.22",RADIS COMMUNITY CARE,CARE ESTABLISHMENT,OPPD - Cost of Care - Fenland - Over 65,Older People - Fenland - Care,Supported Living
Cambridgeshire County Council,08-Jul-22,51301816345,"-6,645.22",RADIS COMMUNITY CARE,CARE ESTABLISHMENT,OPPD - Cost of Care - Fenland - Over 65,Older People - Fenland - Care,Supported Living
Cambridgeshire County Council,08-Jul-22,51301816345,"-6,645.22",RADIS COMMUNITY CARE,CARE ESTABLISHMENT,OPPD - Cost of Care - Fenland - Over 65,Older People - Fenland - Care,Supported Living
Cambridgeshire County Council,08-Jul-22,51301816345,"-6,645.22",RADIS COMMUNITY CARE,CARE ESTABLISHMENT,OPPD - Cost of Care - Fenland - Over 65,Older People - Fenland - Care,Supported Living
Cambridgeshire County Council,06-Jul-22,51301797747,"-6,366.55",CAMBRIDGE CAREFORCE LTD,CARE ESTABLISHMENT,Physical Disablity - Cost of Care,Countywide PD Service - Care,Domiciliary Care
Cambridgeshire County Council,08-Jul-22,51301816349,"-6,013.35",BUCHAN HEALTHCARE LTD,CARE ESTABLISHMENT,OPPD - Cost of Care - City South Blocks,City and South - Long term blocks,Nursing Care
Cambridgeshire County Council,06-Jul-22,51301808176,"-6,000.00",RED BALLOON LEARNER CENTRE CAMBRIDGE,EDUCATION,SEN Placements,Placements - Education,Independent School Placements
Cambridgeshire County Council,08-Jul-22,51301816304,"-5,961.60",RHEOLA HEALTHCARE,CARE ESTABLISHMENT,OPPD - Cost of Care - Huntingdon Blocks,Hunts - Long term blocks,Residential Care
Cambridgeshire County Council,08-Jul-22,51301816304,"-5,961.60",RHEOLA HEALTHCARE,CARE ESTABLISHMENT,OPPD - Cost of Care - Huntingdon Blocks,Hunts - Long term blocks,Residential Care
Cambridgeshire County Council,08-Jul-22,51301816304,"-5,961.60",RHEOLA HEALTHCARE,CARE ESTABLISHMENT,OPPD - Cost of Care - Huntingdon Blocks,Hunts - Long term blocks,Residential Care
Cambridgeshire County Council,08-Jul-22,51301816342,"-5,216.40",THE GABLES SPECIALIST NURSING HOME,CARE ESTABLISHMENT,OPPD - Cost of Care - Fenland Blocks,Fenland - Long term blocks,Nursing Care
Cambridgeshire County Council,08-Jul-22,51301816342,"-5,216.40",THE GABLES SPECIALIST NURSING HOME,CARE ESTABLISHMENT,OPPD - Cost of Care - Fenland Blocks,Fenland - Long term blocks,Nursing Care
Cambridgeshire County Council,08-Jul-22,51301816342,"-5,005.00",THE GABLES SPECIALIST NURSING HOME,CARE ESTABLISHMENT,OPPD - Cost of Care - Fenland Blocks,Fenland - Long term blocks,Nursing Care
Cambridgeshire County Council,08-Jul-22,51301816342,"-5,005.00",THE GABLES SPECIALIST NURSING HOME,CARE ESTABLISHMENT,OPPD - Cost of Care - Fenland Blocks,Fenland - Long term blocks,Nursing Care
Cambridgeshire County Council,08-Jul-22,51301816344,"-4,993.74",RADIS COMMUNITY CARE,CARE ESTABLISHMENT,OPPD - Cost of Care - East Cambs - Over 65,East Cambs - O P Team - Care,Supported Living
Cambridgeshire County Council,08-Jul-22,51301816344,"-4,993.74",RADIS COMMUNITY CARE,CARE ESTABLISHMENT,OPPD - Cost of Care - East Cambs - Over 65,East Cambs - O P Team - Care,Supported Living
Cambridgeshire County Council,08-Jul-22,51301816344,"-4,993.74",RADIS COMMUNITY CARE,CARE ESTABLISHMENT,OPPD - Cost of Care - East Cambs - Over 65,East Cambs - O P Team - Care,Supported Living
Cambridgeshire County Council,08-Jul-22,51301816344,"-4,993.74",RADIS COMMUNITY CARE,CARE ESTABLISHMENT,OPPD - Cost of Care - East Cambs - Over 65,East Cambs - O P Team - Care,Supported Living
Cambridgeshire County Council,08-Jul-22,51301816344,"-4,993.74",RADIS COMMUNITY CARE,CARE ESTABLISHMENT,OPPD - Cost of Care - East Cambs - Over 65,East Cambs - O P Team - Care,Supported Living
Cambridgeshire County Council,08-Jul-22,51301816344,"-4,993.74",RADIS COMMUNITY CARE,CARE ESTABLISHMENT,OPPD - Cost of Care - East Cambs - Over 65,East Cambs - O P Team - Care,Supported Living
Cambridgeshire County Council,08-Jul-22,51301816344,"-4,993.74",RADIS COMMUNITY CARE,CARE ESTABLISHMENT,OPPD - Cost of Care - East Cambs - Over 65,East Cambs - O P Team - Care,Supported Living
Cambridgeshire County Council,08-Jul-22,51301816344,"-4,993.74",RADIS COMMUNITY CARE,CARE ESTABLISHMENT,OPPD - Cost of Care - East Cambs - Over 65,East Cambs - O P Team - Care,Supported Living
Cambridgeshire County Council,08-Jul-22,51301816344,"-4,993.74",RADIS COMMUNITY CARE,CARE ESTABLISHMENT,OPPD - Cost of Care - East Cambs - Over 65,East Cambs - O P Team - Care,Supported Living
Cambridgeshire County Council,08-Jul-22,51301816344,"-4,993.74",RADIS COMMUNITY CARE,CARE ESTABLISHMENT,OPPD - Cost of Care - East Cambs - Over 65,East Cambs - O P Team - Care,Supported Living
Cambridgeshire County Council,08-Jul-22,51301816344,"-4,993.74",RADIS COMMUNITY CARE,CARE ESTABLISHMENT,OPPD - Cost of Care - East Cambs - Over 65,East Cambs - O P Team - Care,Supported Living
Cambridgeshire County Council,08-Jul-22,51301816344,"-4,993.74",RADIS COMMUNITY CARE,CARE ESTABLISHMENT,OPPD - Cost of Care - East Cambs - Over 65,East Cambs - O P Team - Care,Supported Living
Cambridgeshire County Council,08-Jul-22,51301816344,"-4,993.74",RADIS COMMUNITY CARE,CARE ESTABLISHMENT,OPPD - Cost of Care - East Cambs - Over 65,East Cambs - O P Team - Care,Supported Living
Cambridgeshire County Council,08-Jul-22,51301816344,"-4,993.74",RADIS COMMUNITY CARE,CARE ESTABLISHMENT,OPPD - Cost of Care - East Cambs - Over 65,East Cambs - O P Team - Care,Supported Living
Cambridgeshire County Council,08-Jul-22,51301816344,"-4,993.74",RADIS COMMUNITY CARE,CARE ESTABLISHMENT,OPPD - Cost of Care - East Cambs - Over 65,East Cambs - O P Team - Care,Supported Living
Cambridgeshire County Council,08-Jul-22,51301816344,"-4,993.74",RADIS COMMUNITY CARE,CARE ESTABLISHMENT,OPPD - Cost of Care - East Cambs - Over 65,East Cambs - O P Team - Care,Supported Living
Cambridgeshire County Council,08-Jul-22,51301816344,"-4,993.74",RADIS COMMUNITY CARE,CARE ESTABLISHMENT,OPPD - Cost of Care - East Cambs - Over 65,East Cambs - O P Team - Care,Supported Living
Cambridgeshire County Council,08-Jul-22,51301816344,"-4,993.74",RADIS COMMUNITY CARE,CARE ESTABLISHMENT,OPPD - Cost of Care - East Cambs - Over 65,East Cambs - O P Team - Care,Supported Living
Cambridgeshire County Council,08-Jul-22,51301816344,"-4,993.74",RADIS COMMUNITY CARE,CARE ESTABLISHMENT,OPPD - Cost of Care - East Cambs - Over 65,East Cambs - O P Team - Care,Supported Living
Cambridgeshire County Council,08-Jul-22,51301816344,"-4,993.74",RADIS COMMUNITY CARE,CARE ESTABLISHMENT,OPPD - Cost of Care - East Cambs - Over 65,East Cambs - O P Team - Care,Supported Living
Cambridgeshire County Council,08-Jul-22,51301816344,"-4,993.74",RADIS COMMUNITY CARE,CARE ESTABLISHMENT,OPPD - Cost of Care - East Cambs - Over 65,East Cambs - O P Team - Care,Supported Living
Cambridgeshire County Council,08-Jul-22,51301816344,"-4,993.74",RADIS COMMUNITY CARE,CARE ESTABLISHMENT,OPPD - Cost of Care - East Cambs - Over 65,East Cambs - O P Team - Care,Supported Living
Cambridgeshire County Council,08-Jul-22,51301816344,"-4,993.74",RADIS COMMUNITY CARE,CARE ESTABLISHMENT,OPPD - Cost of Care - East Cambs - Over 65,East Cambs - O P Team - Care,Supported Living
Cambridgeshire County Council,08-Jul-22,51301816344,"-4,993.74",RADIS COMMUNITY CARE,CARE ESTABLISHMENT,OPPD - Cost of Care - East Cambs - Over 65,East Cambs - O P Team - Care,Supported Living
Cambridgeshire County Council,08-Jul-22,51301816344,"-4,993.74",RADIS COMMUNITY CARE,CARE ESTABLISHMENT,OPPD - Cost of Care - East Cambs - Over 65,East Cambs - O P Team - Care,Supported Living
Cambridgeshire County Council,08-Jul-22,51301816344,"-4,993.74",RADIS COMMUNITY CARE,CARE ESTABLISHMENT,OPPD - Cost of Care - East Cambs - Over 65,East Cambs - O P Team - Care,Supported Living
Cambridgeshire County Council,08-Jul-22,51301816344,"-4,993.74",RADIS COMMUNITY CARE,CARE ESTABLISHMENT,OPPD - Cost of Care - East Cambs - Over 65,East Cambs - O P Team - Care,Supported Living
Cambridgeshire County Council,08-Jul-22,51301816344,"-4,993.74",RADIS COMMUNITY CARE,CARE ESTABLISHMENT,OPPD - Cost of Care - East Cambs - Over 65,East Cambs - O P Team - Care,Supported Living
Cambridgeshire County Council,08-Jul-22,51301816344,"-4,993.74",RADIS COMMUNITY CARE,CARE ESTABLISHMENT,OPPD - Cost of Care - East Cambs - Over 65,East Cambs - O P Team - Care,Supported Living
Cambridgeshire County Council,08-Jul-22,51301816344,"-4,993.74",RADIS COMMUNITY CARE,CARE ESTABLISHMENT,OPPD - Cost of Care - East Cambs - Over 65,East Cambs - O P Team - Care,Supported Living
Cambridgeshire County Council,08-Jul-22,51301816344,"-4,993.74",RADIS COMMUNITY CARE,CARE ESTABLISHMENT,OPPD - Cost of Care - East Cambs - Over 65,East Cambs - O P Team - Care,Supported Living
Cambridgeshire County Council,08-Jul-22,51301816344,"-4,993.74",RADIS COMMUNITY CARE,CARE ESTABLISHMENT,OPPD - Cost of Care - East Cambs - Over 65,East Cambs - O P Team - Care,Supported Living
Cambridgeshire County Council,08-Jul-22,51301816344,"-4,993.74",RADIS COMMUNITY CARE,CARE ESTABLISHMENT,OPPD - Cost of Care - East Cambs - Over 65,East Cambs - O P Team - Care,Supported Living
Cambridgeshire County Council,08-Jul-22,51301816344,"-4,993.74",RADIS COMMUNITY CARE,CARE ESTABLISHMENT,OPPD - Cost of Care - East Cambs - Over 65,East Cambs - O P Team - Care,Supported Living
Cambridgeshire County Council,08-Jul-22,51301816344,"-4,993.74",RADIS COMMUNITY CARE,CARE ESTABLISHMENT,OPPD - Cost of Care - East Cambs - Over 65,East Cambs - O P Team - Care,Supported Living
Cambridgeshire County Council,08-Jul-22,51301816344,"-4,993.74",RADIS COMMUNITY CARE,CARE ESTABLISHMENT,OPPD - Cost of Care - East Cambs - Over 65,East Cambs - O P Team - Care,Supported Living
Cambridgeshire County Council,08-Jul-22,51301816344,"-4,993.74",RADIS COMMUNITY CARE,CARE ESTABLISHMENT,OPPD - Cost of Care - East Cambs - Over 65,East Cambs - O P Team - Care,Supported Living
Cambridgeshire County Council,08-Jul-22,51301816344,"-4,993.74",RADIS COMMUNITY CARE,CARE ESTABLISHMENT,OPPD - Cost of Care - East Cambs - Over 65,East Cambs - O P Team - Care,Supported Living
Cambridgeshire County Council,08-Jul-22,51301816344,"-4,993.74",RADIS COMMUNITY CARE,CARE ESTABLISHMENT,OPPD - Cost of Care - East Cambs - Over 65,East Cambs - O P Team - Care,Supported Living
Cambridgeshire County Council,08-Jul-22,51301816344,"-4,993.74",RADIS COMMUNITY CARE,CARE ESTABLISHMENT,OPPD - Cost of Care - East Cambs - Over 65,East Cambs - O P Team - Care,Supported Living
Cambridgeshire County Council,08-Jul-22,51301816344,"-4,993.74",RADIS COMMUNITY CARE,CARE ESTABLISHMENT,OPPD - Cost of Care - East Cambs - Over 65,East Cambs - O P Team - Care,Supported Living
Cambridgeshire County Council,08-Jul-22,51301816344,"-4,993.74",RADIS COMMUNITY CARE,CARE ESTABLISHMENT,OPPD - Cost of Care - East Cambs - Over 65,East Cambs - O P Team - Care,Supported Living
Cambridgeshire County Council,08-Jul-22,51301816344,"-4,993.74",RADIS COMMUNITY CARE,CARE ESTABLISHMENT,OPPD - Cost of Care - East Cambs - Over 65,East Cambs - O P Team - Care,Supported Living
Cambridgeshire County Council,08-Jul-22,51301816344,"-4,993.74",RADIS COMMUNITY CARE,CARE ESTABLISHMENT,OPPD - Cost of Care - East Cambs - Over 65,East Cambs - O P Team - Care,Supported Living
Cambridgeshire County Council,08-Jul-22,51301816344,"-4,993.74",RADIS COMMUNITY CARE,CARE ESTABLISHMENT,OPPD - Cost of Care - East Cambs - Over 65,East Cambs - O P Team - Care,Supported Living
Cambridgeshire County Council,08-Jul-22,51301816344,"-4,993.74",RADIS COMMUNITY CARE,CARE ESTABLISHMENT,OPPD - Cost of Care - East Cambs - Over 65,East Cambs - O P Team - Care,Supported Living
Cambridgeshire County Council,08-Jul-22,51301816344,"-4,993.74",RADIS COMMUNITY CARE,CARE ESTABLISHMENT,OPPD - Cost of Care - East Cambs - Over 65,East Cambs - O P Team - Care,Supported Living
Cambridgeshire County Council,08-Jul-22,51301816344,"-4,993.74",RADIS COMMUNITY CARE,CARE ESTABLISHMENT,OPPD - Cost of Care - East Cambs - Over 65,East Cambs - O P Team - Care,Supported Living
Cambridgeshire County Council,08-Jul-22,51301816344,"-4,993.74",RADIS COMMUNITY CARE,CARE ESTABLISHMENT,OPPD - Cost of Care - East Cambs - Over 65,East Cambs - O P Team - Care,Supported Living
Cambridgeshire County Council,08-Jul-22,51301816344,"-4,993.74",RADIS COMMUNITY CARE,CARE ESTABLISHMENT,OPPD - Cost of Care - East Cambs - Over 65,East Cambs - O P Team - Care,Supported Living
Cambridgeshire County Council,08-Jul-22,51301816344,"-4,993.74",RADIS COMMUNITY CARE,CARE ESTABLISHMENT,OPPD - Cost of Care - East Cambs - Over 65,East Cambs - O P Team - Care,Supported Living
Cambridgeshire County Council,08-Jul-22,51301816344,"-4,993.74",RADIS COMMUNITY CARE,CARE ESTABLISHMENT,OPPD - Cost of Care - East Cambs - Over 65,East Cambs - O P Team - Care,Supported Living
Cambridgeshire County Council,08-Jul-22,51301816344,"-4,993.74",RADIS COMMUNITY CARE,CARE ESTABLISHMENT,OPPD - Cost of Care - East Cambs - Over 65,East Cambs - O P Team - Care,Supported Living
Cambridgeshire County Council,08-Jul-22,51301816344,"-4,993.74",RADIS COMMUNITY CARE,CARE ESTABLISHMENT,OPPD - Cost of Care - East Cambs - Over 65,East Cambs - O P Team - Care,Supported Living
Cambridgeshire County Council,08-Jul-22,51301816344,"-4,993.74",RADIS COMMUNITY CARE,CARE ESTABLISHMENT,OPPD - Cost of Care - East Cambs - Over 65,East Cambs - O P Team - Care,Supported Living
Cambridgeshire County Council,08-Jul-22,51301816344,"-4,993.74",RADIS COMMUNITY CARE,CARE ESTABLISHMENT,OPPD - Cost of Care - East Cambs - Over 65,East Cambs - O P Team - Care,Supported Living
Cambridgeshire County Council,08-Jul-22,51301816344,"-4,993.74",RADIS COMMUNITY CARE,CARE ESTABLISHMENT,OPPD - Cost of Care - East Cambs - Over 65,East Cambs - O P Team - Care,Supported Living
Cambridgeshire County Council,08-Jul-22,51301816344,"-4,993.74",RADIS COMMUNITY CARE,CARE ESTABLISHMENT,OPPD - Cost of Care - East Cambs - Over 65,East Cambs - O P Team - Care,Supported Living
Cambridgeshire County Council,08-Jul-22,51301816344,"-4,993.74",RADIS COMMUNITY CARE,CARE ESTABLISHMENT,OPPD - Cost of Care - East Cambs - Over 65,East Cambs - O P Team - Care,Supported Living
Cambridgeshire County Council,08-Jul-22,51301816344,"-4,993.74",RADIS COMMUNITY CARE,CARE ESTABLISHMENT,OPPD - Cost of Care - East Cambs - Over 65,East Cambs - O P Team - Care,Supported Living
Cambridgeshire County Council,08-Jul-22,51301816344,"-4,993.74",RADIS COMMUNITY CARE,CARE ESTABLISHMENT,OPPD - Cost of Care - East Cambs - Over 65,East Cambs - O P Team - Care,Supported Living
Cambridgeshire County Council,08-Jul-22,51301816344,"-4,993.74",RADIS COMMUNITY CARE,CARE ESTABLISHMENT,OPPD - Cost of Care - East Cambs - Over 65,East Cambs - O P Team - Care,Supported Living
Cambridgeshire County Council,08-Jul-22,51301816344,"-4,993.74",RADIS COMMUNITY CARE,CARE ESTABLISHMENT,OPPD - Cost of Care - East Cambs - Over 65,East Cambs - O P Team - Care,Supported Living
Cambridgeshire County Council,08-Jul-22,51301816343,"-4,749.76",RADIS COMMUNITY CARE,CARE ESTABLISHMENT,OPPD - Cost of Care - Huntingdon - Over 65,Hunts OP Team - Care,Supported Living
Cambridgeshire County Council,08-Jul-22,51301816343,"-4,749.76",RADIS COMMUNITY CARE,CARE ESTABLISHMENT,OPPD - Cost of Care - Huntingdon - Over 65,Hunts OP Team - Care,Supported Living
Cambridgeshire County Council,08-Jul-22,51301816343,"-4,749.76",RADIS COMMUNITY CARE,CARE ESTABLISHMENT,OPPD - Cost of Care - Huntingdon - Over 65,Hunts OP Team - Care,Supported Living
Cambridgeshire County Council,08-Jul-22,51301816343,"-4,749.76",RADIS COMMUNITY CARE,CARE ESTABLISHMENT,OPPD - Cost of Care - Huntingdon - Over 65,Hunts OP Team - Care,Supported Living
Cambridgeshire County Council,08-Jul-22,51301816343,"-4,749.76",RADIS COMMUNITY CARE,CARE ESTABLISHMENT,OPPD - Cost of Care - Huntingdon - Over 65,Hunts OP Team - Care,Supported Living
Cambridgeshire County Council,08-Jul-22,51301816343,"-4,749.76",RADIS COMMUNITY CARE,CARE ESTABLISHMENT,OPPD - Cost of Care - Huntingdon - Over 65,Hunts OP Team - Care,Supported Living
Cambridgeshire County Council,08-Jul-22,51301816343,"-4,749.76",RADIS COMMUNITY CARE,CARE ESTABLISHMENT,OPPD - Cost of Care - Huntingdon - Over 65,Hunts OP Team - Care,Supported Living
Cambridgeshire County Council,08-Jul-22,51301816343,"-4,749.76",RADIS COMMUNITY CARE,CARE ESTABLISHMENT,OPPD - Cost of Care - Huntingdon - Over 65,Hunts OP Team - Care,Supported Living
Cambridgeshire County Council,08-Jul-22,51301816343,"-4,749.76",RADIS COMMUNITY CARE,CARE ESTABLISHMENT,OPPD - Cost of Care - Huntingdon - Over 65,Hunts OP Team - Care,Supported Living
Cambridgeshire County Council,08-Jul-22,51301816343,"-4,749.76",RADIS COMMUNITY CARE,CARE ESTABLISHMENT,OPPD - Cost of Care - Huntingdon - Over 65,Hunts OP Team - Care,Supported Living
Cambridgeshire County Council,08-Jul-22,51301816343,"-4,749.76",RADIS COMMUNITY CARE,CARE ESTABLISHMENT,OPPD - Cost of Care - Huntingdon - Over 65,Hunts OP Team - Care,Supported Living
Cambridgeshire County Council,08-Jul-22,51301816343,"-4,749.76",RADIS COMMUNITY CARE,CARE ESTABLISHMENT,OPPD - Cost of Care - Huntingdon - Over 65,Hunts OP Team - Care,Supported Living
Cambridgeshire County Council,08-Jul-22,51301816343,"-4,749.76",RADIS COMMUNITY CARE,CARE ESTABLISHMENT,OPPD - Cost of Care - Huntingdon - Over 65,Hunts OP Team - Care,Supported Living
Cambridgeshire County Council,08-Jul-22,51301816343,"-4,749.76",RADIS COMMUNITY CARE,CARE ESTABLISHMENT,OPPD - Cost of Care - Huntingdon - Over 65,Hunts OP Team - Care,Supported Living
Cambridgeshire County Council,08-Jul-22,51301816343,"-4,749.76",RADIS COMMUNITY CARE,CARE ESTABLISHMENT,OPPD - Cost of Care - Huntingdon - Over 65,Hunts OP Team - Care,Supported Living
Cambridgeshire County Council,08-Jul-22,51301816343,"-4,749.76",RADIS COMMUNITY CARE,CARE ESTABLISHMENT,OPPD - Cost of Care - Huntingdon - Over 65,Hunts OP Team - Care,Supported Living
Cambridgeshire County Council,08-Jul-22,51301816343,"-4,749.76",RADIS COMMUNITY CARE,CARE ESTABLISHMENT,OPPD - Cost of Care - Huntingdon - Over 65,Hunts OP Team - Care,Supported Living
Cambridgeshire County Council,08-Jul-22,51301816343,"-4,749.76",RADIS COMMUNITY CARE,CARE ESTABLISHMENT,OPPD - Cost of Care - Huntingdon - Over 65,Hunts OP Team - Care,Supported Living
Cambridgeshire County Council,08-Jul-22,51301816343,"-4,749.76",RADIS COMMUNITY CARE,CARE ESTABLISHMENT,OPPD - Cost of Care - Huntingdon - Over 65,Hunts OP Team - Care,Supported Living
Cambridgeshire County Council,08-Jul-22,51301816343,"-4,749.76",RADIS COMMUNITY CARE,CARE ESTABLISHMENT,OPPD - Cost of Care - Huntingdon - Over 65,Hunts OP Team - Care,Supported Living
Cambridgeshire County Council,08-Jul-22,51301816343,"-4,749.76",RADIS COMMUNITY CARE,CARE ESTABLISHMENT,OPPD - Cost of Care - Huntingdon - Over 65,Hunts OP Team - Care,Supported Living
Cambridgeshire County Council,08-Jul-22,51301816343,"-4,749.76",RADIS COMMUNITY CARE,CARE ESTABLISHMENT,OPPD - Cost of Care - Huntingdon - Over 65,Hunts OP Team - Care,Supported Living
Cambridgeshire County Council,08-Jul-22,51301816343,"-4,749.76",RADIS COMMUNITY CARE,CARE ESTABLISHMENT,OPPD - Cost of Care - Huntingdon - Over 65,Hunts OP Team - Care,Supported Living
Cambridgeshire County Council,08-Jul-22,51301816343,"-4,749.76",RADIS COMMUNITY CARE,CARE ESTABLISHMENT,OPPD - Cost of Care - Huntingdon - Over 65,Hunts OP Team - Care,Supported Living
Cambridgeshire County Council,08-Jul-22,51301816343,"-4,749.76",RADIS COMMUNITY CARE,CARE ESTABLISHMENT,OPPD - Cost of Care - Huntingdon - Over 65,Hunts OP Team - Care,Supported Living
Cambridgeshire County Council,08-Jul-22,51301816343,"-4,749.76",RADIS COMMUNITY CARE,CARE ESTABLISHMENT,OPPD - Cost of Care - Huntingdon - Over 65,Hunts OP Team - Care,Supported Living
Cambridgeshire County Council,08-Jul-22,51301816343,"-4,749.76",RADIS COMMUNITY CARE,CARE ESTABLISHMENT,OPPD - Cost of Care - Huntingdon - Over 65,Hunts OP Team - Care,Supported Living
Cambridgeshire County Council,08-Jul-22,51301816343,"-4,749.76",RADIS COMMUNITY CARE,CARE ESTABLISHMENT,OPPD - Cost of Care - Huntingdon - Over 65,Hunts OP Team - Care,Supported Living
Cambridgeshire County Council,08-Jul-22,51301816343,"-4,749.76",RADIS COMMUNITY CARE,CARE ESTABLISHMENT,OPPD - Cost of Care - Huntingdon - Over 65,Hunts OP Team - Care,Supported Living
Cambridgeshire County Council,08-Jul-22,51301816343,"-4,749.76",RADIS COMMUNITY CARE,CARE ESTABLISHMENT,OPPD - Cost of Care - Huntingdon - Over 65,Hunts OP Team - Care,Supported Living
Cambridgeshire County Council,08-Jul-22,51301816343,"-4,749.76",RADIS COMMUNITY CARE,CARE ESTABLISHMENT,OPPD - Cost of Care - Huntingdon - Over 65,Hunts OP Team - Care,Supported Living
Cambridgeshire County Council,08-Jul-22,51301816343,"-4,749.76",RADIS COMMUNITY CARE,CARE ESTABLISHMENT,OPPD - Cost of Care - Huntingdon - Over 65,Hunts OP Team - Care,Supported Living
Cambridgeshire County Council,08-Jul-22,51301816343,"-4,749.76",RADIS COMMUNITY CARE,CARE ESTABLISHMENT,OPPD - Cost of Care - Huntingdon - Over 65,Hunts OP Team - Care,Supported Living
Cambridgeshire County Council,08-Jul-22,51301816343,"-4,749.76",RADIS COMMUNITY CARE,CARE ESTABLISHMENT,OPPD - Cost of Care - Huntingdon - Over 65,Hunts OP Team - Care,Supported Living
Cambridgeshire County Council,08-Jul-22,51301816343,"-4,749.76",RADIS COMMUNITY CARE,CARE ESTABLISHMENT,OPPD - Cost of Care - Huntingdon - Over 65,Hunts OP Team - Care,Supported Living
Cambridgeshire County Council,08-Jul-22,51301816343,"-4,749.76",RADIS COMMUNITY CARE,CARE ESTABLISHMENT,OPPD - Cost of Care - Huntingdon - Over 65,Hunts OP Team - Care,Supported Living
Cambridgeshire County Council,08-Jul-22,51301816343,"-4,749.76",RADIS COMMUNITY CARE,CARE ESTABLISHMENT,OPPD - Cost of Care - Huntingdon - Over 65,Hunts OP Team - Care,Supported Living
Cambridgeshire County Council,08-Jul-22,51301816343,"-4,749.76",RADIS COMMUNITY CARE,CARE ESTABLISHMENT,OPPD - Cost of Care - Huntingdon - Over 65,Hunts OP Team - Care,Supported Living
Cambridgeshire County Council,08-Jul-22,51301816343,"-4,749.76",RADIS COMMUNITY CARE,CARE ESTABLISHMENT,OPPD - Cost of Care - Huntingdon - Over 65,Hunts OP Team - Care,Supported Living
Cambridgeshire County Council,08-Jul-22,51301816343,"-4,749.76",RADIS COMMUNITY CARE,CARE ESTABLISHMENT,OPPD - Cost of Care - Huntingdon - Over 65,Hunts OP Team - Care,Supported Living
Cambridgeshire County Council,08-Jul-22,51301816343,"-4,749.76",RADIS COMMUNITY CARE,CARE ESTABLISHMENT,OPPD - Cost of Care - Huntingdon - Over 65,Hunts OP Team - Care,Supported Living
Cambridgeshire County Council,08-Jul-22,51301816343,"-4,749.76",RADIS COMMUNITY CARE,CARE ESTABLISHMENT,OPPD - Cost of Care - Huntingdon - Over 65,Hunts OP Team - Care,Supported Living
Cambridgeshire County Council,08-Jul-22,51301816343,"-4,749.76",RADIS COMMUNITY CARE,CARE ESTABLISHMENT,OPPD - Cost of Care - Huntingdon - Over 65,Hunts OP Team - Care,Supported Living
Cambridgeshire County Council,08-Jul-22,51301816343,"-4,749.76",RADIS COMMUNITY CARE,CARE ESTABLISHMENT,OPPD - Cost of Care - Huntingdon - Over 65,Hunts OP Team - Care,Supported Living
Cambridgeshire County Council,08-Jul-22,51301816343,"-4,749.76",RADIS COMMUNITY CARE,CARE ESTABLISHMENT,OPPD - Cost of Care - Huntingdon - Over 65,Hunts OP Team - Care,Supported Living
Cambridgeshire County Council,08-Jul-22,51301816343,"-4,749.76",RADIS COMMUNITY CARE,CARE ESTABLISHMENT,OPPD - Cost of Care - Huntingdon - Over 65,Hunts OP Team - Care,Supported Living
Cambridgeshire County Council,08-Jul-22,51301816343,"-4,749.76",RADIS COMMUNITY CARE,CARE ESTABLISHMENT,OPPD - Cost of Care - Huntingdon - Over 65,Hunts OP Team - Care,Supported Living
Cambridgeshire County Council,08-Jul-22,51301816343,"-4,749.76",RADIS COMMUNITY CARE,CARE ESTABLISHMENT,OPPD - Cost of Care - Huntingdon - Over 65,Hunts OP Team - Care,Supported Living
Cambridgeshire County Council,08-Jul-22,51301816343,"-4,749.76",RADIS COMMUNITY CARE,CARE ESTABLISHMENT,OPPD - Cost of Care - Huntingdon - Over 65,Hunts OP Team - Care,Supported Living
Cambridgeshire County Council,08-Jul-22,51301816343,"-4,749.76",RADIS COMMUNITY CARE,CARE ESTABLISHMENT,OPPD - Cost of Care - Huntingdon - Over 65,Hunts OP Team - Care,Supported Living
Cambridgeshire County Council,08-Jul-22,51301816342,"-4,471.20",THE GABLES SPECIALIST NURSING HOME,CARE ESTABLISHMENT,OPPD - Cost of Care - Fenland Blocks,Fenland - Long term blocks,Nursing Care
Cambridgeshire County Council,08-Jul-22,51301816342,"-4,471.20",THE GABLES SPECIALIST NURSING HOME,CARE ESTABLISHMENT,OPPD - Cost of Care - Fenland Blocks,Fenland - Long term blocks,Nursing Care
Cambridgeshire County Council,08-Jul-22,51301816319,"-4,403.77",MEARS CARE LTD,CARE ESTABLISHMENT,OPPD - Cost of Care - Fenland - Over 65,Older People - Fenland - Care,Supported Living
Cambridgeshire County Council,08-Jul-22,51301816319,"-4,403.77",MEARS CARE LTD,CARE ESTABLISHMENT,OPPD - Cost of Care - Fenland - Over 65,Older People - Fenland - Care,Supported Living
Cambridgeshire County Council,08-Jul-22,51301816319,"-4,403.77",MEARS CARE LTD,CARE ESTABLISHMENT,OPPD - Cost of Care - Fenland - Over 65,Older People - Fenland - Care,Supported Living
Cambridgeshire County Council,08-Jul-22,51301816319,"-4,403.77",MEARS CARE LTD,CARE ESTABLISHMENT,OPPD - Cost of Care - Fenland - Over 65,Older People - Fenland - Care,Supported Living
Cambridgeshire County Council,08-Jul-22,51301816319,"-4,403.77",MEARS CARE LTD,CARE ESTABLISHMENT,OPPD - Cost of Care - Fenland - Over 65,Older People - Fenland - Care,Supported Living
Cambridgeshire County Council,08-Jul-22,51301816319,"-4,403.77",MEARS CARE LTD,CARE ESTABLISHMENT,OPPD - Cost of Care - Fenland - Over 65,Older People - Fenland - Care,Supported Living
Cambridgeshire County Council,08-Jul-22,51301816319,"-4,403.77",MEARS CARE LTD,CARE ESTABLISHMENT,OPPD - Cost of Care - Fenland - Over 65,Older People - Fenland - Care,Supported Living
Cambridgeshire County Council,08-Jul-22,51301816319,"-4,403.77",MEARS CARE LTD,CARE ESTABLISHMENT,OPPD - Cost of Care - Fenland - Over 65,Older People - Fenland - Care,Supported Living
Cambridgeshire County Council,08-Jul-22,51301816319,"-4,403.77",MEARS CARE LTD,CARE ESTABLISHMENT,OPPD - Cost of Care - Fenland - Over 65,Older People - Fenland - Care,Supported Living
Cambridgeshire County Council,08-Jul-22,51301816319,"-4,403.77",MEARS CARE LTD,CARE ESTABLISHMENT,OPPD - Cost of Care - Fenland - Over 65,Older People - Fenland - Care,Supported Living
Cambridgeshire County Council,08-Jul-22,51301816319,"-4,403.77",MEARS CARE LTD,CARE ESTABLISHMENT,OPPD - Cost of Care - Fenland - Over 65,Older People - Fenland - Care,Supported Living
Cambridgeshire County Council,11-Jul-22,51301818321,"-4,371.36",THE BEECHES UK LIMITED,CARE ESTABLISHMENT,LAC Placements,Placements - S117 tier 4 step-down,Agency Placements - In County
Cambridgeshire County Council,08-Jul-22,51301816323,"-4,295.25",THE CAMBRIDGE NURSING CENTRE,CARE ESTABLISHMENT,OPPD - Cost of Care - City South - Over 65,Older People - City & South - Care,Nursing Care
Cambridgeshire County Council,08-Jul-22,51301816323,"-4,295.25",THE CAMBRIDGE NURSING CENTRE,CARE ESTABLISHMENT,OPPD - Cost of Care - City South - Over 65,Older People - City & South - Care,Nursing Care
Cambridgeshire County Council,08-Jul-22,51301816323,"-4,295.25",THE CAMBRIDGE NURSING CENTRE,CARE ESTABLISHMENT,OPPD - Cost of Care - City South - Over 65,Older People - City & South - Care,Nursing Care
Cambridgeshire County Council,08-Jul-22,51301816323,"-4,295.25",THE CAMBRIDGE NURSING CENTRE,CARE ESTABLISHMENT,OPPD - Cost of Care - City South - Over 65,Older People - City & South - Care,Nursing Care
Cambridgeshire County Council,08-Jul-22,51301816323,"-4,295.25",THE CAMBRIDGE NURSING CENTRE,CARE ESTABLISHMENT,OPPD - Cost of Care - City South - Over 65,Older People - City & South - Care,Nursing Care
Cambridgeshire County Council,08-Jul-22,51301816323,"-4,295.25",THE CAMBRIDGE NURSING CENTRE,CARE ESTABLISHMENT,OPPD - Cost of Care - City South - Over 65,Older People - City & South - Care,Nursing Care
Cambridgeshire County Council,08-Jul-22,51301816323,"-4,295.25",THE CAMBRIDGE NURSING CENTRE,CARE ESTABLISHMENT,OPPD - Cost of Care - City South - Over 65,Older People - City & South - Care,Nursing Care
Cambridgeshire County Council,08-Jul-22,51301816342,"-4,290.00",THE GABLES SPECIALIST NURSING HOME,CARE ESTABLISHMENT,OPPD - Cost of Care - Fenland Blocks,Fenland - Long term blocks,Nursing Care
Cambridgeshire County Council,08-Jul-22,51301816342,"-4,290.00",THE GABLES SPECIALIST NURSING HOME,CARE ESTABLISHMENT,OPPD - Cost of Care - Fenland Blocks,Fenland - Long term blocks,Nursing Care
Cambridgeshire County Council,08-Jul-22,51301816342,"-4,290.00",THE GABLES SPECIALIST NURSING HOME,CARE ESTABLISHMENT,OPPD - Cost of Care - Fenland Blocks,Fenland - Long term blocks,Nursing Care
Cambridgeshire County Council,08-Jul-22,51301816342,"-4,290.00",THE GABLES SPECIALIST NURSING HOME,CARE ESTABLISHMENT,OPPD - Cost of Care - Fenland Blocks,Fenland - Long term blocks,Nursing Care
Cambridgeshire County Council,08-Jul-22,51301816342,"-4,290.00",THE GABLES SPECIALIST NURSING HOME,CARE ESTABLISHMENT,OPPD - Cost of Care - Fenland Blocks,Fenland - Long term blocks,Nursing Care
Cambridgeshire County Council,08-Jul-22,51301816342,"-4,290.00",THE GABLES SPECIALIST NURSING HOME,CARE ESTABLISHMENT,OPPD - Cost of Care - Fenland Blocks,Fenland - Long term blocks,Nursing Care
Cambridgeshire County Council,08-Jul-22,51301815805,"-4,251.42",CONSENSUS COMMUNITY SUPPORT LTD,CARE ESTABLISHMENT,LD - Young Adults Team,LD - Young Adults - Special Needs,Residential Care
Cambridgeshire County Council,08-Jul-22,51301815805,"-4,251.42",CONSENSUS COMMUNITY SUPPORT LTD,CARE ESTABLISHMENT,LD - Young Adults Team,LD - Young Adults - Special Needs,Residential Care
Cambridgeshire County Council,08-Jul-22,51301815805,"-4,251.42",CONSENSUS COMMUNITY SUPPORT LTD,CARE ESTABLISHMENT,LD - Young Adults Team,LD - Young Adults - Special Needs,Residential Care
Cambridgeshire County Council,08-Jul-22,51301815805,"-4,251.42",CONSENSUS COMMUNITY SUPPORT LTD,CARE ESTABLISHMENT,LD - Young Adults Team,LD - Young Adults - Special Needs,Residential Care
Cambridgeshire County Council,08-Jul-22,51301815805,"-4,251.42",CONSENSUS COMMUNITY SUPPORT LTD,CARE ESTABLISHMENT,LD - Young Adults Team,LD - Young Adults - Special Needs,Residential Care
Cambridgeshire County Council,08-Jul-22,51301815805,"-4,251.42",CONSENSUS COMMUNITY SUPPORT LTD,CARE ESTABLISHMENT,LD - Young Adults Team,LD - Young Adults - Special Needs,Residential Care
Cambridgeshire County Council,08-Jul-22,51301815805,"-4,251.42",CONSENSUS COMMUNITY SUPPORT LTD,CARE ESTABLISHMENT,LD - Young Adults Team,LD - Young Adults - Special Needs,Residential Care
Cambridgeshire County Council,08-Jul-22,51301815805,"-4,251.42",CONSENSUS COMMUNITY SUPPORT LTD,CARE ESTABLISHMENT,LD - Young Adults Team,LD - Young Adults - Special Needs,Residential Care
Cambridgeshire County Council,08-Jul-22,51301815805,"-4,251.42",CONSENSUS COMMUNITY SUPPORT LTD,CARE ESTABLISHMENT,LD - Young Adults Team,LD - Young Adults - Special Needs,Residential Care
Cambridgeshire County Council,08-Jul-22,51301815805,"-4,251.42",CONSENSUS COMMUNITY SUPPORT LTD,CARE ESTABLISHMENT,LD - Young Adults Team,LD - Young Adults - Special Needs,Residential Care
Cambridgeshire County Council,08-Jul-22,51301815805,"-4,251.42",CONSENSUS COMMUNITY SUPPORT LTD,CARE ESTABLISHMENT,LD - Young Adults Team,LD - Young Adults - Special Needs,Residential Care
Cambridgeshire County Council,08-Jul-22,51301816343,"-4,071.22",RADIS COMMUNITY CARE,CARE ESTABLISHMENT,OPPD - Cost of Care - Huntingdon - Over 65,Hunts OP Team - Care,Supported Living
Cambridgeshire County Council,08-Jul-22,51301816624,"-3,954.43",THE EDMUND TRUST,CARE ESTABLISHMENT,LD - Young Adults Team,LD - Young Adults - Special Needs,Supported Living
Cambridgeshire County Council,08-Jul-22,51301816624,"-3,954.43",THE EDMUND TRUST,CARE ESTABLISHMENT,LD - Young Adults Team,LD - Young Adults - Special Needs,Supported Living
Cambridgeshire County Council,08-Jul-22,51301816624,"-3,954.43",THE EDMUND TRUST,CARE ESTABLISHMENT,LD - Young Adults Team,LD - Young Adults - Special Needs,Supported Living
Cambridgeshire County Council,08-Jul-22,51301816624,"-3,954.43",THE EDMUND TRUST,CARE ESTABLISHMENT,LD - Young Adults Team,LD - Young Adults - Special Needs,Supported Living
Cambridgeshire County Council,08-Jul-22,51301816624,"-3,954.43",THE EDMUND TRUST,CARE ESTABLISHMENT,LD - Young Adults Team,LD - Young Adults - Special Needs,Supported Living
Cambridgeshire County Council,08-Jul-22,51301816624,"-3,954.43",THE EDMUND TRUST,CARE ESTABLISHMENT,LD - Young Adults Team,LD - Young Adults - Special Needs,Supported Living
Cambridgeshire County Council,08-Jul-22,51301816624,"-3,954.43",THE EDMUND TRUST,CARE ESTABLISHMENT,LD - Young Adults Team,LD - Young Adults - Special Needs,Supported Living
Cambridgeshire County Council,08-Jul-22,51301816624,"-3,954.43",THE EDMUND TRUST,CARE ESTABLISHMENT,LD - Young Adults Team,LD - Young Adults - Special Needs,Supported Living
Cambridgeshire County Council,08-Jul-22,51301816624,"-3,954.43",THE EDMUND TRUST,CARE ESTABLISHMENT,LD - Young Adults Team,LD - Young Adults - Special Needs,Supported Living
Cambridgeshire County Council,08-Jul-22,51301816624,"-3,954.43",THE EDMUND TRUST,CARE ESTABLISHMENT,LD - Young Adults Team,LD - Young Adults - Special Needs,Supported Living
Cambridgeshire County Council,08-Jul-22,51301816624,"-3,954.43",THE EDMUND TRUST,CARE ESTABLISHMENT,LD - Young Adults Team,LD - Young Adults - Special Needs,Supported Living
Cambridgeshire County Council,08-Jul-22,51301816316,"-3,948.27",RADIS COMMUNITY CARE,CARE ESTABLISHMENT,OPPD - Cost of Care - East Cambs - Over 65,East Cambs - O P Team - Care,Supported Living
Cambridgeshire County Council,08-Jul-22,51301816316,"-3,948.27",RADIS COMMUNITY CARE,CARE ESTABLISHMENT,OPPD - Cost of Care - East Cambs - Over 65,East Cambs - O P Team - Care,Supported Living
Cambridgeshire County Council,08-Jul-22,51301816316,"-3,948.27",RADIS COMMUNITY CARE,CARE ESTABLISHMENT,OPPD - Cost of Care - East Cambs - Over 65,East Cambs - O P Team - Care,Supported Living
Cambridgeshire County Council,08-Jul-22,51301816316,"-3,948.27",RADIS COMMUNITY CARE,CARE ESTABLISHMENT,OPPD - Cost of Care - East Cambs - Over 65,East Cambs - O P Team - Care,Supported Living
Cambridgeshire County Council,08-Jul-22,51301816316,"-3,948.27",RADIS COMMUNITY CARE,CARE ESTABLISHMENT,OPPD - Cost of Care - East Cambs - Over 65,East Cambs - O P Team - Care,Supported Living
Cambridgeshire County Council,08-Jul-22,51301816316,"-3,948.27",RADIS COMMUNITY CARE,CARE ESTABLISHMENT,OPPD - Cost of Care - East Cambs - Over 65,East Cambs - O P Team - Care,Supported Living
Cambridgeshire County Council,08-Jul-22,51301816316,"-3,948.27",RADIS COMMUNITY CARE,CARE ESTABLISHMENT,OPPD - Cost of Care - East Cambs - Over 65,East Cambs - O P Team - Care,Supported Living
Cambridgeshire County Council,08-Jul-22,51301816316,"-3,948.27",RADIS COMMUNITY CARE,CARE ESTABLISHMENT,OPPD - Cost of Care - East Cambs - Over 65,East Cambs - O P Team - Care,Supported Living
Cambridgeshire County Council,08-Jul-22,51301816316,"-3,948.27",RADIS COMMUNITY CARE,CARE ESTABLISHMENT,OPPD - Cost of Care - East Cambs - Over 65,East Cambs - O P Team - Care,Supported Living
Cambridgeshire County Council,08-Jul-22,51301816316,"-3,948.27",RADIS COMMUNITY CARE,CARE ESTABLISHMENT,OPPD - Cost of Care - East Cambs - Over 65,East Cambs - O P Team - Care,Supported Living
Cambridgeshire County Council,08-Jul-22,51301816316,"-3,948.27",RADIS COMMUNITY CARE,CARE ESTABLISHMENT,OPPD - Cost of Care - East Cambs - Over 65,East Cambs - O P Team - Care,Supported Living
Cambridgeshire County Council,08-Jul-22,51301816316,"-3,948.27",RADIS COMMUNITY CARE,CARE ESTABLISHMENT,OPPD - Cost of Care - East Cambs - Over 65,East Cambs - O P Team - Care,Supported Living
Cambridgeshire County Council,08-Jul-22,51301816316,"-3,948.27",RADIS COMMUNITY CARE,CARE ESTABLISHMENT,OPPD - Cost of Care - East Cambs - Over 65,East Cambs - O P Team - Care,Supported Living
Cambridgeshire County Council,08-Jul-22,51301816316,"-3,948.27",RADIS COMMUNITY CARE,CARE ESTABLISHMENT,OPPD - Cost of Care - East Cambs - Over 65,East Cambs - O P Team - Care,Supported Living
Cambridgeshire County Council,08-Jul-22,51301816316,"-3,948.27",RADIS COMMUNITY CARE,CARE ESTABLISHMENT,OPPD - Cost of Care - East Cambs - Over 65,East Cambs - O P Team - Care,Supported Living
Cambridgeshire County Council,08-Jul-22,51301816316,"-3,948.27",RADIS COMMUNITY CARE,CARE ESTABLISHMENT,OPPD - Cost of Care - East Cambs - Over 65,East Cambs - O P Team - Care,Supported Living
Cambridgeshire County Council,08-Jul-22,51301816316,"-3,948.27",RADIS COMMUNITY CARE,CARE ESTABLISHMENT,OPPD - Cost of Care - East Cambs - Over 65,East Cambs - O P Team - Care,Supported Living
Cambridgeshire County Council,08-Jul-22,51301816316,"-3,948.27",RADIS COMMUNITY CARE,CARE ESTABLISHMENT,OPPD - Cost of Care - East Cambs - Over 65,East Cambs - O P Team - Care,Supported Living
Cambridgeshire County Council,08-Jul-22,51301816316,"-3,948.27",RADIS COMMUNITY CARE,CARE ESTABLISHMENT,OPPD - Cost of Care - East Cambs - Over 65,East Cambs - O P Team - Care,Supported Living
Cambridgeshire County Council,08-Jul-22,51301816316,"-3,948.27",RADIS COMMUNITY CARE,CARE ESTABLISHMENT,OPPD - Cost of Care - East Cambs - Over 65,East Cambs - O P Team - Care,Supported Living
Cambridgeshire County Council,08-Jul-22,51301816316,"-3,948.27",RADIS COMMUNITY CARE,CARE ESTABLISHMENT,OPPD - Cost of Care - East Cambs - Over 65,East Cambs - O P Team - Care,Supported Living
Cambridgeshire County Council,08-Jul-22,51301816316,"-3,948.27",RADIS COMMUNITY CARE,CARE ESTABLISHMENT,OPPD - Cost of Care - East Cambs - Over 65,East Cambs - O P Team - Care,Supported Living
Cambridgeshire County Council,08-Jul-22,51301816316,"-3,948.27",RADIS COMMUNITY CARE,CARE ESTABLISHMENT,OPPD - Cost of Care - East Cambs - Over 65,East Cambs - O P Team - Care,Supported Living
Cambridgeshire County Council,08-Jul-22,51301816316,"-3,948.27",RADIS COMMUNITY CARE,CARE ESTABLISHMENT,OPPD - Cost of Care - East Cambs - Over 65,East Cambs - O P Team - Care,Supported Living
Cambridgeshire County Council,08-Jul-22,51301816316,"-3,948.27",RADIS COMMUNITY CARE,CARE ESTABLISHMENT,OPPD - Cost of Care - East Cambs - Over 65,East Cambs - O P Team - Care,Supported Living
Cambridgeshire County Council,08-Jul-22,51301816316,"-3,948.27",RADIS COMMUNITY CARE,CARE ESTABLISHMENT,OPPD - Cost of Care - East Cambs - Over 65,East Cambs - O P Team - Care,Supported Living
Cambridgeshire County Council,08-Jul-22,51301816316,"-3,948.27",RADIS COMMUNITY CARE,CARE ESTABLISHMENT,OPPD - Cost of Care - East Cambs - Over 65,East Cambs - O P Team - Care,Supported Living
Cambridgeshire County Council,08-Jul-22,51301816316,"-3,948.27",RADIS COMMUNITY CARE,CARE ESTABLISHMENT,OPPD - Cost of Care - East Cambs - Over 65,East Cambs - O P Team - Care,Supported Living
Cambridgeshire County Council,08-Jul-22,51301816316,"-3,948.27",RADIS COMMUNITY CARE,CARE ESTABLISHMENT,OPPD - Cost of Care - East Cambs - Over 65,East Cambs - O P Team - Care,Supported Living
Cambridgeshire County Council,08-Jul-22,51301816316,"-3,948.27",RADIS COMMUNITY CARE,CARE ESTABLISHMENT,OPPD - Cost of Care - East Cambs - Over 65,East Cambs - O P Team - Care,Supported Living
Cambridgeshire County Council,08-Jul-22,51301816316,"-3,948.27",RADIS COMMUNITY CARE,CARE ESTABLISHMENT,OPPD - Cost of Care - East Cambs - Over 65,East Cambs - O P Team - Care,Supported Living
Cambridgeshire County Council,08-Jul-22,51301816316,"-3,948.27",RADIS COMMUNITY CARE,CARE ESTABLISHMENT,OPPD - Cost of Care - East Cambs - Over 65,East Cambs - O P Team - Care,Supported Living
Cambridgeshire County Council,08-Jul-22,51301816316,"-3,948.27",RADIS COMMUNITY CARE,CARE ESTABLISHMENT,OPPD - Cost of Care - East Cambs - Over 65,East Cambs - O P Team - Care,Supported Living
Cambridgeshire County Council,08-Jul-22,51301816316,"-3,948.27",RADIS COMMUNITY CARE,CARE ESTABLISHMENT,OPPD - Cost of Care - East Cambs - Over 65,East Cambs - O P Team - Care,Supported Living
Cambridgeshire County Council,08-Jul-22,51301816316,"-3,948.27",RADIS COMMUNITY CARE,CARE ESTABLISHMENT,OPPD - Cost of Care - East Cambs - Over 65,East Cambs - O P Team - Care,Supported Living
Cambridgeshire County Council,08-Jul-22,51301816316,"-3,948.27",RADIS COMMUNITY CARE,CARE ESTABLISHMENT,OPPD - Cost of Care - East Cambs - Over 65,East Cambs - O P Team - Care,Supported Living
Cambridgeshire County Council,08-Jul-22,51301816316,"-3,948.27",RADIS COMMUNITY CARE,CARE ESTABLISHMENT,OPPD - Cost of Care - East Cambs - Over 65,East Cambs - O P Team - Care,Supported Living
Cambridgeshire County Council,08-Jul-22,51301816316,"-3,948.27",RADIS COMMUNITY CARE,CARE ESTABLISHMENT,OPPD - Cost of Care - East Cambs - Over 65,East Cambs - O P Team - Care,Supported Living
Cambridgeshire County Council,08-Jul-22,51301816316,"-3,948.27",RADIS COMMUNITY CARE,CARE ESTABLISHMENT,OPPD - Cost of Care - East Cambs - Over 65,East Cambs - O P Team - Care,Supported Living
Cambridgeshire County Council,08-Jul-22,51301816316,"-3,948.27",RADIS COMMUNITY CARE,CARE ESTABLISHMENT,OPPD - Cost of Care - East Cambs - Over 65,East Cambs - O P Team - Care,Supported Living
Cambridgeshire County Council,08-Jul-22,51301816316,"-3,948.27",RADIS COMMUNITY CARE,CARE ESTABLISHMENT,OPPD - Cost of Care - East Cambs - Over 65,East Cambs - O P Team - Care,Supported Living
Cambridgeshire County Council,08-Jul-22,51301816316,"-3,948.27",RADIS COMMUNITY CARE,CARE ESTABLISHMENT,OPPD - Cost of Care - East Cambs - Over 65,East Cambs - O P Team - Care,Supported Living
Cambridgeshire County Council,08-Jul-22,51301816316,"-3,948.27",RADIS COMMUNITY CARE,CARE ESTABLISHMENT,OPPD - Cost of Care - East Cambs - Over 65,East Cambs - O P Team - Care,Supported Living
Cambridgeshire County Council,08-Jul-22,51301816316,"-3,948.27",RADIS COMMUNITY CARE,CARE ESTABLISHMENT,OPPD - Cost of Care - East Cambs - Over 65,East Cambs - O P Team - Care,Supported Living
Cambridgeshire County Council,08-Jul-22,51301816316,"-3,948.27",RADIS COMMUNITY CARE,CARE ESTABLISHMENT,OPPD - Cost of Care - East Cambs - Over 65,East Cambs - O P Team - Care,Supported Living
Cambridgeshire County Council,08-Jul-22,51301816316,"-3,948.27",RADIS COMMUNITY CARE,CARE ESTABLISHMENT,OPPD - Cost of Care - East Cambs - Over 65,East Cambs - O P Team - Care,Supported Living
Cambridgeshire County Council,08-Jul-22,51301816316,"-3,948.27",RADIS COMMUNITY CARE,CARE ESTABLISHMENT,OPPD - Cost of Care - East Cambs - Over 65,East Cambs - O P Team - Care,Supported Living
Cambridgeshire County Council,08-Jul-22,51301816316,"-3,948.27",RADIS COMMUNITY CARE,CARE ESTABLISHMENT,OPPD - Cost of Care - East Cambs - Over 65,East Cambs - O P Team - Care,Supported Living
Cambridgeshire County Council,08-Jul-22,51301816316,"-3,948.27",RADIS COMMUNITY CARE,CARE ESTABLISHMENT,OPPD - Cost of Care - East Cambs - Over 65,East Cambs - O P Team - Care,Supported Living
Cambridgeshire County Council,08-Jul-22,51301816316,"-3,948.27",RADIS COMMUNITY CARE,CARE ESTABLISHMENT,OPPD - Cost of Care - East Cambs - Over 65,East Cambs - O P Team - Care,Supported Living
Cambridgeshire County Council,08-Jul-22,51301816316,"-3,948.27",RADIS COMMUNITY CARE,CARE ESTABLISHMENT,OPPD - Cost of Care - East Cambs - Over 65,East Cambs - O P Team - Care,Supported Living
Cambridgeshire County Council,08-Jul-22,51301816316,"-3,948.27",RADIS COMMUNITY CARE,CARE ESTABLISHMENT,OPPD - Cost of Care - East Cambs - Over 65,East Cambs - O P Team - Care,Supported Living
Cambridgeshire County Council,08-Jul-22,51301816316,"-3,948.27",RADIS COMMUNITY CARE,CARE ESTABLISHMENT,OPPD - Cost of Care - East Cambs - Over 65,East Cambs - O P Team - Care,Supported Living
Cambridgeshire County Council,08-Jul-22,51301816316,"-3,948.27",RADIS COMMUNITY CARE,CARE ESTABLISHMENT,OPPD - Cost of Care - East Cambs - Over 65,East Cambs - O P Team - Care,Supported Living
Cambridgeshire County Council,08-Jul-22,51301816316,"-3,948.27",RADIS COMMUNITY CARE,CARE ESTABLISHMENT,OPPD - Cost of Care - East Cambs - Over 65,East Cambs - O P Team - Care,Supported Living
Cambridgeshire County Council,08-Jul-22,51301816316,"-3,948.27",RADIS COMMUNITY CARE,CARE ESTABLISHMENT,OPPD - Cost of Care - East Cambs - Over 65,East Cambs - O P Team - Care,Supported Living
Cambridgeshire County Council,08-Jul-22,51301816316,"-3,948.27",RADIS COMMUNITY CARE,CARE ESTABLISHMENT,OPPD - Cost of Care - East Cambs - Over 65,East Cambs - O P Team - Care,Supported Living
Cambridgeshire County Council,08-Jul-22,51301816316,"-3,948.27",RADIS COMMUNITY CARE,CARE ESTABLISHMENT,OPPD - Cost of Care - East Cambs - Over 65,East Cambs - O P Team - Care,Supported Living
Cambridgeshire County Council,08-Jul-22,51301816316,"-3,948.27",RADIS COMMUNITY CARE,CARE ESTABLISHMENT,OPPD - Cost of Care - East Cambs - Over 65,East Cambs - O P Team - Care,Supported Living
Cambridgeshire County Council,08-Jul-22,51301816316,"-3,948.27",RADIS COMMUNITY CARE,CARE ESTABLISHMENT,OPPD - Cost of Care - East Cambs - Over 65,East Cambs - O P Team - Care,Supported Living
Cambridgeshire County Council,08-Jul-22,51301816316,"-3,948.27",RADIS COMMUNITY CARE,CARE ESTABLISHMENT,OPPD - Cost of Care - East Cambs - Over 65,East Cambs - O P Team - Care,Supported Living
Cambridgeshire County Council,08-Jul-22,51301816316,"-3,948.27",RADIS COMMUNITY CARE,CARE ESTABLISHMENT,OPPD - Cost of Care - East Cambs - Over 65,East Cambs - O P Team - Care,Supported Living
Cambridgeshire County Council,08-Jul-22,51301816316,"-3,948.27",RADIS COMMUNITY CARE,CARE ESTABLISHMENT,OPPD - Cost of Care - East Cambs - Over 65,East Cambs - O P Team - Care,Supported Living
Cambridgeshire County Council,08-Jul-22,51301816315,"-3,828.50",RADIS COMMUNITY CARE,CARE ESTABLISHMENT,OPPD - Cost of Care - East Cambs - Over 65,East Cambs - O P Team - Care,Supported Living
Cambridgeshire County Council,08-Jul-22,51301816315,"-3,828.50",RADIS COMMUNITY CARE,CARE ESTABLISHMENT,OPPD - Cost of Care - East Cambs - Over 65,East Cambs - O P Team - Care,Supported Living
Cambridgeshire County Council,08-Jul-22,51301816315,"-3,828.50",RADIS COMMUNITY CARE,CARE ESTABLISHMENT,OPPD - Cost of Care - East Cambs - Over 65,East Cambs - O P Team - Care,Supported Living
Cambridgeshire County Council,08-Jul-22,51301816315,"-3,828.50",RADIS COMMUNITY CARE,CARE ESTABLISHMENT,OPPD - Cost of Care - East Cambs - Over 65,East Cambs - O P Team - Care,Supported Living
Cambridgeshire County Council,08-Jul-22,51301816315,"-3,828.50",RADIS COMMUNITY CARE,CARE ESTABLISHMENT,OPPD - Cost of Care - East Cambs - Over 65,East Cambs - O P Team - Care,Supported Living
Cambridgeshire County Council,08-Jul-22,51301816315,"-3,828.50",RADIS COMMUNITY CARE,CARE ESTABLISHMENT,OPPD - Cost of Care - East Cambs - Over 65,East Cambs - O P Team - Care,Supported Living
Cambridgeshire County Council,08-Jul-22,51301816315,"-3,828.50",RADIS COMMUNITY CARE,CARE ESTABLISHMENT,OPPD - Cost of Care - East Cambs - Over 65,East Cambs - O P Team - Care,Supported Living
Cambridgeshire County Council,08-Jul-22,51301816315,"-3,828.50",RADIS COMMUNITY CARE,CARE ESTABLISHMENT,OPPD - Cost of Care - East Cambs - Over 65,East Cambs - O P Team - Care,Supported Living
Cambridgeshire County Council,08-Jul-22,51301816315,"-3,828.50",RADIS COMMUNITY CARE,CARE ESTABLISHMENT,OPPD - Cost of Care - East Cambs - Over 65,East Cambs - O P Team - Care,Supported Living
Cambridgeshire County Council,08-Jul-22,51301816315,"-3,828.50",RADIS COMMUNITY CARE,CARE ESTABLISHMENT,OPPD - Cost of Care - East Cambs - Over 65,East Cambs - O P Team - Care,Supported Living
Cambridgeshire County Council,08-Jul-22,51301816315,"-3,828.50",RADIS COMMUNITY CARE,CARE ESTABLISHMENT,OPPD - Cost of Care - East Cambs - Over 65,East Cambs - O P Team - Care,Supported Living
Cambridgeshire County Council,08-Jul-22,51301816315,"-3,828.50",RADIS COMMUNITY CARE,CARE ESTABLISHMENT,OPPD - Cost of Care - East Cambs - Over 65,East Cambs - O P Team - Care,Supported Living
Cambridgeshire County Council,08-Jul-22,51301816315,"-3,828.50",RADIS COMMUNITY CARE,CARE ESTABLISHMENT,OPPD - Cost of Care - East Cambs - Over 65,East Cambs - O P Team - Care,Supported Living
Cambridgeshire County Council,08-Jul-22,51301816315,"-3,828.50",RADIS COMMUNITY CARE,CARE ESTABLISHMENT,OPPD - Cost of Care - East Cambs - Over 65,East Cambs - O P Team - Care,Supported Living
Cambridgeshire County Council,08-Jul-22,51301816315,"-3,828.50",RADIS COMMUNITY CARE,CARE ESTABLISHMENT,OPPD - Cost of Care - East Cambs - Over 65,East Cambs - O P Team - Care,Supported Living
Cambridgeshire County Council,08-Jul-22,51301816315,"-3,828.50",RADIS COMMUNITY CARE,CARE ESTABLISHMENT,OPPD - Cost of Care - East Cambs - Over 65,East Cambs - O P Team - Care,Supported Living
Cambridgeshire County Council,08-Jul-22,51301816315,"-3,828.50",RADIS COMMUNITY CARE,CARE ESTABLISHMENT,OPPD - Cost of Care - East Cambs - Over 65,East Cambs - O P Team - Care,Supported Living
Cambridgeshire County Council,08-Jul-22,51301816315,"-3,828.50",RADIS COMMUNITY CARE,CARE ESTABLISHMENT,OPPD - Cost of Care - East Cambs - Over 65,East Cambs - O P Team - Care,Supported Living
Cambridgeshire County Council,08-Jul-22,51301816315,"-3,828.50",RADIS COMMUNITY CARE,CARE ESTABLISHMENT,OPPD - Cost of Care - East Cambs - Over 65,East Cambs - O P Team - Care,Supported Living
Cambridgeshire County Council,08-Jul-22,51301816315,"-3,828.50",RADIS COMMUNITY CARE,CARE ESTABLISHMENT,OPPD - Cost of Care - East Cambs - Over 65,East Cambs - O P Team - Care,Supported Living
Cambridgeshire County Council,08-Jul-22,51301816315,"-3,828.50",RADIS COMMUNITY CARE,CARE ESTABLISHMENT,OPPD - Cost of Care - East Cambs - Over 65,East Cambs - O P Team - Care,Supported Living
Cambridgeshire County Council,08-Jul-22,51301816315,"-3,828.50",RADIS COMMUNITY CARE,CARE ESTABLISHMENT,OPPD - Cost of Care - East Cambs - Over 65,East Cambs - O P Team - Care,Supported Living
Cambridgeshire County Council,08-Jul-22,51301816315,"-3,828.50",RADIS COMMUNITY CARE,CARE ESTABLISHMENT,OPPD - Cost of Care - East Cambs - Over 65,East Cambs - O P Team - Care,Supported Living
Cambridgeshire County Council,08-Jul-22,51301816315,"-3,828.50",RADIS COMMUNITY CARE,CARE ESTABLISHMENT,OPPD - Cost of Care - East Cambs - Over 65,East Cambs - O P Team - Care,Supported Living
Cambridgeshire County Council,08-Jul-22,51301816315,"-3,828.50",RADIS COMMUNITY CARE,CARE ESTABLISHMENT,OPPD - Cost of Care - East Cambs - Over 65,East Cambs - O P Team - Care,Supported Living
Cambridgeshire County Council,08-Jul-22,51301816315,"-3,828.50",RADIS COMMUNITY CARE,CARE ESTABLISHMENT,OPPD - Cost of Care - East Cambs - Over 65,East Cambs - O P Team - Care,Supported Living
Cambridgeshire County Council,08-Jul-22,51301816315,"-3,828.50",RADIS COMMUNITY CARE,CARE ESTABLISHMENT,OPPD - Cost of Care - East Cambs - Over 65,East Cambs - O P Team - Care,Supported Living
Cambridgeshire County Council,08-Jul-22,51301816315,"-3,828.50",RADIS COMMUNITY CARE,CARE ESTABLISHMENT,OPPD - Cost of Care - East Cambs - Over 65,East Cambs - O P Team - Care,Supported Living
Cambridgeshire County Council,08-Jul-22,51301816315,"-3,828.50",RADIS COMMUNITY CARE,CARE ESTABLISHMENT,OPPD - Cost of Care - East Cambs - Over 65,East Cambs - O P Team - Care,Supported Living
Cambridgeshire County Council,08-Jul-22,51301816315,"-3,828.50",RADIS COMMUNITY CARE,CARE ESTABLISHMENT,OPPD - Cost of Care - East Cambs - Over 65,East Cambs - O P Team - Care,Supported Living
Cambridgeshire County Council,08-Jul-22,51301816315,"-3,828.50",RADIS COMMUNITY CARE,CARE ESTABLISHMENT,OPPD - Cost of Care - East Cambs - Over 65,East Cambs - O P Team - Care,Supported Living
Cambridgeshire County Council,08-Jul-22,51301816315,"-3,828.50",RADIS COMMUNITY CARE,CARE ESTABLISHMENT,OPPD - Cost of Care - East Cambs - Over 65,East Cambs - O P Team - Care,Supported Living
Cambridgeshire County Council,08-Jul-22,51301816315,"-3,828.50",RADIS COMMUNITY CARE,CARE ESTABLISHMENT,OPPD - Cost of Care - East Cambs - Over 65,East Cambs - O P Team - Care,Supported Living
Cambridgeshire County Council,08-Jul-22,51301816315,"-3,828.50",RADIS COMMUNITY CARE,CARE ESTABLISHMENT,OPPD - Cost of Care - East Cambs - Over 65,East Cambs - O P Team - Care,Supported Living
Cambridgeshire County Council,08-Jul-22,51301816315,"-3,828.50",RADIS COMMUNITY CARE,CARE ESTABLISHMENT,OPPD - Cost of Care - East Cambs - Over 65,East Cambs - O P Team - Care,Supported Living
Cambridgeshire County Council,08-Jul-22,51301816315,"-3,828.50",RADIS COMMUNITY CARE,CARE ESTABLISHMENT,OPPD - Cost of Care - East Cambs - Over 65,East Cambs - O P Team - Care,Supported Living
Cambridgeshire County Council,08-Jul-22,51301816315,"-3,828.50",RADIS COMMUNITY CARE,CARE ESTABLISHMENT,OPPD - Cost of Care - East Cambs - Over 65,East Cambs - O P Team - Care,Supported Living
Cambridgeshire County Council,08-Jul-22,51301816315,"-3,828.50",RADIS COMMUNITY CARE,CARE ESTABLISHMENT,OPPD - Cost of Care - East Cambs - Over 65,East Cambs - O P Team - Care,Supported Living
Cambridgeshire County Council,08-Jul-22,51301816315,"-3,828.50",RADIS COMMUNITY CARE,CARE ESTABLISHMENT,OPPD - Cost of Care - East Cambs - Over 65,East Cambs - O P Team - Care,Supported Living
Cambridgeshire County Council,08-Jul-22,51301816315,"-3,828.50",RADIS COMMUNITY CARE,CARE ESTABLISHMENT,OPPD - Cost of Care - East Cambs - Over 65,East Cambs - O P Team - Care,Supported Living
Cambridgeshire County Council,08-Jul-22,51301816315,"-3,828.50",RADIS COMMUNITY CARE,CARE ESTABLISHMENT,OPPD - Cost of Care - East Cambs - Over 65,East Cambs - O P Team - Care,Supported Living
Cambridgeshire County Council,08-Jul-22,51301816315,"-3,828.50",RADIS COMMUNITY CARE,CARE ESTABLISHMENT,OPPD - Cost of Care - East Cambs - Over 65,East Cambs - O P Team - Care,Supported Living
Cambridgeshire County Council,08-Jul-22,51301816315,"-3,828.50",RADIS COMMUNITY CARE,CARE ESTABLISHMENT,OPPD - Cost of Care - East Cambs - Over 65,East Cambs - O P Team - Care,Supported Living
Cambridgeshire County Council,08-Jul-22,51301816315,"-3,828.50",RADIS COMMUNITY CARE,CARE ESTABLISHMENT,OPPD - Cost of Care - East Cambs - Over 65,East Cambs - O P Team - Care,Supported Living
Cambridgeshire County Council,08-Jul-22,51301816315,"-3,828.50",RADIS COMMUNITY CARE,CARE ESTABLISHMENT,OPPD - Cost of Care - East Cambs - Over 65,East Cambs - O P Team - Care,Supported Living
Cambridgeshire County Council,08-Jul-22,51301816315,"-3,828.50",RADIS COMMUNITY CARE,CARE ESTABLISHMENT,OPPD - Cost of Care - East Cambs - Over 65,East Cambs - O P Team - Care,Supported Living
Cambridgeshire County Council,08-Jul-22,51301816315,"-3,828.50",RADIS COMMUNITY CARE,CARE ESTABLISHMENT,OPPD - Cost of Care - East Cambs - Over 65,East Cambs - O P Team - Care,Supported Living
Cambridgeshire County Council,08-Jul-22,51301816315,"-3,828.50",RADIS COMMUNITY CARE,CARE ESTABLISHMENT,OPPD - Cost of Care - East Cambs - Over 65,East Cambs - O P Team - Care,Supported Living
Cambridgeshire County Council,08-Jul-22,51301816315,"-3,828.50",RADIS COMMUNITY CARE,CARE ESTABLISHMENT,OPPD - Cost of Care - East Cambs - Over 65,East Cambs - O P Team - Care,Supported Living
Cambridgeshire County Council,08-Jul-22,51301816315,"-3,828.50",RADIS COMMUNITY CARE,CARE ESTABLISHMENT,OPPD - Cost of Care - East Cambs - Over 65,East Cambs - O P Team - Care,Supported Living
Cambridgeshire County Council,08-Jul-22,51301816315,"-3,828.50",RADIS COMMUNITY CARE,CARE ESTABLISHMENT,OPPD - Cost of Care - East Cambs - Over 65,East Cambs - O P Team - Care,Supported Living
Cambridgeshire County Council,08-Jul-22,51301816315,"-3,828.50",RADIS COMMUNITY CARE,CARE ESTABLISHMENT,OPPD - Cost of Care - East Cambs - Over 65,East Cambs - O P Team - Care,Supported Living
Cambridgeshire County Council,08-Jul-22,51301816315,"-3,828.50",RADIS COMMUNITY CARE,CARE ESTABLISHMENT,OPPD - Cost of Care - East Cambs - Over 65,East Cambs - O P Team - Care,Supported Living
Cambridgeshire County Council,08-Jul-22,51301816315,"-3,828.50",RADIS COMMUNITY CARE,CARE ESTABLISHMENT,OPPD - Cost of Care - East Cambs - Over 65,East Cambs - O P Team - Care,Supported Living
Cambridgeshire County Council,08-Jul-22,51301816315,"-3,828.50",RADIS COMMUNITY CARE,CARE ESTABLISHMENT,OPPD - Cost of Care - East Cambs - Over 65,East Cambs - O P Team - Care,Supported Living
Cambridgeshire County Council,08-Jul-22,51301816315,"-3,828.50",RADIS COMMUNITY CARE,CARE ESTABLISHMENT,OPPD - Cost of Care - East Cambs - Over 65,East Cambs - O P Team - Care,Supported Living
Cambridgeshire County Council,08-Jul-22,51301816315,"-3,828.50",RADIS COMMUNITY CARE,CARE ESTABLISHMENT,OPPD - Cost of Care - East Cambs - Over 65,East Cambs - O P Team - Care,Supported Living
Cambridgeshire County Council,08-Jul-22,51301816315,"-3,828.50",RADIS COMMUNITY CARE,CARE ESTABLISHMENT,OPPD - Cost of Care - East Cambs - Over 65,East Cambs - O P Team - Care,Supported Living
Cambridgeshire County Council,08-Jul-22,51301816315,"-3,828.50",RADIS COMMUNITY CARE,CARE ESTABLISHMENT,OPPD - Cost of Care - East Cambs - Over 65,East Cambs - O P Team - Care,Supported Living
Cambridgeshire County Council,08-Jul-22,51301816315,"-3,828.50",RADIS COMMUNITY CARE,CARE ESTABLISHMENT,OPPD - Cost of Care - East Cambs - Over 65,East Cambs - O P Team - Care,Supported Living
Cambridgeshire County Council,08-Jul-22,51301816315,"-3,828.50",RADIS COMMUNITY CARE,CARE ESTABLISHMENT,OPPD - Cost of Care - East Cambs - Over 65,East Cambs - O P Team - Care,Supported Living
Cambridgeshire County Council,08-Jul-22,51301816315,"-3,828.50",RADIS COMMUNITY CARE,CARE ESTABLISHMENT,OPPD - Cost of Care - East Cambs - Over 65,East Cambs - O P Team - Care,Supported Living
Cambridgeshire County Council,08-Jul-22,51301816315,"-3,828.50",RADIS COMMUNITY CARE,CARE ESTABLISHMENT,OPPD - Cost of Care - East Cambs - Over 65,East Cambs - O P Team - Care,Supported Living
Cambridgeshire County Council,08-Jul-22,51301816342,"-3,726.00",THE GABLES SPECIALIST NURSING HOME,CARE ESTABLISHMENT,OPPD - Cost of Care - Fenland Blocks,Fenland - Long term blocks,Nursing Care
Cambridgeshire County Council,08-Jul-22,51301816342,"-3,726.00",THE GABLES SPECIALIST NURSING HOME,CARE ESTABLISHMENT,OPPD - Cost of Care - Fenland Blocks,Fenland - Long term blocks,Nursing Care
Cambridgeshire County Council,08-Jul-22,51301816342,"-3,726.00",THE GABLES SPECIALIST NURSING HOME,CARE ESTABLISHMENT,OPPD - Cost of Care - Fenland Blocks,Fenland - Long term blocks,Nursing Care
Cambridgeshire County Council,08-Jul-22,51301816342,"-3,726.00",THE GABLES SPECIALIST NURSING HOME,CARE ESTABLISHMENT,OPPD - Cost of Care - Fenland Blocks,Fenland - Long term blocks,Nursing Care
Cambridgeshire County Council,08-Jul-22,51301816342,"-3,726.00",THE GABLES SPECIALIST NURSING HOME,CARE ESTABLISHMENT,OPPD - Cost of Care - Fenland Blocks,Fenland - Long term blocks,Nursing Care
Cambridgeshire County Council,08-Jul-22,51301816342,"-3,726.00",THE GABLES SPECIALIST NURSING HOME,CARE ESTABLISHMENT,OPPD - Cost of Care - Fenland Blocks,Fenland - Long term blocks,Nursing Care
Cambridgeshire County Council,08-Jul-22,51301816323,"-3,681.64",THE CAMBRIDGE NURSING CENTRE,CARE ESTABLISHMENT,OPPD - Cost of Care - City South - Over 65,Older People - City & South - Care,Nursing Care
Cambridgeshire County Council,13-Jul-22,51301818891,"-3,647.66",AFFINITY TRUST,CARE ESTABLISHMENT,LD - Fenland Locality - Cost of Care,LD - Fenland  - Care,Supported Living
Cambridgeshire County Council,13-Jul-22,51301818891,"-3,647.66",AFFINITY TRUST,CARE ESTABLISHMENT,LD - Fenland Locality - Cost of Care,LD - Fenland  - Care,Supported Living
Cambridgeshire County Council,13-Jul-22,51301818891,"-3,647.66",AFFINITY TRUST,CARE ESTABLISHMENT,LD - Fenland Locality - Cost of Care,LD - Fenland  - Care,Supported Living
Cambridgeshire County Council,13-Jul-22,51301818891,"-3,647.66",AFFINITY TRUST,CARE ESTABLISHMENT,LD - Fenland Locality - Cost of Care,LD - Fenland  - Care,Supported Living
Cambridgeshire County Council,13-Jul-22,51301818891,"-3,647.66",AFFINITY TRUST,CARE ESTABLISHMENT,LD - Fenland Locality - Cost of Care,LD - Fenland  - Care,Supported Living
Cambridgeshire County Council,13-Jul-22,51301818891,"-3,647.66",AFFINITY TRUST,CARE ESTABLISHMENT,LD - Fenland Locality - Cost of Care,LD - Fenland  - Care,Supported Living
Cambridgeshire County Council,13-Jul-22,51301818891,"-3,647.66",AFFINITY TRUST,CARE ESTABLISHMENT,LD - Fenland Locality - Cost of Care,LD - Fenland  - Care,Supported Living
Cambridgeshire County Council,13-Jul-22,51301818891,"-3,647.66",AFFINITY TRUST,CARE ESTABLISHMENT,LD - Fenland Locality - Cost of Care,LD - Fenland  - Care,Supported Living
Cambridgeshire County Council,13-Jul-22,51301818891,"-3,647.66",AFFINITY TRUST,CARE ESTABLISHMENT,LD - Fenland Locality - Cost of Care,LD - Fenland  - Care,Supported Living
Cambridgeshire County Council,13-Jul-22,51301818891,"-3,647.66",AFFINITY TRUST,CARE ESTABLISHMENT,LD - Fenland Locality - Cost of Care,LD - Fenland  - Care,Supported Living
Cambridgeshire County Council,13-Jul-22,51301818891,"-3,647.66",AFFINITY TRUST,CARE ESTABLISHMENT,LD - Fenland Locality - Cost of Care,LD - Fenland  - Care,Supported Living
Cambridgeshire County Council,08-Jul-22,51301816343,"-3,624.82",RADIS COMMUNITY CARE,CARE ESTABLISHMENT,OPPD - Cost of Care - Huntingdon - Over 65,Hunts OP Team - Care,Supported Living
Cambridgeshire County Council,08-Jul-22,51301816343,"-3,624.82",RADIS COMMUNITY CARE,CARE ESTABLISHMENT,OPPD - Cost of Care - Huntingdon - Over 65,Hunts OP Team - Care,Supported Living
Cambridgeshire County Council,08-Jul-22,51301816343,"-3,624.82",RADIS COMMUNITY CARE,CARE ESTABLISHMENT,OPPD - Cost of Care - Huntingdon - Over 65,Hunts OP Team - Care,Supported Living
Cambridgeshire County Council,08-Jul-22,51301816343,"-3,624.82",RADIS COMMUNITY CARE,CARE ESTABLISHMENT,OPPD - Cost of Care - Huntingdon - Over 65,Hunts OP Team - Care,Supported Living
Cambridgeshire County Council,08-Jul-22,51301816343,"-3,624.82",RADIS COMMUNITY CARE,CARE ESTABLISHMENT,OPPD - Cost of Care - Huntingdon - Over 65,Hunts OP Team - Care,Supported Living
Cambridgeshire County Council,08-Jul-22,51301816343,"-3,624.82",RADIS COMMUNITY CARE,CARE ESTABLISHMENT,OPPD - Cost of Care - Huntingdon - Over 65,Hunts OP Team - Care,Supported Living
Cambridgeshire County Council,08-Jul-22,51301816343,"-3,624.82",RADIS COMMUNITY CARE,CARE ESTABLISHMENT,OPPD - Cost of Care - Huntingdon - Over 65,Hunts OP Team - Care,Supported Living
Cambridgeshire County Council,08-Jul-22,51301816343,"-3,624.82",RADIS COMMUNITY CARE,CARE ESTABLISHMENT,OPPD - Cost of Care - Huntingdon - Over 65,Hunts OP Team - Care,Supported Living
Cambridgeshire County Council,08-Jul-22,51301816343,"-3,624.82",RADIS COMMUNITY CARE,CARE ESTABLISHMENT,OPPD - Cost of Care - Huntingdon - Over 65,Hunts OP Team - Care,Supported Living
Cambridgeshire County Council,08-Jul-22,51301816343,"-3,624.82",RADIS COMMUNITY CARE,CARE ESTABLISHMENT,OPPD - Cost of Care - Huntingdon - Over 65,Hunts OP Team - Care,Supported Living
Cambridgeshire County Council,08-Jul-22,51301816343,"-3,624.82",RADIS COMMUNITY CARE,CARE ESTABLISHMENT,OPPD - Cost of Care - Huntingdon - Over 65,Hunts OP Team - Care,Supported Living
Cambridgeshire County Council,08-Jul-22,51301816342,"-3,618.14",THE GABLES SPECIALIST NURSING HOME,CARE ESTABLISHMENT,OPPD - Cost of Care - Fenland Blocks,Fenland - Long term blocks,Nursing Care
Cambridgeshire County Council,20-Jul-22,51301821600,"-3,591.23",AURORA ORCHARD MANOR,CARE ESTABLISHMENT,LD - South Locality - Cost of Care,LD - South Cambs - Special Needs,Residential Care
Cambridgeshire County Council,20-Jul-22,51301821600,"-3,591.23",AURORA ORCHARD MANOR,CARE ESTABLISHMENT,LD - South Locality - Cost of Care,LD - South Cambs - Special Needs,Residential Care
Cambridgeshire County Council,20-Jul-22,51301821600,"-3,591.23",AURORA ORCHARD MANOR,CARE ESTABLISHMENT,LD - South Locality - Cost of Care,LD - South Cambs - Special Needs,Residential Care
Cambridgeshire County Council,20-Jul-22,51301821600,"-3,591.23",AURORA ORCHARD MANOR,CARE ESTABLISHMENT,LD - South Locality - Cost of Care,LD - South Cambs - Special Needs,Residential Care
Cambridgeshire County Council,20-Jul-22,51301821707,"-3,591.23",AURORA ORCHARD MANOR,CARE ESTABLISHMENT,LD - South Locality - Cost of Care,LD - South Cambs - Special Needs,Residential Care
Cambridgeshire County Council,20-Jul-22,51301821707,"-3,591.23",AURORA ORCHARD MANOR,CARE ESTABLISHMENT,LD - South Locality - Cost of Care,LD - South Cambs - Special Needs,Residential Care
Cambridgeshire County Council,20-Jul-22,51301821707,"-3,591.23",AURORA ORCHARD MANOR,CARE ESTABLISHMENT,LD - South Locality - Cost of Care,LD - South Cambs - Special Needs,Residential Care
Cambridgeshire County Council,20-Jul-22,51301821707,"-3,591.23",AURORA ORCHARD MANOR,CARE ESTABLISHMENT,LD - South Locality - Cost of Care,LD - South Cambs - Special Needs,Residential Care
Cambridgeshire County Council,20-Jul-22,51301821707,"-3,591.23",AURORA ORCHARD MANOR,CARE ESTABLISHMENT,LD - South Locality - Cost of Care,LD - South Cambs - Special Needs,Residential Care
Cambridgeshire County Council,20-Jul-22,51301821707,"-3,591.23",AURORA ORCHARD MANOR,CARE ESTABLISHMENT,LD - South Locality - Cost of Care,LD - South Cambs - Special Needs,Residential Care
Cambridgeshire County Council,20-Jul-22,51301821707,"-3,591.23",AURORA ORCHARD MANOR,CARE ESTABLISHMENT,LD - South Locality - Cost of Care,LD - South Cambs - Special Needs,Residential Care
Cambridgeshire County Council,20-Jul-22,51301821707,"-3,591.23",AURORA ORCHARD MANOR,CARE ESTABLISHMENT,LD - South Locality - Cost of Care,LD - South Cambs - Special Needs,Residential Care
Cambridgeshire County Council,20-Jul-22,51301821707,"-3,591.23",AURORA ORCHARD MANOR,CARE ESTABLISHMENT,LD - South Locality - Cost of Care,LD - South Cambs - Special Needs,Residential Care
Cambridgeshire County Council,20-Jul-22,51301821707,"-3,591.23",AURORA ORCHARD MANOR,CARE ESTABLISHMENT,LD - South Locality - Cost of Care,LD - South Cambs - Special Needs,Residential Care
Cambridgeshire County Council,20-Jul-22,51301821707,"-3,591.23",AURORA ORCHARD MANOR,CARE ESTABLISHMENT,LD - South Locality - Cost of Care,LD - South Cambs - Special Needs,Residential Care
Cambridgeshire County Council,20-Jul-22,51301821707,"-3,591.23",AURORA ORCHARD MANOR,CARE ESTABLISHMENT,LD - South Locality - Cost of Care,LD - South Cambs - Special Needs,Residential Care
Cambridgeshire County Council,20-Jul-22,51301821707,"-3,591.23",AURORA ORCHARD MANOR,CARE ESTABLISHMENT,LD - South Locality - Cost of Care,LD - South Cambs - Special Needs,Residential Care
Cambridgeshire County Council,20-Jul-22,51301821707,"-3,591.23",AURORA ORCHARD MANOR,CARE ESTABLISHMENT,LD - South Locality - Cost of Care,LD - South Cambs - Special Needs,Residential Care
Cambridgeshire County Council,20-Jul-22,51301821707,"-3,591.23",AURORA ORCHARD MANOR,CARE ESTABLISHMENT,LD - South Locality - Cost of Care,LD - South Cambs - Special Needs,Residential Care
Cambridgeshire County Council,08-Jul-22,51301816342,"-3,575.00",THE GABLES SPECIALIST NURSING HOME,CARE ESTABLISHMENT,OPPD - Cost of Care - Fenland Blocks,Fenland - Long term blocks,Nursing Care
Cambridgeshire County Council,08-Jul-22,51301816342,"-3,575.00",THE GABLES SPECIALIST NURSING HOME,CARE ESTABLISHMENT,OPPD - Cost of Care - Fenland Blocks,Fenland - Long term blocks,Nursing Care
Cambridgeshire County Council,08-Jul-22,51301816342,"-3,575.00",THE GABLES SPECIALIST NURSING HOME,CARE ESTABLISHMENT,OPPD - Cost of Care - Fenland Blocks,Fenland - Long term blocks,Nursing Care
Cambridgeshire County Council,08-Jul-22,51301816342,"-3,575.00",THE GABLES SPECIALIST NURSING HOME,CARE ESTABLISHMENT,OPPD - Cost of Care - Fenland Blocks,Fenland - Long term blocks,Nursing Care
Cambridgeshire County Council,08-Jul-22,51301816250,"-3,569.39",SOCIAL CARE SOLUTIONS LTD,CARE ESTABLISHMENT,LD - Young Adults Team,LD - Young Adults - Special Needs,Supported Living
Cambridgeshire County Council,08-Jul-22,51301816250,"-3,569.39",SOCIAL CARE SOLUTIONS LTD,CARE ESTABLISHMENT,LD - Young Adults Team,LD - Young Adults - Special Needs,Supported Living
Cambridgeshire County Council,08-Jul-22,51301816250,"-3,569.39",SOCIAL CARE SOLUTIONS LTD,CARE ESTABLISHMENT,LD - Young Adults Team,LD - Young Adults - Special Needs,Supported Living
Cambridgeshire County Council,08-Jul-22,51301816250,"-3,569.39",SOCIAL CARE SOLUTIONS LTD,CARE ESTABLISHMENT,LD - Young Adults Team,LD - Young Adults - Special Needs,Supported Living
Cambridgeshire County Council,08-Jul-22,51301816250,"-3,569.39",SOCIAL CARE SOLUTIONS LTD,CARE ESTABLISHMENT,LD - Young Adults Team,LD - Young Adults - Special Needs,Supported Living
Cambridgeshire County Council,08-Jul-22,51301816250,"-3,569.39",SOCIAL CARE SOLUTIONS LTD,CARE ESTABLISHMENT,LD - Young Adults Team,LD - Young Adults - Special Needs,Supported Living
Cambridgeshire County Council,08-Jul-22,51301816250,"-3,569.39",SOCIAL CARE SOLUTIONS LTD,CARE ESTABLISHMENT,LD - Young Adults Team,LD - Young Adults - Special Needs,Supported Living
Cambridgeshire County Council,08-Jul-22,51301816250,"-3,569.39",SOCIAL CARE SOLUTIONS LTD,CARE ESTABLISHMENT,LD - Young Adults Team,LD - Young Adults - Special Needs,Supported Living
Cambridgeshire County Council,08-Jul-22,51301816250,"-3,569.39",SOCIAL CARE SOLUTIONS LTD,CARE ESTABLISHMENT,LD - Young Adults Team,LD - Young Adults - Special Needs,Supported Living
Cambridgeshire County Council,08-Jul-22,51301816250,"-3,569.39",SOCIAL CARE SOLUTIONS LTD,CARE ESTABLISHMENT,LD - Young Adults Team,LD - Young Adults - Special Needs,Supported Living
Cambridgeshire County Council,08-Jul-22,51301816250,"-3,569.39",SOCIAL CARE SOLUTIONS LTD,CARE ESTABLISHMENT,LD - Young Adults Team,LD - Young Adults - Special Needs,Supported Living
Cambridgeshire County Council,08-Jul-22,51301816349,"-3,436.20",BUCHAN HEALTHCARE LTD,CARE ESTABLISHMENT,OPPD - Cost of Care - City South Blocks,City and South - Long term blocks,Nursing Care
Cambridgeshire County Council,08-Jul-22,51301815931,"-3,340.85",CONSENSUS COMMUNITY SUPPORT LTD,CARE ESTABLISHMENT,LD - Young Adults Team,LD - Young Adults - Care,Residential Care
Cambridgeshire County Council,08-Jul-22,51301815931,"-3,340.85",CONSENSUS COMMUNITY SUPPORT LTD,CARE ESTABLISHMENT,LD - Young Adults Team,LD - Young Adults - Care,Residential Care
Cambridgeshire County Council,08-Jul-22,51301815931,"-3,340.85",CONSENSUS COMMUNITY SUPPORT LTD,CARE ESTABLISHMENT,LD - Young Adults Team,LD - Young Adults - Care,Residential Care
Cambridgeshire County Council,08-Jul-22,51301815931,"-3,340.85",CONSENSUS COMMUNITY SUPPORT LTD,CARE ESTABLISHMENT,LD - Young Adults Team,LD - Young Adults - Care,Residential Care
Cambridgeshire County Council,08-Jul-22,51301815931,"-3,340.85",CONSENSUS COMMUNITY SUPPORT LTD,CARE ESTABLISHMENT,LD - Young Adults Team,LD - Young Adults - Care,Residential Care
Cambridgeshire County Council,08-Jul-22,51301815931,"-3,340.85",CONSENSUS COMMUNITY SUPPORT LTD,CARE ESTABLISHMENT,LD - Young Adults Team,LD - Young Adults - Care,Residential Care
Cambridgeshire County Council,08-Jul-22,51301815931,"-3,340.85",CONSENSUS COMMUNITY SUPPORT LTD,CARE ESTABLISHMENT,LD - Young Adults Team,LD - Young Adults - Care,Residential Care
Cambridgeshire County Council,08-Jul-22,51301815931,"-3,340.85",CONSENSUS COMMUNITY SUPPORT LTD,CARE ESTABLISHMENT,LD - Young Adults Team,LD - Young Adults - Care,Residential Care
Cambridgeshire County Council,08-Jul-22,51301815931,"-3,340.85",CONSENSUS COMMUNITY SUPPORT LTD,CARE ESTABLISHMENT,LD - Young Adults Team,LD - Young Adults - Care,Residential Care
Cambridgeshire County Council,08-Jul-22,51301815931,"-3,340.85",CONSENSUS COMMUNITY SUPPORT LTD,CARE ESTABLISHMENT,LD - Young Adults Team,LD - Young Adults - Care,Residential Care
Cambridgeshire County Council,08-Jul-22,51301815931,"-3,340.85",CONSENSUS COMMUNITY SUPPORT LTD,CARE ESTABLISHMENT,LD - Young Adults Team,LD - Young Adults - Care,Residential Care
Cambridgeshire County Council,08-Jul-22,51301815513,"-3,331.22",CONSENSUS COMMUNITY SUPPORT LTD,CARE ESTABLISHMENT,LD - Young Adults Team,LD - Young Adults - Special Needs,Supported Living
Cambridgeshire County Council,08-Jul-22,51301815513,"-3,331.22",CONSENSUS COMMUNITY SUPPORT LTD,CARE ESTABLISHMENT,LD - Young Adults Team,LD - Young Adults - Special Needs,Supported Living
Cambridgeshire County Council,08-Jul-22,51301815513,"-3,331.22",CONSENSUS COMMUNITY SUPPORT LTD,CARE ESTABLISHMENT,LD - Young Adults Team,LD - Young Adults - Special Needs,Supported Living
Cambridgeshire County Council,08-Jul-22,51301815513,"-3,331.22",CONSENSUS COMMUNITY SUPPORT LTD,CARE ESTABLISHMENT,LD - Young Adults Team,LD - Young Adults - Special Needs,Supported Living
Cambridgeshire County Council,08-Jul-22,51301815513,"-3,331.22",CONSENSUS COMMUNITY SUPPORT LTD,CARE ESTABLISHMENT,LD - Young Adults Team,LD - Young Adults - Special Needs,Supported Living
Cambridgeshire County Council,08-Jul-22,51301815513,"-3,331.22",CONSENSUS COMMUNITY SUPPORT LTD,CARE ESTABLISHMENT,LD - Young Adults Team,LD - Young Adults - Special Needs,Supported Living
Cambridgeshire County Council,08-Jul-22,51301815513,"-3,331.22",CONSENSUS COMMUNITY SUPPORT LTD,CARE ESTABLISHMENT,LD - Young Adults Team,LD - Young Adults - Special Needs,Supported Living
Cambridgeshire County Council,08-Jul-22,51301815513,"-3,331.22",CONSENSUS COMMUNITY SUPPORT LTD,CARE ESTABLISHMENT,LD - Young Adults Team,LD - Young Adults - Special Needs,Supported Living
Cambridgeshire County Council,08-Jul-22,51301815513,"-3,331.22",CONSENSUS COMMUNITY SUPPORT LTD,CARE ESTABLISHMENT,LD - Young Adults Team,LD - Young Adults - Special Needs,Supported Living
Cambridgeshire County Council,08-Jul-22,51301815513,"-3,331.22",CONSENSUS COMMUNITY SUPPORT LTD,CARE ESTABLISHMENT,LD - Young Adults Team,LD - Young Adults - Special Needs,Supported Living
Cambridgeshire County Council,08-Jul-22,51301815513,"-3,331.22",CONSENSUS COMMUNITY SUPPORT LTD,CARE ESTABLISHMENT,LD - Young Adults Team,LD - Young Adults - Special Needs,Supported Living
Cambridgeshire County Council,08-Jul-22,51301816311,"-3,312.00",THE RED HOUSE RESIDENTIAL & NURSING HOME,CARE ESTABLISHMENT,OPPD - Cost of Care - Huntingdon - Over 65,Hunts OP Team - Care,Nursing Care
Cambridgeshire County Council,08-Jul-22,51301816311,"-3,312.00",THE RED HOUSE RESIDENTIAL & NURSING HOME,CARE ESTABLISHMENT,OPPD - Cost of Care - Huntingdon - Over 65,Hunts OP Team - Care,Nursing Care
Cambridgeshire County Council,08-Jul-22,51301816311,"-3,312.00",THE RED HOUSE RESIDENTIAL & NURSING HOME,CARE ESTABLISHMENT,OPPD - Cost of Care - Huntingdon - Over 65,Hunts OP Team - Care,Nursing Care
Cambridgeshire County Council,06-Jul-22,51301813841,"-3,302.00",TURNING POINT SERVICES LTD,CARE ESTABLISHMENT,LD - Fenland Locality - Cost of Care,LD - Fenland  - Special Needs,Homecare
Cambridgeshire County Council,06-Jul-22,51301813841,"-3,302.00",TURNING POINT SERVICES LTD,CARE ESTABLISHMENT,LD - Fenland Locality - Cost of Care,LD - Fenland  - Special Needs,Homecare
Cambridgeshire County Council,06-Jul-22,51301813841,"-3,302.00",TURNING POINT SERVICES LTD,CARE ESTABLISHMENT,LD - Fenland Locality - Cost of Care,LD - Fenland  - Special Needs,Homecare
Cambridgeshire County Council,06-Jul-22,51301813841,"-3,302.00",TURNING POINT SERVICES LTD,CARE ESTABLISHMENT,LD - Fenland Locality - Cost of Care,LD - Fenland  - Special Needs,Homecare
Cambridgeshire County Council,06-Jul-22,51301813841,"-3,302.00",TURNING POINT SERVICES LTD,CARE ESTABLISHMENT,LD - Fenland Locality - Cost of Care,LD - Fenland  - Special Needs,Homecare
Cambridgeshire County Council,06-Jul-22,51301813841,"-3,302.00",TURNING POINT SERVICES LTD,CARE ESTABLISHMENT,LD - Fenland Locality - Cost of Care,LD - Fenland  - Special Needs,Homecare
Cambridgeshire County Council,06-Jul-22,51301813841,"-3,302.00",TURNING POINT SERVICES LTD,CARE ESTABLISHMENT,LD - Fenland Locality - Cost of Care,LD - Fenland  - Special Needs,Homecare
Cambridgeshire County Council,06-Jul-22,51301813841,"-3,302.00",TURNING POINT SERVICES LTD,CARE ESTABLISHMENT,LD - Fenland Locality - Cost of Care,LD - Fenland  - Special Needs,Homecare
Cambridgeshire County Council,06-Jul-22,51301813841,"-3,302.00",TURNING POINT SERVICES LTD,CARE ESTABLISHMENT,LD - Fenland Locality - Cost of Care,LD - Fenland  - Special Needs,Homecare
Cambridgeshire County Council,06-Jul-22,51301813841,"-3,302.00",TURNING POINT SERVICES LTD,CARE ESTABLISHMENT,LD - Fenland Locality - Cost of Care,LD - Fenland  - Special Needs,Homecare
Cambridgeshire County Council,06-Jul-22,51301813841,"-3,302.00",TURNING POINT SERVICES LTD,CARE ESTABLISHMENT,LD - Fenland Locality - Cost of Care,LD - Fenland  - Special Needs,Homecare
Cambridgeshire County Council,13-Jul-22,51301818826,"-3,300.00",HOME CLOSE LTD,CARE ESTABLISHMENT,Strategic Management - Adults,Covid General - Adults,Nursing Care
Cambridgeshire County Council,13-Jul-22,51301818826,"-3,300.00",HOME CLOSE LTD,CARE ESTABLISHMENT,Strategic Management - Adults,Covid General - Adults,Nursing Care
Cambridgeshire County Council,13-Jul-22,51301818826,"-3,300.00",HOME CLOSE LTD,CARE ESTABLISHMENT,Strategic Management - Adults,Covid General - Adults,Nursing Care
Cambridgeshire County Council,13-Jul-22,51301818826,"-3,300.00",HOME CLOSE LTD,CARE ESTABLISHMENT,Strategic Management - Adults,Covid General - Adults,Nursing Care
Cambridgeshire County Council,13-Jul-22,51301818826,"-3,300.00",HOME CLOSE LTD,CARE ESTABLISHMENT,Strategic Management - Adults,Covid General - Adults,Nursing Care
Cambridgeshire County Council,06-Jul-22,51301813263,"-3,221.23",Redacted Personal Data,SERVICE USER,LD - Hunts Locality - Cost of Care,LD - Huntingdonshire - Special Needs,Direct Payments
Cambridgeshire County Council,06-Jul-22,51301813263,"-3,221.23",Redacted Personal Data,SERVICE USER,LD - Hunts Locality - Cost of Care,LD - Huntingdonshire - Special Needs,Direct Payments
Cambridgeshire County Council,06-Jul-22,51301813263,"-3,221.23",Redacted Personal Data,SERVICE USER,LD - Hunts Locality - Cost of Care,LD - Huntingdonshire - Special Needs,Direct Payments
Cambridgeshire County Council,06-Jul-22,51301813263,"-3,221.23",Redacted Personal Data,SERVICE USER,LD - Hunts Locality - Cost of Care,LD - Huntingdonshire - Special Needs,Direct Payments
Cambridgeshire County Council,06-Jul-22,51301813263,"-3,221.23",Redacted Personal Data,SERVICE USER,LD - Hunts Locality - Cost of Care,LD - Huntingdonshire - Special Needs,Direct Payments
Cambridgeshire County Council,06-Jul-22,51301813263,"-3,221.23",Redacted Personal Data,SERVICE USER,LD - Hunts Locality - Cost of Care,LD - Huntingdonshire - Special Needs,Direct Payments
Cambridgeshire County Council,06-Jul-22,51301813263,"-3,221.23",Redacted Personal Data,SERVICE USER,LD - Hunts Locality - Cost of Care,LD - Huntingdonshire - Special Needs,Direct Payments
Cambridgeshire County Council,06-Jul-22,51301813263,"-3,221.23",Redacted Personal Data,SERVICE USER,LD - Hunts Locality - Cost of Care,LD - Huntingdonshire - Special Needs,Direct Payments
Cambridgeshire County Council,15-Jul-22,51301819227,"-3,180.00",FEVACA,CARE ESTABLISHMENT,LAC Placements,Placements - supported accommodation,Agency Placements - In County
Cambridgeshire County Council,08-Jul-22,51301816343,"-3,106.99",RADIS COMMUNITY CARE,CARE ESTABLISHMENT,OPPD - Cost of Care - Huntingdon - Over 65,Hunts OP Team - Care,Supported Living
Cambridgeshire County Council,08-Jul-22,51301816598,"-3,099.94",THE EDMUND TRUST,CARE ESTABLISHMENT,LD - South Locality - Cost of Care,LD - South Cambs - Care,Supported Living
Cambridgeshire County Council,08-Jul-22,51301816598,"-3,099.94",THE EDMUND TRUST,CARE ESTABLISHMENT,LD - South Locality - Cost of Care,LD - South Cambs - Care,Supported Living
Cambridgeshire County Council,08-Jul-22,51301816598,"-3,099.94",THE EDMUND TRUST,CARE ESTABLISHMENT,LD - South Locality - Cost of Care,LD - South Cambs - Care,Supported Living
Cambridgeshire County Council,08-Jul-22,51301816598,"-3,099.94",THE EDMUND TRUST,CARE ESTABLISHMENT,LD - South Locality - Cost of Care,LD - South Cambs - Care,Supported Living
Cambridgeshire County Council,08-Jul-22,51301816598,"-3,099.94",THE EDMUND TRUST,CARE ESTABLISHMENT,LD - South Locality - Cost of Care,LD - South Cambs - Care,Supported Living
Cambridgeshire County Council,08-Jul-22,51301816598,"-3,099.94",THE EDMUND TRUST,CARE ESTABLISHMENT,LD - South Locality - Cost of Care,LD - South Cambs - Care,Supported Living
Cambridgeshire County Council,08-Jul-22,51301816598,"-3,099.94",THE EDMUND TRUST,CARE ESTABLISHMENT,LD - South Locality - Cost of Care,LD - South Cambs - Care,Supported Living
Cambridgeshire County Council,08-Jul-22,51301816598,"-3,099.94",THE EDMUND TRUST,CARE ESTABLISHMENT,LD - South Locality - Cost of Care,LD - South Cambs - Care,Supported Living
Cambridgeshire County Council,08-Jul-22,51301816598,"-3,099.94",THE EDMUND TRUST,CARE ESTABLISHMENT,LD - South Locality - Cost of Care,LD - South Cambs - Care,Supported Living
Cambridgeshire County Council,08-Jul-22,51301816598,"-3,099.94",THE EDMUND TRUST,CARE ESTABLISHMENT,LD - South Locality - Cost of Care,LD - South Cambs - Care,Supported Living
Cambridgeshire County Council,08-Jul-22,51301816598,"-3,099.94",THE EDMUND TRUST,CARE ESTABLISHMENT,LD - South Locality - Cost of Care,LD - South Cambs - Care,Supported Living
Cambridgeshire County Council,20-Jul-22,51301822292,"-3,086.08",AUGUSTA CARE LTD,CARE ESTABLISHMENT,LD - Fenland Locality - Cost of Care,LD - Fenland  - Special Needs,Supported Living
Cambridgeshire County Council,20-Jul-22,51301822292,"-3,086.08",AUGUSTA CARE LTD,CARE ESTABLISHMENT,LD - Fenland Locality - Cost of Care,LD - Fenland  - Special Needs,Supported Living
Cambridgeshire County Council,20-Jul-22,51301822292,"-3,086.08",AUGUSTA CARE LTD,CARE ESTABLISHMENT,LD - Fenland Locality - Cost of Care,LD - Fenland  - Special Needs,Supported Living
Cambridgeshire County Council,20-Jul-22,51301822292,"-3,086.08",AUGUSTA CARE LTD,CARE ESTABLISHMENT,LD - Fenland Locality - Cost of Care,LD - Fenland  - Special Needs,Supported Living
Cambridgeshire County Council,20-Jul-22,51301822292,"-3,086.08",AUGUSTA CARE LTD,CARE ESTABLISHMENT,LD - Fenland Locality - Cost of Care,LD - Fenland  - Special Needs,Supported Living
Cambridgeshire County Council,20-Jul-22,51301822292,"-3,086.08",AUGUSTA CARE LTD,CARE ESTABLISHMENT,LD - Fenland Locality - Cost of Care,LD - Fenland  - Special Needs,Supported Living
Cambridgeshire County Council,20-Jul-22,51301822292,"-3,086.08",AUGUSTA CARE LTD,CARE ESTABLISHMENT,LD - Fenland Locality - Cost of Care,LD - Fenland  - Special Needs,Supported Living
Cambridgeshire County Council,20-Jul-22,51301822292,"-3,086.08",AUGUSTA CARE LTD,CARE ESTABLISHMENT,LD - Fenland Locality - Cost of Care,LD - Fenland  - Special Needs,Supported Living
Cambridgeshire County Council,20-Jul-22,51301822292,"-3,086.08",AUGUSTA CARE LTD,CARE ESTABLISHMENT,LD - Fenland Locality - Cost of Care,LD - Fenland  - Special Needs,Supported Living
Cambridgeshire County Council,20-Jul-22,51301822292,"-3,086.08",AUGUSTA CARE LTD,CARE ESTABLISHMENT,LD - Fenland Locality - Cost of Care,LD - Fenland  - Special Needs,Supported Living
Cambridgeshire County Council,20-Jul-22,51301822292,"-3,086.08",AUGUSTA CARE LTD,CARE ESTABLISHMENT,LD - Fenland Locality - Cost of Care,LD - Fenland  - Special Needs,Supported Living
Cambridgeshire County Council,20-Jul-22,51301822292,"-3,086.08",AUGUSTA CARE LTD,CARE ESTABLISHMENT,LD - Fenland Locality - Cost of Care,LD - Fenland  - Special Needs,Supported Living
Cambridgeshire County Council,20-Jul-22,51301822292,"-3,086.08",AUGUSTA CARE LTD,CARE ESTABLISHMENT,LD - Fenland Locality - Cost of Care,LD - Fenland  - Special Needs,Supported Living
Cambridgeshire County Council,20-Jul-22,51301822292,"-3,086.08",AUGUSTA CARE LTD,CARE ESTABLISHMENT,LD - Fenland Locality - Cost of Care,LD - Fenland  - Special Needs,Supported Living
Cambridgeshire County Council,20-Jul-22,51301822292,"-3,086.08",AUGUSTA CARE LTD,CARE ESTABLISHMENT,LD - Fenland Locality - Cost of Care,LD - Fenland  - Special Needs,Supported Living
Cambridgeshire County Council,20-Jul-22,51301821704,"-3,074.16",AURORA ORCHARD MANOR,CARE ESTABLISHMENT,LD - Young Adults Team,LD - Young Adults - Special Needs,Residential Care
Cambridgeshire County Council,20-Jul-22,51301821704,"-3,074.16",AURORA ORCHARD MANOR,CARE ESTABLISHMENT,LD - Young Adults Team,LD - Young Adults - Special Needs,Residential Care
Cambridgeshire County Council,20-Jul-22,51301821704,"-3,074.16",AURORA ORCHARD MANOR,CARE ESTABLISHMENT,LD - Young Adults Team,LD - Young Adults - Special Needs,Residential Care
Cambridgeshire County Council,20-Jul-22,51301821704,"-3,074.16",AURORA ORCHARD MANOR,CARE ESTABLISHMENT,LD - Young Adults Team,LD - Young Adults - Special Needs,Residential Care
Cambridgeshire County Council,20-Jul-22,51301821704,"-3,074.16",AURORA ORCHARD MANOR,CARE ESTABLISHMENT,LD - Young Adults Team,LD - Young Adults - Special Needs,Residential Care
Cambridgeshire County Council,20-Jul-22,51301821704,"-3,074.16",AURORA ORCHARD MANOR,CARE ESTABLISHMENT,LD - Young Adults Team,LD - Young Adults - Special Needs,Residential Care
Cambridgeshire County Council,20-Jul-22,51301821597,"-3,074.16",AURORA ORCHARD MANOR,CARE ESTABLISHMENT,LD - Young Adults Team,LD - Young Adults - Special Needs,Residential Care
Cambridgeshire County Council,20-Jul-22,51301821597,"-3,074.16",AURORA ORCHARD MANOR,CARE ESTABLISHMENT,LD - Young Adults Team,LD - Young Adults - Special Needs,Residential Care
Cambridgeshire County Council,20-Jul-22,51301821704,"-3,074.16",AURORA ORCHARD MANOR,CARE ESTABLISHMENT,LD - Young Adults Team,LD - Young Adults - Special Needs,Residential Care
Cambridgeshire County Council,20-Jul-22,51301821704,"-3,074.16",AURORA ORCHARD MANOR,CARE ESTABLISHMENT,LD - Young Adults Team,LD - Young Adults - Special Needs,Residential Care
Cambridgeshire County Council,20-Jul-22,51301821597,"-3,074.16",AURORA ORCHARD MANOR,CARE ESTABLISHMENT,LD - Young Adults Team,LD - Young Adults - Special Needs,Residential Care
Cambridgeshire County Council,20-Jul-22,51301821704,"-3,074.16",AURORA ORCHARD MANOR,CARE ESTABLISHMENT,LD - Young Adults Team,LD - Young Adults - Special Needs,Residential Care
Cambridgeshire County Council,20-Jul-22,51301821704,"-3,074.16",AURORA ORCHARD MANOR,CARE ESTABLISHMENT,LD - Young Adults Team,LD - Young Adults - Special Needs,Residential Care
Cambridgeshire County Council,20-Jul-22,51301821597,"-3,074.16",AURORA ORCHARD MANOR,CARE ESTABLISHMENT,LD - Young Adults Team,LD - Young Adults - Special Needs,Residential Care
Cambridgeshire County Council,20-Jul-22,51301821704,"-3,074.16",AURORA ORCHARD MANOR,CARE ESTABLISHMENT,LD - Young Adults Team,LD - Young Adults - Special Needs,Residential Care
Cambridgeshire County Council,20-Jul-22,51301821704,"-3,074.16",AURORA ORCHARD MANOR,CARE ESTABLISHMENT,LD - Young Adults Team,LD - Young Adults - Special Needs,Residential Care
Cambridgeshire County Council,20-Jul-22,51301821704,"-3,074.16",AURORA ORCHARD MANOR,CARE ESTABLISHMENT,LD - Young Adults Team,LD - Young Adults - Special Needs,Residential Care
Cambridgeshire County Council,20-Jul-22,51301821704,"-3,074.16",AURORA ORCHARD MANOR,CARE ESTABLISHMENT,LD - Young Adults Team,LD - Young Adults - Special Needs,Residential Care
Cambridgeshire County Council,20-Jul-22,51301821704,"-3,074.16",AURORA ORCHARD MANOR,CARE ESTABLISHMENT,LD - Young Adults Team,LD - Young Adults - Special Needs,Residential Care
Cambridgeshire County Council,06-Jul-22,51301813263,"-3,067.84",Redacted Personal Data,SERVICE USER,LD - Hunts Locality - Cost of Care,LD - Huntingdonshire - Special Needs,Direct Payments
Cambridgeshire County Council,06-Jul-22,51301813263,"-3,067.84",Redacted Personal Data,SERVICE USER,LD - Hunts Locality - Cost of Care,LD - Huntingdonshire - Special Needs,Direct Payments
Cambridgeshire County Council,06-Jul-22,51301813263,"-3,067.84",Redacted Personal Data,SERVICE USER,LD - Hunts Locality - Cost of Care,LD - Huntingdonshire - Special Needs,Direct Payments
Cambridgeshire County Council,06-Jul-22,51301813263,"-3,067.84",Redacted Personal Data,SERVICE USER,LD - Hunts Locality - Cost of Care,LD - Huntingdonshire - Special Needs,Direct Payments
Cambridgeshire County Council,08-Jul-22,51301816342,"-3,064.29",THE GABLES SPECIALIST NURSING HOME,CARE ESTABLISHMENT,OPPD - Cost of Care - Fenland Blocks,Fenland - Long term blocks,Nursing Care
Cambridgeshire County Council,08-Jul-22,51301815491,"-3,053.55",Next Steps Ltd,COMPANY,LD - South Locality - Cost of Care,LD - South Cambs - Care,Supported Living
Cambridgeshire County Council,08-Jul-22,51301815491,"-3,053.55",Next Steps Ltd,COMPANY,LD - South Locality - Cost of Care,LD - South Cambs - Care,Supported Living
Cambridgeshire County Council,08-Jul-22,51301816317,"-2,971.28",LONGHURST GROUP LTD,CARE ESTABLISHMENT,OPPD - Cost of Care - City South - Over 65,Older People - City & South - Care,Supported Living
Cambridgeshire County Council,08-Jul-22,51301816317,"-2,971.28",LONGHURST GROUP LTD,CARE ESTABLISHMENT,OPPD - Cost of Care - City South - Over 65,Older People - City & South - Care,Supported Living
Cambridgeshire County Council,08-Jul-22,51301816317,"-2,971.28",LONGHURST GROUP LTD,CARE ESTABLISHMENT,OPPD - Cost of Care - City South - Over 65,Older People - City & South - Care,Supported Living
Cambridgeshire County Council,08-Jul-22,51301816317,"-2,971.28",LONGHURST GROUP LTD,CARE ESTABLISHMENT,OPPD - Cost of Care - City South - Over 65,Older People - City & South - Care,Supported Living
Cambridgeshire County Council,08-Jul-22,51301816317,"-2,971.28",LONGHURST GROUP LTD,CARE ESTABLISHMENT,OPPD - Cost of Care - City South - Over 65,Older People - City & South - Care,Supported Living
Cambridgeshire County Council,08-Jul-22,51301816317,"-2,971.28",LONGHURST GROUP LTD,CARE ESTABLISHMENT,OPPD - Cost of Care - City South - Over 65,Older People - City & South - Care,Supported Living
Cambridgeshire County Council,08-Jul-22,51301816317,"-2,971.28",LONGHURST GROUP LTD,CARE ESTABLISHMENT,OPPD - Cost of Care - City South - Over 65,Older People - City & South - Care,Supported Living
Cambridgeshire County Council,08-Jul-22,51301816317,"-2,971.28",LONGHURST GROUP LTD,CARE ESTABLISHMENT,OPPD - Cost of Care - City South - Over 65,Older People - City & South - Care,Supported Living
Cambridgeshire County Council,08-Jul-22,51301816317,"-2,971.28",LONGHURST GROUP LTD,CARE ESTABLISHMENT,OPPD - Cost of Care - City South - Over 65,Older People - City & South - Care,Supported Living
Cambridgeshire County Council,08-Jul-22,51301816317,"-2,971.28",LONGHURST GROUP LTD,CARE ESTABLISHMENT,OPPD - Cost of Care - City South - Over 65,Older People - City & South - Care,Supported Living
Cambridgeshire County Council,08-Jul-22,51301816317,"-2,971.28",LONGHURST GROUP LTD,CARE ESTABLISHMENT,OPPD - Cost of Care - City South - Over 65,Older People - City & South - Care,Supported Living
Cambridgeshire County Council,08-Jul-22,51301816317,"-2,971.28",LONGHURST GROUP LTD,CARE ESTABLISHMENT,OPPD - Cost of Care - City South - Over 65,Older People - City & South - Care,Supported Living
Cambridgeshire County Council,08-Jul-22,51301816317,"-2,971.28",LONGHURST GROUP LTD,CARE ESTABLISHMENT,OPPD - Cost of Care - City South - Over 65,Older People - City & South - Care,Supported Living
Cambridgeshire County Council,08-Jul-22,51301816317,"-2,971.28",LONGHURST GROUP LTD,CARE ESTABLISHMENT,OPPD - Cost of Care - City South - Over 65,Older People - City & South - Care,Supported Living
Cambridgeshire County Council,08-Jul-22,51301816317,"-2,971.28",LONGHURST GROUP LTD,CARE ESTABLISHMENT,OPPD - Cost of Care - City South - Over 65,Older People - City & South - Care,Supported Living
Cambridgeshire County Council,08-Jul-22,51301816317,"-2,971.28",LONGHURST GROUP LTD,CARE ESTABLISHMENT,OPPD - Cost of Care - City South - Over 65,Older People - City & South - Care,Supported Living
Cambridgeshire County Council,08-Jul-22,51301816317,"-2,971.28",LONGHURST GROUP LTD,CARE ESTABLISHMENT,OPPD - Cost of Care - City South - Over 65,Older People - City & South - Care,Supported Living
Cambridgeshire County Council,08-Jul-22,51301816317,"-2,971.28",LONGHURST GROUP LTD,CARE ESTABLISHMENT,OPPD - Cost of Care - City South - Over 65,Older People - City & South - Care,Supported Living
Cambridgeshire County Council,08-Jul-22,51301816317,"-2,971.28",LONGHURST GROUP LTD,CARE ESTABLISHMENT,OPPD - Cost of Care - City South - Over 65,Older People - City & South - Care,Supported Living
Cambridgeshire County Council,08-Jul-22,51301816317,"-2,971.28",LONGHURST GROUP LTD,CARE ESTABLISHMENT,OPPD - Cost of Care - City South - Over 65,Older People - City & South - Care,Supported Living
Cambridgeshire County Council,08-Jul-22,51301816317,"-2,971.28",LONGHURST GROUP LTD,CARE ESTABLISHMENT,OPPD - Cost of Care - City South - Over 65,Older People - City & South - Care,Supported Living
Cambridgeshire County Council,08-Jul-22,51301816317,"-2,971.28",LONGHURST GROUP LTD,CARE ESTABLISHMENT,OPPD - Cost of Care - City South - Over 65,Older People - City & South - Care,Supported Living
Cambridgeshire County Council,08-Jul-22,51301816317,"-2,971.28",LONGHURST GROUP LTD,CARE ESTABLISHMENT,OPPD - Cost of Care - City South - Over 65,Older People - City & South - Care,Supported Living
Cambridgeshire County Council,08-Jul-22,51301816317,"-2,971.28",LONGHURST GROUP LTD,CARE ESTABLISHMENT,OPPD - Cost of Care - City South - Over 65,Older People - City & South - Care,Supported Living
Cambridgeshire County Council,08-Jul-22,51301816317,"-2,971.28",LONGHURST GROUP LTD,CARE ESTABLISHMENT,OPPD - Cost of Care - City South - Over 65,Older People - City & South - Care,Supported Living
Cambridgeshire County Council,08-Jul-22,51301816317,"-2,971.28",LONGHURST GROUP LTD,CARE ESTABLISHMENT,OPPD - Cost of Care - City South - Over 65,Older People - City & South - Care,Supported Living
Cambridgeshire County Council,08-Jul-22,51301816317,"-2,971.28",LONGHURST GROUP LTD,CARE ESTABLISHMENT,OPPD - Cost of Care - City South - Over 65,Older People - City & South - Care,Supported Living
Cambridgeshire County Council,08-Jul-22,51301816317,"-2,971.28",LONGHURST GROUP LTD,CARE ESTABLISHMENT,OPPD - Cost of Care - City South - Over 65,Older People - City & South - Care,Supported Living
Cambridgeshire County Council,08-Jul-22,51301816317,"-2,971.28",LONGHURST GROUP LTD,CARE ESTABLISHMENT,OPPD - Cost of Care - City South - Over 65,Older People - City & South - Care,Supported Living
Cambridgeshire County Council,08-Jul-22,51301816317,"-2,971.28",LONGHURST GROUP LTD,CARE ESTABLISHMENT,OPPD - Cost of Care - City South - Over 65,Older People - City & South - Care,Supported Living
Cambridgeshire County Council,08-Jul-22,51301816317,"-2,971.28",LONGHURST GROUP LTD,CARE ESTABLISHMENT,OPPD - Cost of Care - City South - Over 65,Older People - City & South - Care,Supported Living
Cambridgeshire County Council,08-Jul-22,51301816317,"-2,971.28",LONGHURST GROUP LTD,CARE ESTABLISHMENT,OPPD - Cost of Care - City South - Over 65,Older People - City & South - Care,Supported Living
Cambridgeshire County Council,08-Jul-22,51301816317,"-2,971.28",LONGHURST GROUP LTD,CARE ESTABLISHMENT,OPPD - Cost of Care - City South - Over 65,Older People - City & South - Care,Supported Living
Cambridgeshire County Council,08-Jul-22,51301816317,"-2,971.28",LONGHURST GROUP LTD,CARE ESTABLISHMENT,OPPD - Cost of Care - City South - Over 65,Older People - City & South - Care,Supported Living
Cambridgeshire County Council,08-Jul-22,51301816317,"-2,971.28",LONGHURST GROUP LTD,CARE ESTABLISHMENT,OPPD - Cost of Care - City South - Over 65,Older People - City & South - Care,Supported Living
Cambridgeshire County Council,08-Jul-22,51301816317,"-2,971.28",LONGHURST GROUP LTD,CARE ESTABLISHMENT,OPPD - Cost of Care - City South - Over 65,Older People - City & South - Care,Supported Living
Cambridgeshire County Council,08-Jul-22,51301816317,"-2,971.28",LONGHURST GROUP LTD,CARE ESTABLISHMENT,OPPD - Cost of Care - City South - Over 65,Older People - City & South - Care,Supported Living
Cambridgeshire County Council,08-Jul-22,51301816317,"-2,971.28",LONGHURST GROUP LTD,CARE ESTABLISHMENT,OPPD - Cost of Care - City South - Over 65,Older People - City & South - Care,Supported Living
Cambridgeshire County Council,08-Jul-22,51301816317,"-2,971.28",LONGHURST GROUP LTD,CARE ESTABLISHMENT,OPPD - Cost of Care - City South - Over 65,Older People - City & South - Care,Supported Living
Cambridgeshire County Council,08-Jul-22,51301816317,"-2,971.28",LONGHURST GROUP LTD,CARE ESTABLISHMENT,OPPD - Cost of Care - City South - Over 65,Older People - City & South - Care,Supported Living
Cambridgeshire County Council,08-Jul-22,51301816317,"-2,971.28",LONGHURST GROUP LTD,CARE ESTABLISHMENT,OPPD - Cost of Care - City South - Over 65,Older People - City & South - Care,Supported Living
Cambridgeshire County Council,08-Jul-22,51301816317,"-2,971.28",LONGHURST GROUP LTD,CARE ESTABLISHMENT,OPPD - Cost of Care - City South - Over 65,Older People - City & South - Care,Supported Living
Cambridgeshire County Council,08-Jul-22,51301816317,"-2,971.28",LONGHURST GROUP LTD,CARE ESTABLISHMENT,OPPD - Cost of Care - City South - Over 65,Older People - City & South - Care,Supported Living
Cambridgeshire County Council,08-Jul-22,51301816317,"-2,971.28",LONGHURST GROUP LTD,CARE ESTABLISHMENT,OPPD - Cost of Care - City South - Over 65,Older People - City & South - Care,Supported Living
Cambridgeshire County Council,08-Jul-22,51301816317,"-2,971.28",LONGHURST GROUP LTD,CARE ESTABLISHMENT,OPPD - Cost of Care - City South - Over 65,Older People - City & South - Care,Supported Living
Cambridgeshire County Council,08-Jul-22,51301816317,"-2,971.28",LONGHURST GROUP LTD,CARE ESTABLISHMENT,OPPD - Cost of Care - City South - Over 65,Older People - City & South - Care,Supported Living
Cambridgeshire County Council,08-Jul-22,51301816317,"-2,971.28",LONGHURST GROUP LTD,CARE ESTABLISHMENT,OPPD - Cost of Care - City South - Over 65,Older People - City & South - Care,Supported Living
Cambridgeshire County Council,08-Jul-22,51301816317,"-2,971.28",LONGHURST GROUP LTD,CARE ESTABLISHMENT,OPPD - Cost of Care - City South - Over 65,Older People - City & South - Care,Supported Living
Cambridgeshire County Council,08-Jul-22,51301816317,"-2,971.28",LONGHURST GROUP LTD,CARE ESTABLISHMENT,OPPD - Cost of Care - City South - Over 65,Older People - City & South - Care,Supported Living
Cambridgeshire County Council,08-Jul-22,51301816317,"-2,971.28",LONGHURST GROUP LTD,CARE ESTABLISHMENT,OPPD - Cost of Care - City South - Over 65,Older People - City & South - Care,Supported Living
Cambridgeshire County Council,08-Jul-22,51301816317,"-2,971.28",LONGHURST GROUP LTD,CARE ESTABLISHMENT,OPPD - Cost of Care - City South - Over 65,Older People - City & South - Care,Supported Living
Cambridgeshire County Council,08-Jul-22,51301816317,"-2,971.28",LONGHURST GROUP LTD,CARE ESTABLISHMENT,OPPD - Cost of Care - City South - Over 65,Older People - City & South - Care,Supported Living
Cambridgeshire County Council,08-Jul-22,51301816317,"-2,971.28",LONGHURST GROUP LTD,CARE ESTABLISHMENT,OPPD - Cost of Care - City South - Over 65,Older People - City & South - Care,Supported Living
Cambridgeshire County Council,08-Jul-22,51301816317,"-2,971.28",LONGHURST GROUP LTD,CARE ESTABLISHMENT,OPPD - Cost of Care - City South - Over 65,Older People - City & South - Care,Supported Living
Cambridgeshire County Council,08-Jul-22,51301816317,"-2,971.28",LONGHURST GROUP LTD,CARE ESTABLISHMENT,OPPD - Cost of Care - City South - Over 65,Older People - City & South - Care,Supported Living
Cambridgeshire County Council,08-Jul-22,51301816317,"-2,971.28",LONGHURST GROUP LTD,CARE ESTABLISHMENT,OPPD - Cost of Care - City South - Over 65,Older People - City & South - Care,Supported Living
Cambridgeshire County Council,08-Jul-22,51301816317,"-2,971.28",LONGHURST GROUP LTD,CARE ESTABLISHMENT,OPPD - Cost of Care - City South - Over 65,Older People - City & South - Care,Supported Living
Cambridgeshire County Council,08-Jul-22,51301816317,"-2,971.28",LONGHURST GROUP LTD,CARE ESTABLISHMENT,OPPD - Cost of Care - City South - Over 65,Older People - City & South - Care,Supported Living
Cambridgeshire County Council,08-Jul-22,51301816317,"-2,971.28",LONGHURST GROUP LTD,CARE ESTABLISHMENT,OPPD - Cost of Care - City South - Over 65,Older People - City & South - Care,Supported Living
Cambridgeshire County Council,08-Jul-22,51301816317,"-2,971.28",LONGHURST GROUP LTD,CARE ESTABLISHMENT,OPPD - Cost of Care - City South - Over 65,Older People - City & South - Care,Supported Living
Cambridgeshire County Council,08-Jul-22,51301816317,"-2,971.28",LONGHURST GROUP LTD,CARE ESTABLISHMENT,OPPD - Cost of Care - City South - Over 65,Older People - City & South - Care,Supported Living
Cambridgeshire County Council,08-Jul-22,51301816317,"-2,971.28",LONGHURST GROUP LTD,CARE ESTABLISHMENT,OPPD - Cost of Care - City South - Over 65,Older People - City & South - Care,Supported Living
Cambridgeshire County Council,08-Jul-22,51301816317,"-2,971.28",LONGHURST GROUP LTD,CARE ESTABLISHMENT,OPPD - Cost of Care - City South - Over 65,Older People - City & South - Care,Supported Living
Cambridgeshire County Council,08-Jul-22,51301816130,"-2,901.13",SOCIAL CARE SOLUTIONS LTD,CARE ESTABLISHMENT,LD - Young Adults Team,LD - Young Adults - Care,Supported Living
Cambridgeshire County Council,08-Jul-22,51301816130,"-2,901.13",SOCIAL CARE SOLUTIONS LTD,CARE ESTABLISHMENT,LD - Young Adults Team,LD - Young Adults - Care,Supported Living
Cambridgeshire County Council,08-Jul-22,51301816130,"-2,901.13",SOCIAL CARE SOLUTIONS LTD,CARE ESTABLISHMENT,LD - Young Adults Team,LD - Young Adults - Care,Supported Living
Cambridgeshire County Council,08-Jul-22,51301816130,"-2,901.13",SOCIAL CARE SOLUTIONS LTD,CARE ESTABLISHMENT,LD - Young Adults Team,LD - Young Adults - Care,Supported Living
Cambridgeshire County Council,08-Jul-22,51301816130,"-2,901.13",SOCIAL CARE SOLUTIONS LTD,CARE ESTABLISHMENT,LD - Young Adults Team,LD - Young Adults - Care,Supported Living
Cambridgeshire County Council,08-Jul-22,51301816130,"-2,901.13",SOCIAL CARE SOLUTIONS LTD,CARE ESTABLISHMENT,LD - Young Adults Team,LD - Young Adults - Care,Supported Living
Cambridgeshire County Council,08-Jul-22,51301816130,"-2,901.13",SOCIAL CARE SOLUTIONS LTD,CARE ESTABLISHMENT,LD - Young Adults Team,LD - Young Adults - Care,Supported Living
Cambridgeshire County Council,08-Jul-22,51301816130,"-2,901.13",SOCIAL CARE SOLUTIONS LTD,CARE ESTABLISHMENT,LD - Young Adults Team,LD - Young Adults - Care,Supported Living
Cambridgeshire County Council,08-Jul-22,51301816130,"-2,901.13",SOCIAL CARE SOLUTIONS LTD,CARE ESTABLISHMENT,LD - Young Adults Team,LD - Young Adults - Care,Supported Living
Cambridgeshire County Council,08-Jul-22,51301816130,"-2,901.13",SOCIAL CARE SOLUTIONS LTD,CARE ESTABLISHMENT,LD - Young Adults Team,LD - Young Adults - Care,Supported Living
Cambridgeshire County Council,08-Jul-22,51301816130,"-2,901.13",SOCIAL CARE SOLUTIONS LTD,CARE ESTABLISHMENT,LD - Young Adults Team,LD - Young Adults - Care,Supported Living
Cambridgeshire County Council,08-Jul-22,51301816307,"-2,898.00",SWAN HOUSE NURSING & RESIDENTIAL HOME,CARE ESTABLISHMENT,OPPD - Cost of Care - Fenland Blocks,Fenland - Long term blocks,Nursing Care
Cambridgeshire County Council,08-Jul-22,51301816346,"-2,881.19",LONGHURST GROUP LTD,CARE ESTABLISHMENT,OPPD - Cost of Care - City South - Over 65,Older People - City & South - Care,Supported Living
Cambridgeshire County Council,08-Jul-22,51301816346,"-2,881.19",LONGHURST GROUP LTD,CARE ESTABLISHMENT,OPPD - Cost of Care - City South - Over 65,Older People - City & South - Care,Supported Living
Cambridgeshire County Council,08-Jul-22,51301816346,"-2,881.19",LONGHURST GROUP LTD,CARE ESTABLISHMENT,OPPD - Cost of Care - City South - Over 65,Older People - City & South - Care,Supported Living
Cambridgeshire County Council,08-Jul-22,51301816346,"-2,881.19",LONGHURST GROUP LTD,CARE ESTABLISHMENT,OPPD - Cost of Care - City South - Over 65,Older People - City & South - Care,Supported Living
Cambridgeshire County Council,08-Jul-22,51301816346,"-2,881.19",LONGHURST GROUP LTD,CARE ESTABLISHMENT,OPPD - Cost of Care - City South - Over 65,Older People - City & South - Care,Supported Living
Cambridgeshire County Council,08-Jul-22,51301816346,"-2,881.19",LONGHURST GROUP LTD,CARE ESTABLISHMENT,OPPD - Cost of Care - City South - Over 65,Older People - City & South - Care,Supported Living
Cambridgeshire County Council,08-Jul-22,51301816346,"-2,881.19",LONGHURST GROUP LTD,CARE ESTABLISHMENT,OPPD - Cost of Care - City South - Over 65,Older People - City & South - Care,Supported Living
Cambridgeshire County Council,08-Jul-22,51301816346,"-2,881.19",LONGHURST GROUP LTD,CARE ESTABLISHMENT,OPPD - Cost of Care - City South - Over 65,Older People - City & South - Care,Supported Living
Cambridgeshire County Council,08-Jul-22,51301816346,"-2,881.19",LONGHURST GROUP LTD,CARE ESTABLISHMENT,OPPD - Cost of Care - City South - Over 65,Older People - City & South - Care,Supported Living
Cambridgeshire County Council,08-Jul-22,51301816346,"-2,881.19",LONGHURST GROUP LTD,CARE ESTABLISHMENT,OPPD - Cost of Care - City South - Over 65,Older People - City & South - Care,Supported Living
Cambridgeshire County Council,08-Jul-22,51301816346,"-2,881.19",LONGHURST GROUP LTD,CARE ESTABLISHMENT,OPPD - Cost of Care - City South - Over 65,Older People - City & South - Care,Supported Living
Cambridgeshire County Council,08-Jul-22,51301816346,"-2,881.19",LONGHURST GROUP LTD,CARE ESTABLISHMENT,OPPD - Cost of Care - City South - Over 65,Older People - City & South - Care,Supported Living
Cambridgeshire County Council,08-Jul-22,51301816346,"-2,881.19",LONGHURST GROUP LTD,CARE ESTABLISHMENT,OPPD - Cost of Care - City South - Over 65,Older People - City & South - Care,Supported Living
Cambridgeshire County Council,08-Jul-22,51301816346,"-2,881.19",LONGHURST GROUP LTD,CARE ESTABLISHMENT,OPPD - Cost of Care - City South - Over 65,Older People - City & South - Care,Supported Living
Cambridgeshire County Council,08-Jul-22,51301816346,"-2,881.19",LONGHURST GROUP LTD,CARE ESTABLISHMENT,OPPD - Cost of Care - City South - Over 65,Older People - City & South - Care,Supported Living
Cambridgeshire County Council,08-Jul-22,51301816346,"-2,881.19",LONGHURST GROUP LTD,CARE ESTABLISHMENT,OPPD - Cost of Care - City South - Over 65,Older People - City & South - Care,Supported Living
Cambridgeshire County Council,08-Jul-22,51301816346,"-2,881.19",LONGHURST GROUP LTD,CARE ESTABLISHMENT,OPPD - Cost of Care - City South - Over 65,Older People - City & South - Care,Supported Living
Cambridgeshire County Council,08-Jul-22,51301816346,"-2,881.19",LONGHURST GROUP LTD,CARE ESTABLISHMENT,OPPD - Cost of Care - City South - Over 65,Older People - City & South - Care,Supported Living
Cambridgeshire County Council,08-Jul-22,51301816346,"-2,881.19",LONGHURST GROUP LTD,CARE ESTABLISHMENT,OPPD - Cost of Care - City South - Over 65,Older People - City & South - Care,Supported Living
Cambridgeshire County Council,08-Jul-22,51301816346,"-2,881.19",LONGHURST GROUP LTD,CARE ESTABLISHMENT,OPPD - Cost of Care - City South - Over 65,Older People - City & South - Care,Supported Living
Cambridgeshire County Council,08-Jul-22,51301816346,"-2,881.19",LONGHURST GROUP LTD,CARE ESTABLISHMENT,OPPD - Cost of Care - City South - Over 65,Older People - City & South - Care,Supported Living
Cambridgeshire County Council,08-Jul-22,51301816346,"-2,881.19",LONGHURST GROUP LTD,CARE ESTABLISHMENT,OPPD - Cost of Care - City South - Over 65,Older People - City & South - Care,Supported Living
Cambridgeshire County Council,08-Jul-22,51301816346,"-2,881.19",LONGHURST GROUP LTD,CARE ESTABLISHMENT,OPPD - Cost of Care - City South - Over 65,Older People - City & South - Care,Supported Living
Cambridgeshire County Council,08-Jul-22,51301816346,"-2,881.19",LONGHURST GROUP LTD,CARE ESTABLISHMENT,OPPD - Cost of Care - City South - Over 65,Older People - City & South - Care,Supported Living
Cambridgeshire County Council,08-Jul-22,51301816346,"-2,881.19",LONGHURST GROUP LTD,CARE ESTABLISHMENT,OPPD - Cost of Care - City South - Over 65,Older People - City & South - Care,Supported Living
Cambridgeshire County Council,08-Jul-22,51301816346,"-2,881.19",LONGHURST GROUP LTD,CARE ESTABLISHMENT,OPPD - Cost of Care - City South - Over 65,Older People - City & South - Care,Supported Living
Cambridgeshire County Council,08-Jul-22,51301816346,"-2,881.19",LONGHURST GROUP LTD,CARE ESTABLISHMENT,OPPD - Cost of Care - City South - Over 65,Older People - City & South - Care,Supported Living
Cambridgeshire County Council,08-Jul-22,51301816346,"-2,881.19",LONGHURST GROUP LTD,CARE ESTABLISHMENT,OPPD - Cost of Care - City South - Over 65,Older People - City & South - Care,Supported Living
Cambridgeshire County Council,08-Jul-22,51301816346,"-2,881.19",LONGHURST GROUP LTD,CARE ESTABLISHMENT,OPPD - Cost of Care - City South - Over 65,Older People - City & South - Care,Supported Living
Cambridgeshire County Council,08-Jul-22,51301816346,"-2,881.19",LONGHURST GROUP LTD,CARE ESTABLISHMENT,OPPD - Cost of Care - City South - Over 65,Older People - City & South - Care,Supported Living
Cambridgeshire County Council,08-Jul-22,51301816346,"-2,881.19",LONGHURST GROUP LTD,CARE ESTABLISHMENT,OPPD - Cost of Care - City South - Over 65,Older People - City & South - Care,Supported Living
Cambridgeshire County Council,08-Jul-22,51301816346,"-2,881.19",LONGHURST GROUP LTD,CARE ESTABLISHMENT,OPPD - Cost of Care - City South - Over 65,Older People - City & South - Care,Supported Living
Cambridgeshire County Council,08-Jul-22,51301816346,"-2,881.19",LONGHURST GROUP LTD,CARE ESTABLISHMENT,OPPD - Cost of Care - City South - Over 65,Older People - City & South - Care,Supported Living
Cambridgeshire County Council,08-Jul-22,51301816346,"-2,881.19",LONGHURST GROUP LTD,CARE ESTABLISHMENT,OPPD - Cost of Care - City South - Over 65,Older People - City & South - Care,Supported Living
Cambridgeshire County Council,08-Jul-22,51301816346,"-2,881.19",LONGHURST GROUP LTD,CARE ESTABLISHMENT,OPPD - Cost of Care - City South - Over 65,Older People - City & South - Care,Supported Living
Cambridgeshire County Council,08-Jul-22,51301816346,"-2,881.19",LONGHURST GROUP LTD,CARE ESTABLISHMENT,OPPD - Cost of Care - City South - Over 65,Older People - City & South - Care,Supported Living
Cambridgeshire County Council,08-Jul-22,51301816346,"-2,881.19",LONGHURST GROUP LTD,CARE ESTABLISHMENT,OPPD - Cost of Care - City South - Over 65,Older People - City & South - Care,Supported Living
Cambridgeshire County Council,08-Jul-22,51301816346,"-2,881.19",LONGHURST GROUP LTD,CARE ESTABLISHMENT,OPPD - Cost of Care - City South - Over 65,Older People - City & South - Care,Supported Living
Cambridgeshire County Council,08-Jul-22,51301816346,"-2,881.19",LONGHURST GROUP LTD,CARE ESTABLISHMENT,OPPD - Cost of Care - City South - Over 65,Older People - City & South - Care,Supported Living
Cambridgeshire County Council,08-Jul-22,51301816346,"-2,881.19",LONGHURST GROUP LTD,CARE ESTABLISHMENT,OPPD - Cost of Care - City South - Over 65,Older People - City & South - Care,Supported Living
Cambridgeshire County Council,08-Jul-22,51301816346,"-2,881.19",LONGHURST GROUP LTD,CARE ESTABLISHMENT,OPPD - Cost of Care - City South - Over 65,Older People - City & South - Care,Supported Living
Cambridgeshire County Council,08-Jul-22,51301816346,"-2,881.19",LONGHURST GROUP LTD,CARE ESTABLISHMENT,OPPD - Cost of Care - City South - Over 65,Older People - City & South - Care,Supported Living
Cambridgeshire County Council,08-Jul-22,51301816346,"-2,881.19",LONGHURST GROUP LTD,CARE ESTABLISHMENT,OPPD - Cost of Care - City South - Over 65,Older People - City & South - Care,Supported Living
Cambridgeshire County Council,08-Jul-22,51301816346,"-2,881.19",LONGHURST GROUP LTD,CARE ESTABLISHMENT,OPPD - Cost of Care - City South - Over 65,Older People - City & South - Care,Supported Living
Cambridgeshire County Council,08-Jul-22,51301816346,"-2,881.19",LONGHURST GROUP LTD,CARE ESTABLISHMENT,OPPD - Cost of Care - City South - Over 65,Older People - City & South - Care,Supported Living
Cambridgeshire County Council,08-Jul-22,51301816346,"-2,881.19",LONGHURST GROUP LTD,CARE ESTABLISHMENT,OPPD - Cost of Care - City South - Over 65,Older People - City & South - Care,Supported Living
Cambridgeshire County Council,08-Jul-22,51301816346,"-2,881.19",LONGHURST GROUP LTD,CARE ESTABLISHMENT,OPPD - Cost of Care - City South - Over 65,Older People - City & South - Care,Supported Living
Cambridgeshire County Council,08-Jul-22,51301816346,"-2,881.19",LONGHURST GROUP LTD,CARE ESTABLISHMENT,OPPD - Cost of Care - City South - Over 65,Older People - City & South - Care,Supported Living
Cambridgeshire County Council,08-Jul-22,51301816346,"-2,881.19",LONGHURST GROUP LTD,CARE ESTABLISHMENT,OPPD - Cost of Care - City South - Over 65,Older People - City & South - Care,Supported Living
Cambridgeshire County Council,08-Jul-22,51301816346,"-2,881.19",LONGHURST GROUP LTD,CARE ESTABLISHMENT,OPPD - Cost of Care - City South - Over 65,Older People - City & South - Care,Supported Living
Cambridgeshire County Council,08-Jul-22,51301816346,"-2,881.19",LONGHURST GROUP LTD,CARE ESTABLISHMENT,OPPD - Cost of Care - City South - Over 65,Older People - City & South - Care,Supported Living
Cambridgeshire County Council,08-Jul-22,51301816346,"-2,881.19",LONGHURST GROUP LTD,CARE ESTABLISHMENT,OPPD - Cost of Care - City South - Over 65,Older People - City & South - Care,Supported Living
Cambridgeshire County Council,08-Jul-22,51301816346,"-2,881.19",LONGHURST GROUP LTD,CARE ESTABLISHMENT,OPPD - Cost of Care - City South - Over 65,Older People - City & South - Care,Supported Living
Cambridgeshire County Council,08-Jul-22,51301816346,"-2,881.19",LONGHURST GROUP LTD,CARE ESTABLISHMENT,OPPD - Cost of Care - City South - Over 65,Older People - City & South - Care,Supported Living
Cambridgeshire County Council,08-Jul-22,51301816346,"-2,881.19",LONGHURST GROUP LTD,CARE ESTABLISHMENT,OPPD - Cost of Care - City South - Over 65,Older People - City & South - Care,Supported Living
Cambridgeshire County Council,08-Jul-22,51301816346,"-2,881.19",LONGHURST GROUP LTD,CARE ESTABLISHMENT,OPPD - Cost of Care - City South - Over 65,Older People - City & South - Care,Supported Living
Cambridgeshire County Council,08-Jul-22,51301816346,"-2,881.19",LONGHURST GROUP LTD,CARE ESTABLISHMENT,OPPD - Cost of Care - City South - Over 65,Older People - City & South - Care,Supported Living
Cambridgeshire County Council,08-Jul-22,51301816346,"-2,881.19",LONGHURST GROUP LTD,CARE ESTABLISHMENT,OPPD - Cost of Care - City South - Over 65,Older People - City & South - Care,Supported Living
Cambridgeshire County Council,08-Jul-22,51301816346,"-2,881.19",LONGHURST GROUP LTD,CARE ESTABLISHMENT,OPPD - Cost of Care - City South - Over 65,Older People - City & South - Care,Supported Living
Cambridgeshire County Council,08-Jul-22,51301816346,"-2,881.19",LONGHURST GROUP LTD,CARE ESTABLISHMENT,OPPD - Cost of Care - City South - Over 65,Older People - City & South - Care,Supported Living
Cambridgeshire County Council,08-Jul-22,51301816346,"-2,881.19",LONGHURST GROUP LTD,CARE ESTABLISHMENT,OPPD - Cost of Care - City South - Over 65,Older People - City & South - Care,Supported Living
Cambridgeshire County Council,08-Jul-22,51301816346,"-2,881.19",LONGHURST GROUP LTD,CARE ESTABLISHMENT,OPPD - Cost of Care - City South - Over 65,Older People - City & South - Care,Supported Living
Cambridgeshire County Council,08-Jul-22,51301816346,"-2,881.19",LONGHURST GROUP LTD,CARE ESTABLISHMENT,OPPD - Cost of Care - City South - Over 65,Older People - City & South - Care,Supported Living
Cambridgeshire County Council,08-Jul-22,51301816342,"-2,860.00",THE GABLES SPECIALIST NURSING HOME,CARE ESTABLISHMENT,OPPD - Cost of Care - Fenland Blocks,Fenland - Long term blocks,Nursing Care
Cambridgeshire County Council,08-Jul-22,51301816295,"-2,849.43",SOCIAL CARE SOLUTIONS LTD,CARE ESTABLISHMENT,LD - Fenland Locality - Cost of Care,LD - Fenland  - Care,Supported Living
Cambridgeshire County Council,08-Jul-22,51301816295,"-2,849.43",SOCIAL CARE SOLUTIONS LTD,CARE ESTABLISHMENT,LD - Fenland Locality - Cost of Care,LD - Fenland  - Care,Supported Living
Cambridgeshire County Council,08-Jul-22,51301816295,"-2,849.43",SOCIAL CARE SOLUTIONS LTD,CARE ESTABLISHMENT,LD - Fenland Locality - Cost of Care,LD - Fenland  - Care,Supported Living
Cambridgeshire County Council,08-Jul-22,51301816295,"-2,849.43",SOCIAL CARE SOLUTIONS LTD,CARE ESTABLISHMENT,LD - Fenland Locality - Cost of Care,LD - Fenland  - Care,Supported Living
Cambridgeshire County Council,08-Jul-22,51301816295,"-2,849.43",SOCIAL CARE SOLUTIONS LTD,CARE ESTABLISHMENT,LD - Fenland Locality - Cost of Care,LD - Fenland  - Care,Supported Living
Cambridgeshire County Council,08-Jul-22,51301816295,"-2,849.43",SOCIAL CARE SOLUTIONS LTD,CARE ESTABLISHMENT,LD - Fenland Locality - Cost of Care,LD - Fenland  - Care,Supported Living
Cambridgeshire County Council,08-Jul-22,51301816268,"-2,849.43",SOCIAL CARE SOLUTIONS LTD,CARE ESTABLISHMENT,LD - Hunts Locality - Cost of Care,LD - Huntingdonshire - Care,Supported Living
Cambridgeshire County Council,08-Jul-22,51301816268,"-2,849.43",SOCIAL CARE SOLUTIONS LTD,CARE ESTABLISHMENT,LD - Hunts Locality - Cost of Care,LD - Huntingdonshire - Care,Supported Living
Cambridgeshire County Council,08-Jul-22,51301816268,"-2,849.43",SOCIAL CARE SOLUTIONS LTD,CARE ESTABLISHMENT,LD - Hunts Locality - Cost of Care,LD - Huntingdonshire - Care,Supported Living
Cambridgeshire County Council,08-Jul-22,51301816268,"-2,849.43",SOCIAL CARE SOLUTIONS LTD,CARE ESTABLISHMENT,LD - Hunts Locality - Cost of Care,LD - Huntingdonshire - Care,Supported Living
Cambridgeshire County Council,08-Jul-22,51301816345,"-2,847.95",RADIS COMMUNITY CARE,CARE ESTABLISHMENT,OPPD - Cost of Care - Fenland - Over 65,Older People - Fenland - Care,Supported Living
Cambridgeshire County Council,20-Jul-22,51301821698,"-2,834.09",ALDERWOOD LLA LTD,CARE ESTABLISHMENT,LD - Hunts Locality - Cost of Care,LD - Huntingdonshire - Care,Residential Care
Cambridgeshire County Council,20-Jul-22,51301821698,"-2,834.09",ALDERWOOD LLA LTD,CARE ESTABLISHMENT,LD - Hunts Locality - Cost of Care,LD - Huntingdonshire - Care,Residential Care
Cambridgeshire County Council,20-Jul-22,51301821698,"-2,834.09",ALDERWOOD LLA LTD,CARE ESTABLISHMENT,LD - Hunts Locality - Cost of Care,LD - Huntingdonshire - Care,Residential Care
Cambridgeshire County Council,20-Jul-22,51301821698,"-2,834.09",ALDERWOOD LLA LTD,CARE ESTABLISHMENT,LD - Hunts Locality - Cost of Care,LD - Huntingdonshire - Care,Residential Care
Cambridgeshire County Council,20-Jul-22,51301821698,"-2,834.09",ALDERWOOD LLA LTD,CARE ESTABLISHMENT,LD - Hunts Locality - Cost of Care,LD - Huntingdonshire - Care,Residential Care
Cambridgeshire County Council,20-Jul-22,51301821698,"-2,834.09",ALDERWOOD LLA LTD,CARE ESTABLISHMENT,LD - Hunts Locality - Cost of Care,LD - Huntingdonshire - Care,Residential Care
Cambridgeshire County Council,20-Jul-22,51301821698,"-2,834.09",ALDERWOOD LLA LTD,CARE ESTABLISHMENT,LD - Hunts Locality - Cost of Care,LD - Huntingdonshire - Care,Residential Care
Cambridgeshire County Council,20-Jul-22,51301821608,"-2,834.09",ALDERWOOD LLA LTD,CARE ESTABLISHMENT,LD - Hunts Locality - Cost of Care,LD - Huntingdonshire - Care,Residential Care
Cambridgeshire County Council,20-Jul-22,51301821608,"-2,834.09",ALDERWOOD LLA LTD,CARE ESTABLISHMENT,LD - Hunts Locality - Cost of Care,LD - Huntingdonshire - Care,Residential Care
Cambridgeshire County Council,20-Jul-22,51301821608,"-2,834.09",ALDERWOOD LLA LTD,CARE ESTABLISHMENT,LD - Hunts Locality - Cost of Care,LD - Huntingdonshire - Care,Residential Care
Cambridgeshire County Council,20-Jul-22,51301821608,"-2,834.09",ALDERWOOD LLA LTD,CARE ESTABLISHMENT,LD - Hunts Locality - Cost of Care,LD - Huntingdonshire - Care,Residential Care
Cambridgeshire County Council,20-Jul-22,51301821698,"-2,834.09",ALDERWOOD LLA LTD,CARE ESTABLISHMENT,LD - Hunts Locality - Cost of Care,LD - Huntingdonshire - Care,Residential Care
Cambridgeshire County Council,20-Jul-22,51301821698,"-2,834.09",ALDERWOOD LLA LTD,CARE ESTABLISHMENT,LD - Hunts Locality - Cost of Care,LD - Huntingdonshire - Care,Residential Care
Cambridgeshire County Council,20-Jul-22,51301821698,"-2,834.09",ALDERWOOD LLA LTD,CARE ESTABLISHMENT,LD - Hunts Locality - Cost of Care,LD - Huntingdonshire - Care,Residential Care
Cambridgeshire County Council,20-Jul-22,51301821698,"-2,834.09",ALDERWOOD LLA LTD,CARE ESTABLISHMENT,LD - Hunts Locality - Cost of Care,LD - Huntingdonshire - Care,Residential Care
Cambridgeshire County Council,20-Jul-22,51301821698,"-2,834.09",ALDERWOOD LLA LTD,CARE ESTABLISHMENT,LD - Hunts Locality - Cost of Care,LD - Huntingdonshire - Care,Residential Care
Cambridgeshire County Council,20-Jul-22,51301821698,"-2,834.09",ALDERWOOD LLA LTD,CARE ESTABLISHMENT,LD - Hunts Locality - Cost of Care,LD - Huntingdonshire - Care,Residential Care
Cambridgeshire County Council,20-Jul-22,51301821698,"-2,834.09",ALDERWOOD LLA LTD,CARE ESTABLISHMENT,LD - Hunts Locality - Cost of Care,LD - Huntingdonshire - Care,Residential Care
Cambridgeshire County Council,20-Jul-22,51301821698,"-2,834.09",ALDERWOOD LLA LTD,CARE ESTABLISHMENT,LD - Hunts Locality - Cost of Care,LD - Huntingdonshire - Care,Residential Care
Cambridgeshire County Council,08-Jul-22,51301816817,"-2,757.12",SENSE (MIDLANDS),CARE ESTABLISHMENT,LD - Hunts Locality - Cost of Care,LD - Huntingdonshire - Care,Residential Care
Cambridgeshire County Council,08-Jul-22,51301816817,"-2,757.12",SENSE (MIDLANDS),CARE ESTABLISHMENT,LD - Hunts Locality - Cost of Care,LD - Huntingdonshire - Care,Residential Care
Cambridgeshire County Council,08-Jul-22,51301816817,"-2,757.12",SENSE (MIDLANDS),CARE ESTABLISHMENT,LD - Hunts Locality - Cost of Care,LD - Huntingdonshire - Care,Residential Care
Cambridgeshire County Council,08-Jul-22,51301816817,"-2,757.12",SENSE (MIDLANDS),CARE ESTABLISHMENT,LD - Hunts Locality - Cost of Care,LD - Huntingdonshire - Care,Residential Care
Cambridgeshire County Council,08-Jul-22,51301816817,"-2,757.12",SENSE (MIDLANDS),CARE ESTABLISHMENT,LD - Hunts Locality - Cost of Care,LD - Huntingdonshire - Care,Residential Care
Cambridgeshire County Council,08-Jul-22,51301816817,"-2,757.12",SENSE (MIDLANDS),CARE ESTABLISHMENT,LD - Hunts Locality - Cost of Care,LD - Huntingdonshire - Care,Residential Care
Cambridgeshire County Council,08-Jul-22,51301816817,"-2,757.12",SENSE (MIDLANDS),CARE ESTABLISHMENT,LD - Hunts Locality - Cost of Care,LD - Huntingdonshire - Care,Residential Care
Cambridgeshire County Council,08-Jul-22,51301816817,"-2,757.12",SENSE (MIDLANDS),CARE ESTABLISHMENT,LD - Hunts Locality - Cost of Care,LD - Huntingdonshire - Care,Residential Care
Cambridgeshire County Council,08-Jul-22,51301816817,"-2,757.12",SENSE (MIDLANDS),CARE ESTABLISHMENT,LD - Hunts Locality - Cost of Care,LD - Huntingdonshire - Care,Residential Care
Cambridgeshire County Council,08-Jul-22,51301816817,"-2,757.12",SENSE (MIDLANDS),CARE ESTABLISHMENT,LD - Hunts Locality - Cost of Care,LD - Huntingdonshire - Care,Residential Care
Cambridgeshire County Council,08-Jul-22,51301816817,"-2,757.12",SENSE (MIDLANDS),CARE ESTABLISHMENT,LD - Hunts Locality - Cost of Care,LD - Huntingdonshire - Care,Residential Care
Cambridgeshire County Council,08-Jul-22,51301816817,"-2,757.12",SENSE (MIDLANDS),CARE ESTABLISHMENT,LD - Hunts Locality - Cost of Care,LD - Huntingdonshire - Care,Residential Care
Cambridgeshire County Council,08-Jul-22,51301816817,"-2,757.12",SENSE (MIDLANDS),CARE ESTABLISHMENT,LD - Hunts Locality - Cost of Care,LD - Huntingdonshire - Care,Residential Care
Cambridgeshire County Council,08-Jul-22,51301816817,"-2,757.12",SENSE (MIDLANDS),CARE ESTABLISHMENT,LD - Hunts Locality - Cost of Care,LD - Huntingdonshire - Care,Residential Care
Cambridgeshire County Council,08-Jul-22,51301816817,"-2,757.12",SENSE (MIDLANDS),CARE ESTABLISHMENT,LD - Hunts Locality - Cost of Care,LD - Huntingdonshire - Care,Residential Care
Cambridgeshire County Council,08-Jul-22,51301816455,"-2,725.64",THE EDMUND TRUST,CARE ESTABLISHMENT,LD - East Locality - Cost of Care,LD - East Cambs - Special Needs,Day Care
Cambridgeshire County Council,08-Jul-22,51301816455,"-2,725.64",THE EDMUND TRUST,CARE ESTABLISHMENT,LD - East Locality - Cost of Care,LD - East Cambs - Special Needs,Day Care
Cambridgeshire County Council,08-Jul-22,51301816455,"-2,725.64",THE EDMUND TRUST,CARE ESTABLISHMENT,LD - East Locality - Cost of Care,LD - East Cambs - Special Needs,Day Care
Cambridgeshire County Council,08-Jul-22,51301816455,"-2,725.64",THE EDMUND TRUST,CARE ESTABLISHMENT,LD - East Locality - Cost of Care,LD - East Cambs - Special Needs,Day Care
Cambridgeshire County Council,08-Jul-22,51301816455,"-2,725.64",THE EDMUND TRUST,CARE ESTABLISHMENT,LD - East Locality - Cost of Care,LD - East Cambs - Special Needs,Day Care
Cambridgeshire County Council,08-Jul-22,51301816455,"-2,725.64",THE EDMUND TRUST,CARE ESTABLISHMENT,LD - East Locality - Cost of Care,LD - East Cambs - Special Needs,Day Care
Cambridgeshire County Council,08-Jul-22,51301816455,"-2,725.64",THE EDMUND TRUST,CARE ESTABLISHMENT,LD - East Locality - Cost of Care,LD - East Cambs - Special Needs,Day Care
Cambridgeshire County Council,08-Jul-22,51301816455,"-2,725.64",THE EDMUND TRUST,CARE ESTABLISHMENT,LD - East Locality - Cost of Care,LD - East Cambs - Special Needs,Day Care
Cambridgeshire County Council,08-Jul-22,51301816455,"-2,725.64",THE EDMUND TRUST,CARE ESTABLISHMENT,LD - East Locality - Cost of Care,LD - East Cambs - Special Needs,Day Care
Cambridgeshire County Council,08-Jul-22,51301816455,"-2,725.64",THE EDMUND TRUST,CARE ESTABLISHMENT,LD - East Locality - Cost of Care,LD - East Cambs - Special Needs,Day Care
Cambridgeshire County Council,08-Jul-22,51301816455,"-2,725.64",THE EDMUND TRUST,CARE ESTABLISHMENT,LD - East Locality - Cost of Care,LD - East Cambs - Special Needs,Day Care
Cambridgeshire County Council,08-Jul-22,51301816347,"-2,680.64",Allied Health-Services Limited,CARE ESTABLISHMENT,OPPD - Cost of Care - City South - Over 65,Older People - City & South - Care,Supported Living
Cambridgeshire County Council,08-Jul-22,51301816347,"-2,680.64",Allied Health-Services Limited,CARE ESTABLISHMENT,OPPD - Cost of Care - City South - Over 65,Older People - City & South - Care,Supported Living
Cambridgeshire County Council,08-Jul-22,51301816347,"-2,680.64",Allied Health-Services Limited,CARE ESTABLISHMENT,OPPD - Cost of Care - City South - Over 65,Older People - City & South - Care,Supported Living
Cambridgeshire County Council,08-Jul-22,51301816347,"-2,680.64",Allied Health-Services Limited,CARE ESTABLISHMENT,OPPD - Cost of Care - City South - Over 65,Older People - City & South - Care,Supported Living
Cambridgeshire County Council,08-Jul-22,51301816347,"-2,680.64",Allied Health-Services Limited,CARE ESTABLISHMENT,OPPD - Cost of Care - City South - Over 65,Older People - City & South - Care,Supported Living
Cambridgeshire County Council,08-Jul-22,51301816347,"-2,680.64",Allied Health-Services Limited,CARE ESTABLISHMENT,OPPD - Cost of Care - City South - Over 65,Older People - City & South - Care,Supported Living
Cambridgeshire County Council,08-Jul-22,51301816347,"-2,680.64",Allied Health-Services Limited,CARE ESTABLISHMENT,OPPD - Cost of Care - City South - Over 65,Older People - City & South - Care,Supported Living
Cambridgeshire County Council,08-Jul-22,51301816347,"-2,680.64",Allied Health-Services Limited,CARE ESTABLISHMENT,OPPD - Cost of Care - City South - Over 65,Older People - City & South - Care,Supported Living
Cambridgeshire County Council,08-Jul-22,51301816347,"-2,680.64",Allied Health-Services Limited,CARE ESTABLISHMENT,OPPD - Cost of Care - City South - Over 65,Older People - City & South - Care,Supported Living
Cambridgeshire County Council,08-Jul-22,51301816347,"-2,680.64",Allied Health-Services Limited,CARE ESTABLISHMENT,OPPD - Cost of Care - City South - Over 65,Older People - City & South - Care,Supported Living
Cambridgeshire County Council,08-Jul-22,51301816347,"-2,680.64",Allied Health-Services Limited,CARE ESTABLISHMENT,OPPD - Cost of Care - City South - Over 65,Older People - City & South - Care,Supported Living
Cambridgeshire County Council,08-Jul-22,51301816347,"-2,680.64",Allied Health-Services Limited,CARE ESTABLISHMENT,OPPD - Cost of Care - City South - Over 65,Older People - City & South - Care,Supported Living
Cambridgeshire County Council,08-Jul-22,51301816347,"-2,680.64",Allied Health-Services Limited,CARE ESTABLISHMENT,OPPD - Cost of Care - City South - Over 65,Older People - City & South - Care,Supported Living
Cambridgeshire County Council,08-Jul-22,51301816347,"-2,680.64",Allied Health-Services Limited,CARE ESTABLISHMENT,OPPD - Cost of Care - City South - Over 65,Older People - City & South - Care,Supported Living
Cambridgeshire County Council,08-Jul-22,51301816347,"-2,680.64",Allied Health-Services Limited,CARE ESTABLISHMENT,OPPD - Cost of Care - City South - Over 65,Older People - City & South - Care,Supported Living
Cambridgeshire County Council,08-Jul-22,51301816347,"-2,680.64",Allied Health-Services Limited,CARE ESTABLISHMENT,OPPD - Cost of Care - City South - Over 65,Older People - City & South - Care,Supported Living
Cambridgeshire County Council,08-Jul-22,51301816347,"-2,680.64",Allied Health-Services Limited,CARE ESTABLISHMENT,OPPD - Cost of Care - City South - Over 65,Older People - City & South - Care,Supported Living
Cambridgeshire County Council,08-Jul-22,51301816347,"-2,680.64",Allied Health-Services Limited,CARE ESTABLISHMENT,OPPD - Cost of Care - City South - Over 65,Older People - City & South - Care,Supported Living
Cambridgeshire County Council,08-Jul-22,51301816347,"-2,680.64",Allied Health-Services Limited,CARE ESTABLISHMENT,OPPD - Cost of Care - City South - Over 65,Older People - City & South - Care,Supported Living
Cambridgeshire County Council,08-Jul-22,51301816347,"-2,680.64",Allied Health-Services Limited,CARE ESTABLISHMENT,OPPD - Cost of Care - City South - Over 65,Older People - City & South - Care,Supported Living
Cambridgeshire County Council,08-Jul-22,51301816347,"-2,680.64",Allied Health-Services Limited,CARE ESTABLISHMENT,OPPD - Cost of Care - City South - Over 65,Older People - City & South - Care,Supported Living
Cambridgeshire County Council,08-Jul-22,51301816347,"-2,680.64",Allied Health-Services Limited,CARE ESTABLISHMENT,OPPD - Cost of Care - City South - Over 65,Older People - City & South - Care,Supported Living
Cambridgeshire County Council,08-Jul-22,51301816347,"-2,680.64",Allied Health-Services Limited,CARE ESTABLISHMENT,OPPD - Cost of Care - City South - Over 65,Older People - City & South - Care,Supported Living
Cambridgeshire County Council,08-Jul-22,51301816347,"-2,680.64",Allied Health-Services Limited,CARE ESTABLISHMENT,OPPD - Cost of Care - City South - Over 65,Older People - City & South - Care,Supported Living
Cambridgeshire County Council,08-Jul-22,51301816347,"-2,680.64",Allied Health-Services Limited,CARE ESTABLISHMENT,OPPD - Cost of Care - City South - Over 65,Older People - City & South - Care,Supported Living
Cambridgeshire County Council,08-Jul-22,51301816347,"-2,680.64",Allied Health-Services Limited,CARE ESTABLISHMENT,OPPD - Cost of Care - City South - Over 65,Older People - City & South - Care,Supported Living
Cambridgeshire County Council,08-Jul-22,51301816347,"-2,680.64",Allied Health-Services Limited,CARE ESTABLISHMENT,OPPD - Cost of Care - City South - Over 65,Older People - City & South - Care,Supported Living
Cambridgeshire County Council,08-Jul-22,51301816347,"-2,680.64",Allied Health-Services Limited,CARE ESTABLISHMENT,OPPD - Cost of Care - City South - Over 65,Older People - City & South - Care,Supported Living
Cambridgeshire County Council,08-Jul-22,51301816347,"-2,680.64",Allied Health-Services Limited,CARE ESTABLISHMENT,OPPD - Cost of Care - City South - Over 65,Older People - City & South - Care,Supported Living
Cambridgeshire County Council,08-Jul-22,51301816347,"-2,680.64",Allied Health-Services Limited,CARE ESTABLISHMENT,OPPD - Cost of Care - City South - Over 65,Older People - City & South - Care,Supported Living
Cambridgeshire County Council,08-Jul-22,51301816347,"-2,680.64",Allied Health-Services Limited,CARE ESTABLISHMENT,OPPD - Cost of Care - City South - Over 65,Older People - City & South - Care,Supported Living
Cambridgeshire County Council,08-Jul-22,51301816347,"-2,680.64",Allied Health-Services Limited,CARE ESTABLISHMENT,OPPD - Cost of Care - City South - Over 65,Older People - City & South - Care,Supported Living
Cambridgeshire County Council,08-Jul-22,51301816347,"-2,680.64",Allied Health-Services Limited,CARE ESTABLISHMENT,OPPD - Cost of Care - City South - Over 65,Older People - City & South - Care,Supported Living
Cambridgeshire County Council,08-Jul-22,51301816347,"-2,680.64",Allied Health-Services Limited,CARE ESTABLISHMENT,OPPD - Cost of Care - City South - Over 65,Older People - City & South - Care,Supported Living
Cambridgeshire County Council,08-Jul-22,51301816347,"-2,680.64",Allied Health-Services Limited,CARE ESTABLISHMENT,OPPD - Cost of Care - City South - Over 65,Older People - City & South - Care,Supported Living
Cambridgeshire County Council,08-Jul-22,51301816347,"-2,680.64",Allied Health-Services Limited,CARE ESTABLISHMENT,OPPD - Cost of Care - City South - Over 65,Older People - City & South - Care,Supported Living
Cambridgeshire County Council,08-Jul-22,51301816347,"-2,680.64",Allied Health-Services Limited,CARE ESTABLISHMENT,OPPD - Cost of Care - City South - Over 65,Older People - City & South - Care,Supported Living
Cambridgeshire County Council,08-Jul-22,51301816347,"-2,680.64",Allied Health-Services Limited,CARE ESTABLISHMENT,OPPD - Cost of Care - City South - Over 65,Older People - City & South - Care,Supported Living
Cambridgeshire County Council,08-Jul-22,51301816347,"-2,680.64",Allied Health-Services Limited,CARE ESTABLISHMENT,OPPD - Cost of Care - City South - Over 65,Older People - City & South - Care,Supported Living
Cambridgeshire County Council,08-Jul-22,51301816347,"-2,680.64",Allied Health-Services Limited,CARE ESTABLISHMENT,OPPD - Cost of Care - City South - Over 65,Older People - City & South - Care,Supported Living
Cambridgeshire County Council,08-Jul-22,51301816347,"-2,680.64",Allied Health-Services Limited,CARE ESTABLISHMENT,OPPD - Cost of Care - City South - Over 65,Older People - City & South - Care,Supported Living
Cambridgeshire County Council,08-Jul-22,51301816347,"-2,680.64",Allied Health-Services Limited,CARE ESTABLISHMENT,OPPD - Cost of Care - City South - Over 65,Older People - City & South - Care,Supported Living
Cambridgeshire County Council,08-Jul-22,51301816347,"-2,680.64",Allied Health-Services Limited,CARE ESTABLISHMENT,OPPD - Cost of Care - City South - Over 65,Older People - City & South - Care,Supported Living
Cambridgeshire County Council,08-Jul-22,51301816347,"-2,680.64",Allied Health-Services Limited,CARE ESTABLISHMENT,OPPD - Cost of Care - City South - Over 65,Older People - City & South - Care,Supported Living
Cambridgeshire County Council,08-Jul-22,51301816347,"-2,680.64",Allied Health-Services Limited,CARE ESTABLISHMENT,OPPD - Cost of Care - City South - Over 65,Older People - City & South - Care,Supported Living
Cambridgeshire County Council,08-Jul-22,51301816347,"-2,680.64",Allied Health-Services Limited,CARE ESTABLISHMENT,OPPD - Cost of Care - City South - Over 65,Older People - City & South - Care,Supported Living
Cambridgeshire County Council,08-Jul-22,51301816347,"-2,680.64",Allied Health-Services Limited,CARE ESTABLISHMENT,OPPD - Cost of Care - City South - Over 65,Older People - City & South - Care,Supported Living
Cambridgeshire County Council,08-Jul-22,51301816347,"-2,680.64",Allied Health-Services Limited,CARE ESTABLISHMENT,OPPD - Cost of Care - City South - Over 65,Older People - City & South - Care,Supported Living
Cambridgeshire County Council,08-Jul-22,51301816347,"-2,680.64",Allied Health-Services Limited,CARE ESTABLISHMENT,OPPD - Cost of Care - City South - Over 65,Older People - City & South - Care,Supported Living
Cambridgeshire County Council,08-Jul-22,51301816347,"-2,680.64",Allied Health-Services Limited,CARE ESTABLISHMENT,OPPD - Cost of Care - City South - Over 65,Older People - City & South - Care,Supported Living
Cambridgeshire County Council,08-Jul-22,51301816347,"-2,680.64",Allied Health-Services Limited,CARE ESTABLISHMENT,OPPD - Cost of Care - City South - Over 65,Older People - City & South - Care,Supported Living
Cambridgeshire County Council,08-Jul-22,51301816347,"-2,680.64",Allied Health-Services Limited,CARE ESTABLISHMENT,OPPD - Cost of Care - City South - Over 65,Older People - City & South - Care,Supported Living
Cambridgeshire County Council,08-Jul-22,51301816347,"-2,680.64",Allied Health-Services Limited,CARE ESTABLISHMENT,OPPD - Cost of Care - City South - Over 65,Older People - City & South - Care,Supported Living
Cambridgeshire County Council,08-Jul-22,51301816347,"-2,680.64",Allied Health-Services Limited,CARE ESTABLISHMENT,OPPD - Cost of Care - City South - Over 65,Older People - City & South - Care,Supported Living
Cambridgeshire County Council,08-Jul-22,51301816347,"-2,680.64",Allied Health-Services Limited,CARE ESTABLISHMENT,OPPD - Cost of Care - City South - Over 65,Older People - City & South - Care,Supported Living
Cambridgeshire County Council,08-Jul-22,51301816347,"-2,680.64",Allied Health-Services Limited,CARE ESTABLISHMENT,OPPD - Cost of Care - City South - Over 65,Older People - City & South - Care,Supported Living
Cambridgeshire County Council,08-Jul-22,51301816347,"-2,680.64",Allied Health-Services Limited,CARE ESTABLISHMENT,OPPD - Cost of Care - City South - Over 65,Older People - City & South - Care,Supported Living
Cambridgeshire County Council,08-Jul-22,51301816347,"-2,680.64",Allied Health-Services Limited,CARE ESTABLISHMENT,OPPD - Cost of Care - City South - Over 65,Older People - City & South - Care,Supported Living
Cambridgeshire County Council,08-Jul-22,51301816347,"-2,680.64",Allied Health-Services Limited,CARE ESTABLISHMENT,OPPD - Cost of Care - City South - Over 65,Older People - City & South - Care,Supported Living
Cambridgeshire County Council,08-Jul-22,51301816347,"-2,680.64",Allied Health-Services Limited,CARE ESTABLISHMENT,OPPD - Cost of Care - City South - Over 65,Older People - City & South - Care,Supported Living
Cambridgeshire County Council,08-Jul-22,51301816347,"-2,680.64",Allied Health-Services Limited,CARE ESTABLISHMENT,OPPD - Cost of Care - City South - Over 65,Older People - City & South - Care,Supported Living
Cambridgeshire County Council,08-Jul-22,51301816347,"-2,680.64",Allied Health-Services Limited,CARE ESTABLISHMENT,OPPD - Cost of Care - City South - Over 65,Older People - City & South - Care,Supported Living
Cambridgeshire County Council,08-Jul-22,51301816347,"-2,680.64",Allied Health-Services Limited,CARE ESTABLISHMENT,OPPD - Cost of Care - City South - Over 65,Older People - City & South - Care,Supported Living
Cambridgeshire County Council,13-Jul-22,51301818888,"-2,678.22",AFFINITY TRUST,CARE ESTABLISHMENT,LD - Fenland Locality - Cost of Care,LD - Fenland  - Care,Domiciliary Care
Cambridgeshire County Council,13-Jul-22,51301818888,"-2,678.22",AFFINITY TRUST,CARE ESTABLISHMENT,LD - Fenland Locality - Cost of Care,LD - Fenland  - Care,Domiciliary Care
Cambridgeshire County Council,13-Jul-22,51301818888,"-2,678.22",AFFINITY TRUST,CARE ESTABLISHMENT,LD - Fenland Locality - Cost of Care,LD - Fenland  - Care,Domiciliary Care
Cambridgeshire County Council,13-Jul-22,51301818888,"-2,678.22",AFFINITY TRUST,CARE ESTABLISHMENT,LD - Fenland Locality - Cost of Care,LD - Fenland  - Care,Domiciliary Care
Cambridgeshire County Council,13-Jul-22,51301818888,"-2,678.22",AFFINITY TRUST,CARE ESTABLISHMENT,LD - Fenland Locality - Cost of Care,LD - Fenland  - Care,Domiciliary Care
Cambridgeshire County Council,13-Jul-22,51301818888,"-2,678.22",AFFINITY TRUST,CARE ESTABLISHMENT,LD - Fenland Locality - Cost of Care,LD - Fenland  - Care,Domiciliary Care
Cambridgeshire County Council,13-Jul-22,51301818888,"-2,678.22",AFFINITY TRUST,CARE ESTABLISHMENT,LD - Fenland Locality - Cost of Care,LD - Fenland  - Care,Domiciliary Care
Cambridgeshire County Council,13-Jul-22,51301818888,"-2,678.22",AFFINITY TRUST,CARE ESTABLISHMENT,LD - Fenland Locality - Cost of Care,LD - Fenland  - Care,Domiciliary Care
Cambridgeshire County Council,13-Jul-22,51301818888,"-2,678.22",AFFINITY TRUST,CARE ESTABLISHMENT,LD - Fenland Locality - Cost of Care,LD - Fenland  - Care,Domiciliary Care
Cambridgeshire County Council,13-Jul-22,51301818888,"-2,678.22",AFFINITY TRUST,CARE ESTABLISHMENT,LD - Fenland Locality - Cost of Care,LD - Fenland  - Care,Domiciliary Care
Cambridgeshire County Council,13-Jul-22,51301818888,"-2,678.22",AFFINITY TRUST,CARE ESTABLISHMENT,LD - Fenland Locality - Cost of Care,LD - Fenland  - Care,Domiciliary Care
Cambridgeshire County Council,08-Jul-22,51301815879,"-2,673.00",THE BEECHES UK LIMITED,CARE ESTABLISHMENT,Autism and Adult Support - Cost of Care,Autism and Adult Support - Care,Residential Care
Cambridgeshire County Council,08-Jul-22,51301815879,"-2,673.00",THE BEECHES UK LIMITED,CARE ESTABLISHMENT,Autism and Adult Support - Cost of Care,Autism and Adult Support - Care,Residential Care
Cambridgeshire County Council,08-Jul-22,51301815879,"-2,673.00",THE BEECHES UK LIMITED,CARE ESTABLISHMENT,Autism and Adult Support - Cost of Care,Autism and Adult Support - Care,Residential Care
Cambridgeshire County Council,08-Jul-22,51301815879,"-2,673.00",THE BEECHES UK LIMITED,CARE ESTABLISHMENT,Autism and Adult Support - Cost of Care,Autism and Adult Support - Care,Residential Care
Cambridgeshire County Council,08-Jul-22,51301815879,"-2,673.00",THE BEECHES UK LIMITED,CARE ESTABLISHMENT,Autism and Adult Support - Cost of Care,Autism and Adult Support - Care,Residential Care
Cambridgeshire County Council,08-Jul-22,51301815879,"-2,673.00",THE BEECHES UK LIMITED,CARE ESTABLISHMENT,Autism and Adult Support - Cost of Care,Autism and Adult Support - Care,Residential Care
Cambridgeshire County Council,08-Jul-22,51301815879,"-2,673.00",THE BEECHES UK LIMITED,CARE ESTABLISHMENT,Autism and Adult Support - Cost of Care,Autism and Adult Support - Care,Residential Care
Cambridgeshire County Council,08-Jul-22,51301815879,"-2,673.00",THE BEECHES UK LIMITED,CARE ESTABLISHMENT,Autism and Adult Support - Cost of Care,Autism and Adult Support - Care,Residential Care
Cambridgeshire County Council,08-Jul-22,51301815879,"-2,673.00",THE BEECHES UK LIMITED,CARE ESTABLISHMENT,Autism and Adult Support - Cost of Care,Autism and Adult Support - Care,Residential Care
Cambridgeshire County Council,08-Jul-22,51301815879,"-2,673.00",THE BEECHES UK LIMITED,CARE ESTABLISHMENT,Autism and Adult Support - Cost of Care,Autism and Adult Support - Care,Residential Care
Cambridgeshire County Council,08-Jul-22,51301815879,"-2,673.00",THE BEECHES UK LIMITED,CARE ESTABLISHMENT,Autism and Adult Support - Cost of Care,Autism and Adult Support - Care,Residential Care
Cambridgeshire County Council,08-Jul-22,51301815879,"-2,673.00",THE BEECHES UK LIMITED,CARE ESTABLISHMENT,Autism and Adult Support - Cost of Care,Autism and Adult Support - Care,Residential Care
Cambridgeshire County Council,08-Jul-22,51301815879,"-2,673.00",THE BEECHES UK LIMITED,CARE ESTABLISHMENT,Autism and Adult Support - Cost of Care,Autism and Adult Support - Care,Residential Care
Cambridgeshire County Council,06-Jul-22,51301813263,"-2,629.58",Redacted Personal Data,SERVICE USER,LD - Hunts Locality - Cost of Care,LD - Huntingdonshire - Special Needs,Direct Payments
Cambridgeshire County Council,08-Jul-22,51301816241,"-2,557.31",SOCIAL CARE SOLUTIONS LTD,CARE ESTABLISHMENT,LD - Young Adults Team,LD - Young Adults - Care,Supported Living
Cambridgeshire County Council,08-Jul-22,51301816241,"-2,557.31",SOCIAL CARE SOLUTIONS LTD,CARE ESTABLISHMENT,LD - Young Adults Team,LD - Young Adults - Care,Supported Living
Cambridgeshire County Council,08-Jul-22,51301816241,"-2,557.31",SOCIAL CARE SOLUTIONS LTD,CARE ESTABLISHMENT,LD - Young Adults Team,LD - Young Adults - Care,Supported Living
Cambridgeshire County Council,08-Jul-22,51301816241,"-2,557.31",SOCIAL CARE SOLUTIONS LTD,CARE ESTABLISHMENT,LD - Young Adults Team,LD - Young Adults - Care,Supported Living
Cambridgeshire County Council,08-Jul-22,51301816241,"-2,557.31",SOCIAL CARE SOLUTIONS LTD,CARE ESTABLISHMENT,LD - Young Adults Team,LD - Young Adults - Care,Supported Living
Cambridgeshire County Council,08-Jul-22,51301816241,"-2,557.31",SOCIAL CARE SOLUTIONS LTD,CARE ESTABLISHMENT,LD - Young Adults Team,LD - Young Adults - Care,Supported Living
Cambridgeshire County Council,08-Jul-22,51301816241,"-2,557.31",SOCIAL CARE SOLUTIONS LTD,CARE ESTABLISHMENT,LD - Young Adults Team,LD - Young Adults - Care,Supported Living
Cambridgeshire County Council,08-Jul-22,51301816241,"-2,557.31",SOCIAL CARE SOLUTIONS LTD,CARE ESTABLISHMENT,LD - Young Adults Team,LD - Young Adults - Care,Supported Living
Cambridgeshire County Council,08-Jul-22,51301816241,"-2,557.31",SOCIAL CARE SOLUTIONS LTD,CARE ESTABLISHMENT,LD - Young Adults Team,LD - Young Adults - Care,Supported Living
Cambridgeshire County Council,08-Jul-22,51301816241,"-2,557.31",SOCIAL CARE SOLUTIONS LTD,CARE ESTABLISHMENT,LD - Young Adults Team,LD - Young Adults - Care,Supported Living
Cambridgeshire County Council,08-Jul-22,51301816241,"-2,557.31",SOCIAL CARE SOLUTIONS LTD,CARE ESTABLISHMENT,LD - Young Adults Team,LD - Young Adults - Care,Supported Living
Cambridgeshire County Council,08-Jul-22,51301816342,"-2,554.97",THE GABLES SPECIALIST NURSING HOME,CARE ESTABLISHMENT,OPPD - Cost of Care - Fenland Blocks,Fenland - Long term blocks,Nursing Care
Cambridgeshire County Council,08-Jul-22,51301816304,"-2,554.97",RHEOLA HEALTHCARE,CARE ESTABLISHMENT,OPPD - Cost of Care - Huntingdon Blocks,Hunts - Long term blocks,Residential Care
Cambridgeshire County Council,20-Jul-22,51301821235,"-2,532.59",AFFINITY TRUST,CARE ESTABLISHMENT,LD - Fenland Locality - Cost of Care,LD - Fenland  - Care,Homecare
Cambridgeshire County Council,20-Jul-22,51301821235,"-2,532.59",AFFINITY TRUST,CARE ESTABLISHMENT,LD - Fenland Locality - Cost of Care,LD - Fenland  - Care,Homecare
Cambridgeshire County Council,20-Jul-22,51301821235,"-2,532.59",AFFINITY TRUST,CARE ESTABLISHMENT,LD - Fenland Locality - Cost of Care,LD - Fenland  - Care,Homecare
Cambridgeshire County Council,20-Jul-22,51301821235,"-2,532.59",AFFINITY TRUST,CARE ESTABLISHMENT,LD - Fenland Locality - Cost of Care,LD - Fenland  - Care,Homecare
Cambridgeshire County Council,20-Jul-22,51301821235,"-2,532.59",AFFINITY TRUST,CARE ESTABLISHMENT,LD - Fenland Locality - Cost of Care,LD - Fenland  - Care,Homecare
Cambridgeshire County Council,20-Jul-22,51301821235,"-2,532.59",AFFINITY TRUST,CARE ESTABLISHMENT,LD - Fenland Locality - Cost of Care,LD - Fenland  - Care,Homecare
Cambridgeshire County Council,20-Jul-22,51301821235,"-2,532.59",AFFINITY TRUST,CARE ESTABLISHMENT,LD - Fenland Locality - Cost of Care,LD - Fenland  - Care,Homecare
Cambridgeshire County Council,20-Jul-22,51301821235,"-2,532.59",AFFINITY TRUST,CARE ESTABLISHMENT,LD - Fenland Locality - Cost of Care,LD - Fenland  - Care,Homecare
Cambridgeshire County Council,20-Jul-22,51301821235,"-2,532.59",AFFINITY TRUST,CARE ESTABLISHMENT,LD - Fenland Locality - Cost of Care,LD - Fenland  - Care,Homecare
Cambridgeshire County Council,20-Jul-22,51301821235,"-2,532.59",AFFINITY TRUST,CARE ESTABLISHMENT,LD - Fenland Locality - Cost of Care,LD - Fenland  - Care,Homecare
Cambridgeshire County Council,20-Jul-22,51301821235,"-2,532.59",AFFINITY TRUST,CARE ESTABLISHMENT,LD - Fenland Locality - Cost of Care,LD - Fenland  - Care,Homecare
Cambridgeshire County Council,20-Jul-22,51301821235,"-2,532.59",AFFINITY TRUST,CARE ESTABLISHMENT,LD - Fenland Locality - Cost of Care,LD - Fenland  - Care,Homecare
Cambridgeshire County Council,20-Jul-22,51301821235,"-2,532.59",AFFINITY TRUST,CARE ESTABLISHMENT,LD - Fenland Locality - Cost of Care,LD - Fenland  - Care,Homecare
Cambridgeshire County Council,20-Jul-22,51301821235,"-2,532.59",AFFINITY TRUST,CARE ESTABLISHMENT,LD - Fenland Locality - Cost of Care,LD - Fenland  - Care,Homecare
Cambridgeshire County Council,20-Jul-22,51301821235,"-2,532.59",AFFINITY TRUST,CARE ESTABLISHMENT,LD - Fenland Locality - Cost of Care,LD - Fenland  - Care,Homecare
Cambridgeshire County Council,08-Jul-22,51301817168,"-2,483.78",VOYAGE,CARE ESTABLISHMENT,LD - Hunts Locality - Cost of Care,LD - Huntingdonshire - Care,Supported Living
Cambridgeshire County Council,08-Jul-22,51301817168,"-2,483.78",VOYAGE,CARE ESTABLISHMENT,LD - Hunts Locality - Cost of Care,LD - Huntingdonshire - Care,Supported Living
Cambridgeshire County Council,08-Jul-22,51301817168,"-2,483.78",VOYAGE,CARE ESTABLISHMENT,LD - Hunts Locality - Cost of Care,LD - Huntingdonshire - Care,Supported Living
Cambridgeshire County Council,08-Jul-22,51301817168,"-2,483.78",VOYAGE,CARE ESTABLISHMENT,LD - Hunts Locality - Cost of Care,LD - Huntingdonshire - Care,Supported Living
Cambridgeshire County Council,08-Jul-22,51301817168,"-2,483.78",VOYAGE,CARE ESTABLISHMENT,LD - Hunts Locality - Cost of Care,LD - Huntingdonshire - Care,Supported Living
Cambridgeshire County Council,08-Jul-22,51301817168,"-2,483.78",VOYAGE,CARE ESTABLISHMENT,LD - Hunts Locality - Cost of Care,LD - Huntingdonshire - Care,Supported Living
Cambridgeshire County Council,08-Jul-22,51301817168,"-2,483.78",VOYAGE,CARE ESTABLISHMENT,LD - Hunts Locality - Cost of Care,LD - Huntingdonshire - Care,Supported Living
Cambridgeshire County Council,08-Jul-22,51301817168,"-2,483.78",VOYAGE,CARE ESTABLISHMENT,LD - Hunts Locality - Cost of Care,LD - Huntingdonshire - Care,Supported Living
Cambridgeshire County Council,08-Jul-22,51301817168,"-2,483.78",VOYAGE,CARE ESTABLISHMENT,LD - Hunts Locality - Cost of Care,LD - Huntingdonshire - Care,Supported Living
Cambridgeshire County Council,08-Jul-22,51301817168,"-2,483.78",VOYAGE,CARE ESTABLISHMENT,LD - Hunts Locality - Cost of Care,LD - Huntingdonshire - Care,Supported Living
Cambridgeshire County Council,08-Jul-22,51301817168,"-2,483.78",VOYAGE,CARE ESTABLISHMENT,LD - Hunts Locality - Cost of Care,LD - Huntingdonshire - Care,Supported Living
Cambridgeshire County Council,15-Jul-22,51301819321,"-2,472.05",CCS MEDIA LIMITED,TRADE SUPPLIER,ICT Service,ICT Service Sales,Materials for resale
Cambridgeshire County Council,13-Jul-22,51301818887,"-2,469.30",AFFINITY TRUST,CARE ESTABLISHMENT,LD - Fenland Locality - Cost of Care,LD - Fenland  - Special Needs,Supported Living
Cambridgeshire County Council,13-Jul-22,51301818887,"-2,469.30",AFFINITY TRUST,CARE ESTABLISHMENT,LD - Fenland Locality - Cost of Care,LD - Fenland  - Special Needs,Supported Living
Cambridgeshire County Council,13-Jul-22,51301818887,"-2,469.30",AFFINITY TRUST,CARE ESTABLISHMENT,LD - Fenland Locality - Cost of Care,LD - Fenland  - Special Needs,Supported Living
Cambridgeshire County Council,13-Jul-22,51301818887,"-2,469.30",AFFINITY TRUST,CARE ESTABLISHMENT,LD - Fenland Locality - Cost of Care,LD - Fenland  - Special Needs,Supported Living
Cambridgeshire County Council,13-Jul-22,51301818887,"-2,469.30",AFFINITY TRUST,CARE ESTABLISHMENT,LD - Fenland Locality - Cost of Care,LD - Fenland  - Special Needs,Supported Living
Cambridgeshire County Council,13-Jul-22,51301818887,"-2,469.30",AFFINITY TRUST,CARE ESTABLISHMENT,LD - Fenland Locality - Cost of Care,LD - Fenland  - Special Needs,Supported Living
Cambridgeshire County Council,13-Jul-22,51301818887,"-2,469.30",AFFINITY TRUST,CARE ESTABLISHMENT,LD - Fenland Locality - Cost of Care,LD - Fenland  - Special Needs,Supported Living
Cambridgeshire County Council,13-Jul-22,51301818887,"-2,469.30",AFFINITY TRUST,CARE ESTABLISHMENT,LD - Fenland Locality - Cost of Care,LD - Fenland  - Special Needs,Supported Living
Cambridgeshire County Council,13-Jul-22,51301818887,"-2,469.30",AFFINITY TRUST,CARE ESTABLISHMENT,LD - Fenland Locality - Cost of Care,LD - Fenland  - Special Needs,Supported Living
Cambridgeshire County Council,13-Jul-22,51301818887,"-2,469.30",AFFINITY TRUST,CARE ESTABLISHMENT,LD - Fenland Locality - Cost of Care,LD - Fenland  - Special Needs,Supported Living
Cambridgeshire County Council,13-Jul-22,51301818887,"-2,469.30",AFFINITY TRUST,CARE ESTABLISHMENT,LD - Fenland Locality - Cost of Care,LD - Fenland  - Special Needs,Supported Living
Cambridgeshire County Council,20-Jul-22,51301821609,"-2,442.06",AURORA ORCHARD MANOR,CARE ESTABLISHMENT,LD - South Locality - Cost of Care,LD - South Cambs - Care,Residential Care
Cambridgeshire County Council,20-Jul-22,51301821609,"-2,442.06",AURORA ORCHARD MANOR,CARE ESTABLISHMENT,LD - South Locality - Cost of Care,LD - South Cambs - Care,Residential Care
Cambridgeshire County Council,20-Jul-22,51301821609,"-2,442.06",AURORA ORCHARD MANOR,CARE ESTABLISHMENT,LD - South Locality - Cost of Care,LD - South Cambs - Care,Residential Care
Cambridgeshire County Council,20-Jul-22,51301821609,"-2,442.06",AURORA ORCHARD MANOR,CARE ESTABLISHMENT,LD - South Locality - Cost of Care,LD - South Cambs - Care,Residential Care
Cambridgeshire County Council,20-Jul-22,51301821699,"-2,442.06",AURORA ORCHARD MANOR,CARE ESTABLISHMENT,LD - South Locality - Cost of Care,LD - South Cambs - Care,Residential Care
Cambridgeshire County Council,20-Jul-22,51301821699,"-2,442.06",AURORA ORCHARD MANOR,CARE ESTABLISHMENT,LD - South Locality - Cost of Care,LD - South Cambs - Care,Residential Care
Cambridgeshire County Council,20-Jul-22,51301821699,"-2,442.06",AURORA ORCHARD MANOR,CARE ESTABLISHMENT,LD - South Locality - Cost of Care,LD - South Cambs - Care,Residential Care
Cambridgeshire County Council,20-Jul-22,51301821699,"-2,442.06",AURORA ORCHARD MANOR,CARE ESTABLISHMENT,LD - South Locality - Cost of Care,LD - South Cambs - Care,Residential Care
Cambridgeshire County Council,20-Jul-22,51301821699,"-2,442.06",AURORA ORCHARD MANOR,CARE ESTABLISHMENT,LD - South Locality - Cost of Care,LD - South Cambs - Care,Residential Care
Cambridgeshire County Council,20-Jul-22,51301821699,"-2,442.06",AURORA ORCHARD MANOR,CARE ESTABLISHMENT,LD - South Locality - Cost of Care,LD - South Cambs - Care,Residential Care
Cambridgeshire County Council,20-Jul-22,51301821699,"-2,442.06",AURORA ORCHARD MANOR,CARE ESTABLISHMENT,LD - South Locality - Cost of Care,LD - South Cambs - Care,Residential Care
Cambridgeshire County Council,20-Jul-22,51301821699,"-2,442.06",AURORA ORCHARD MANOR,CARE ESTABLISHMENT,LD - South Locality - Cost of Care,LD - South Cambs - Care,Residential Care
Cambridgeshire County Council,20-Jul-22,51301821699,"-2,442.06",AURORA ORCHARD MANOR,CARE ESTABLISHMENT,LD - South Locality - Cost of Care,LD - South Cambs - Care,Residential Care
Cambridgeshire County Council,20-Jul-22,51301821699,"-2,442.06",AURORA ORCHARD MANOR,CARE ESTABLISHMENT,LD - South Locality - Cost of Care,LD - South Cambs - Care,Residential Care
Cambridgeshire County Council,20-Jul-22,51301821699,"-2,442.06",AURORA ORCHARD MANOR,CARE ESTABLISHMENT,LD - South Locality - Cost of Care,LD - South Cambs - Care,Residential Care
Cambridgeshire County Council,20-Jul-22,51301821699,"-2,442.06",AURORA ORCHARD MANOR,CARE ESTABLISHMENT,LD - South Locality - Cost of Care,LD - South Cambs - Care,Residential Care
Cambridgeshire County Council,20-Jul-22,51301821699,"-2,442.06",AURORA ORCHARD MANOR,CARE ESTABLISHMENT,LD - South Locality - Cost of Care,LD - South Cambs - Care,Residential Care
Cambridgeshire County Council,20-Jul-22,51301821699,"-2,442.06",AURORA ORCHARD MANOR,CARE ESTABLISHMENT,LD - South Locality - Cost of Care,LD - South Cambs - Care,Residential Care
Cambridgeshire County Council,20-Jul-22,51301821699,"-2,442.06",AURORA ORCHARD MANOR,CARE ESTABLISHMENT,LD - South Locality - Cost of Care,LD - South Cambs - Care,Residential Care
Cambridgeshire County Council,08-Jul-22,51301816810,"-2,421.98",SENSE EAST,CARE ESTABLISHMENT,LD - South Locality - Cost of Care,LD - South Cambs - Care,Residential Care
Cambridgeshire County Council,08-Jul-22,51301816810,"-2,421.98",SENSE EAST,CARE ESTABLISHMENT,LD - South Locality - Cost of Care,LD - South Cambs - Care,Residential Care
Cambridgeshire County Council,08-Jul-22,51301816810,"-2,421.98",SENSE EAST,CARE ESTABLISHMENT,LD - South Locality - Cost of Care,LD - South Cambs - Care,Residential Care
Cambridgeshire County Council,08-Jul-22,51301816810,"-2,421.98",SENSE EAST,CARE ESTABLISHMENT,LD - South Locality - Cost of Care,LD - South Cambs - Care,Residential Care
Cambridgeshire County Council,08-Jul-22,51301816810,"-2,421.98",SENSE EAST,CARE ESTABLISHMENT,LD - South Locality - Cost of Care,LD - South Cambs - Care,Residential Care
Cambridgeshire County Council,08-Jul-22,51301816810,"-2,421.98",SENSE EAST,CARE ESTABLISHMENT,LD - South Locality - Cost of Care,LD - South Cambs - Care,Residential Care
Cambridgeshire County Council,08-Jul-22,51301816810,"-2,421.98",SENSE EAST,CARE ESTABLISHMENT,LD - South Locality - Cost of Care,LD - South Cambs - Care,Residential Care
Cambridgeshire County Council,08-Jul-22,51301816810,"-2,421.98",SENSE EAST,CARE ESTABLISHMENT,LD - South Locality - Cost of Care,LD - South Cambs - Care,Residential Care
Cambridgeshire County Council,08-Jul-22,51301816810,"-2,421.98",SENSE EAST,CARE ESTABLISHMENT,LD - South Locality - Cost of Care,LD - South Cambs - Care,Residential Care
Cambridgeshire County Council,08-Jul-22,51301816810,"-2,421.98",SENSE EAST,CARE ESTABLISHMENT,LD - South Locality - Cost of Care,LD - South Cambs - Care,Residential Care
Cambridgeshire County Council,08-Jul-22,51301816810,"-2,421.98",SENSE EAST,CARE ESTABLISHMENT,LD - South Locality - Cost of Care,LD - South Cambs - Care,Residential Care
Cambridgeshire County Council,08-Jul-22,51301816810,"-2,421.98",SENSE EAST,CARE ESTABLISHMENT,LD - South Locality - Cost of Care,LD - South Cambs - Care,Residential Care
Cambridgeshire County Council,08-Jul-22,51301816810,"-2,421.98",SENSE EAST,CARE ESTABLISHMENT,LD - South Locality - Cost of Care,LD - South Cambs - Care,Residential Care
Cambridgeshire County Council,08-Jul-22,51301816810,"-2,421.98",SENSE EAST,CARE ESTABLISHMENT,LD - South Locality - Cost of Care,LD - South Cambs - Care,Residential Care
Cambridgeshire County Council,08-Jul-22,51301816810,"-2,421.98",SENSE EAST,CARE ESTABLISHMENT,LD - South Locality - Cost of Care,LD - South Cambs - Care,Residential Care
Cambridgeshire County Council,20-Jul-22,51301822421,"-2,411.22",AFFINITY TRUST,CARE ESTABLISHMENT,LD - Fenland Locality - Cost of Care,LD - Fenland  - Care,Supported Living
Cambridgeshire County Council,20-Jul-22,51301822421,"-2,411.22",AFFINITY TRUST,CARE ESTABLISHMENT,LD - Fenland Locality - Cost of Care,LD - Fenland  - Care,Supported Living
Cambridgeshire County Council,20-Jul-22,51301822421,"-2,411.22",AFFINITY TRUST,CARE ESTABLISHMENT,LD - Fenland Locality - Cost of Care,LD - Fenland  - Care,Supported Living
Cambridgeshire County Council,20-Jul-22,51301822421,"-2,411.22",AFFINITY TRUST,CARE ESTABLISHMENT,LD - Fenland Locality - Cost of Care,LD - Fenland  - Care,Supported Living
Cambridgeshire County Council,20-Jul-22,51301822421,"-2,411.22",AFFINITY TRUST,CARE ESTABLISHMENT,LD - Fenland Locality - Cost of Care,LD - Fenland  - Care,Supported Living
Cambridgeshire County Council,20-Jul-22,51301822421,"-2,411.22",AFFINITY TRUST,CARE ESTABLISHMENT,LD - Fenland Locality - Cost of Care,LD - Fenland  - Care,Supported Living
Cambridgeshire County Council,20-Jul-22,51301822421,"-2,411.22",AFFINITY TRUST,CARE ESTABLISHMENT,LD - Fenland Locality - Cost of Care,LD - Fenland  - Care,Supported Living
Cambridgeshire County Council,20-Jul-22,51301822421,"-2,411.22",AFFINITY TRUST,CARE ESTABLISHMENT,LD - Fenland Locality - Cost of Care,LD - Fenland  - Care,Supported Living
Cambridgeshire County Council,20-Jul-22,51301822421,"-2,411.22",AFFINITY TRUST,CARE ESTABLISHMENT,LD - Fenland Locality - Cost of Care,LD - Fenland  - Care,Supported Living
Cambridgeshire County Council,20-Jul-22,51301822421,"-2,411.22",AFFINITY TRUST,CARE ESTABLISHMENT,LD - Fenland Locality - Cost of Care,LD - Fenland  - Care,Supported Living
Cambridgeshire County Council,20-Jul-22,51301822421,"-2,411.22",AFFINITY TRUST,CARE ESTABLISHMENT,LD - Fenland Locality - Cost of Care,LD - Fenland  - Care,Supported Living
Cambridgeshire County Council,20-Jul-22,51301822421,"-2,411.22",AFFINITY TRUST,CARE ESTABLISHMENT,LD - Fenland Locality - Cost of Care,LD - Fenland  - Care,Supported Living
Cambridgeshire County Council,20-Jul-22,51301822421,"-2,411.22",AFFINITY TRUST,CARE ESTABLISHMENT,LD - Fenland Locality - Cost of Care,LD - Fenland  - Care,Supported Living
Cambridgeshire County Council,20-Jul-22,51301822421,"-2,411.22",AFFINITY TRUST,CARE ESTABLISHMENT,LD - Fenland Locality - Cost of Care,LD - Fenland  - Care,Supported Living
Cambridgeshire County Council,20-Jul-22,51301822421,"-2,411.22",AFFINITY TRUST,CARE ESTABLISHMENT,LD - Fenland Locality - Cost of Care,LD - Fenland  - Care,Supported Living
Cambridgeshire County Council,06-Jul-22,51301808422,"-2,357.14",SUNBEAM FOSTERING AGENCY LTD,CARE ESTABLISHMENT,Unaccompanied Asylum Seeking Children,Unaccompanied Asylum Seeking Children <18,Agency Placements - Out of  County
Cambridgeshire County Council,20-Jul-22,51301821706,"-2,333.13",AURORA ORCHARD MANOR,CARE ESTABLISHMENT,LD - Young Adults Team,LD - Young Adults - Special Needs,Residential Care
Cambridgeshire County Council,20-Jul-22,51301821706,"-2,333.13",AURORA ORCHARD MANOR,CARE ESTABLISHMENT,LD - Young Adults Team,LD - Young Adults - Special Needs,Residential Care
Cambridgeshire County Council,20-Jul-22,51301821706,"-2,333.13",AURORA ORCHARD MANOR,CARE ESTABLISHMENT,LD - Young Adults Team,LD - Young Adults - Special Needs,Residential Care
Cambridgeshire County Council,20-Jul-22,51301821706,"-2,333.13",AURORA ORCHARD MANOR,CARE ESTABLISHMENT,LD - Young Adults Team,LD - Young Adults - Special Needs,Residential Care
Cambridgeshire County Council,20-Jul-22,51301821706,"-2,333.13",AURORA ORCHARD MANOR,CARE ESTABLISHMENT,LD - Young Adults Team,LD - Young Adults - Special Needs,Residential Care
Cambridgeshire County Council,20-Jul-22,51301821706,"-2,333.13",AURORA ORCHARD MANOR,CARE ESTABLISHMENT,LD - Young Adults Team,LD - Young Adults - Special Needs,Residential Care
Cambridgeshire County Council,20-Jul-22,51301821706,"-2,333.13",AURORA ORCHARD MANOR,CARE ESTABLISHMENT,LD - Young Adults Team,LD - Young Adults - Special Needs,Residential Care
Cambridgeshire County Council,20-Jul-22,51301821706,"-2,333.13",AURORA ORCHARD MANOR,CARE ESTABLISHMENT,LD - Young Adults Team,LD - Young Adults - Special Needs,Residential Care
Cambridgeshire County Council,20-Jul-22,51301821706,"-2,333.13",AURORA ORCHARD MANOR,CARE ESTABLISHMENT,LD - Young Adults Team,LD - Young Adults - Special Needs,Residential Care
Cambridgeshire County Council,20-Jul-22,51301821706,"-2,333.13",AURORA ORCHARD MANOR,CARE ESTABLISHMENT,LD - Young Adults Team,LD - Young Adults - Special Needs,Residential Care
Cambridgeshire County Council,20-Jul-22,51301821706,"-2,333.13",AURORA ORCHARD MANOR,CARE ESTABLISHMENT,LD - Young Adults Team,LD - Young Adults - Special Needs,Residential Care
Cambridgeshire County Council,20-Jul-22,51301821706,"-2,333.13",AURORA ORCHARD MANOR,CARE ESTABLISHMENT,LD - Young Adults Team,LD - Young Adults - Special Needs,Residential Care
Cambridgeshire County Council,20-Jul-22,51301821706,"-2,333.13",AURORA ORCHARD MANOR,CARE ESTABLISHMENT,LD - Young Adults Team,LD - Young Adults - Special Needs,Residential Care
Cambridgeshire County Council,20-Jul-22,51301821706,"-2,333.13",AURORA ORCHARD MANOR,CARE ESTABLISHMENT,LD - Young Adults Team,LD - Young Adults - Special Needs,Residential Care
Cambridgeshire County Council,20-Jul-22,51301821706,"-2,333.13",AURORA ORCHARD MANOR,CARE ESTABLISHMENT,LD - Young Adults Team,LD - Young Adults - Special Needs,Residential Care
Cambridgeshire County Council,20-Jul-22,51301821599,"-2,333.13",AURORA ORCHARD MANOR,CARE ESTABLISHMENT,LD - Young Adults Team,LD - Young Adults - Special Needs,Residential Care
Cambridgeshire County Council,20-Jul-22,51301821599,"-2,333.13",AURORA ORCHARD MANOR,CARE ESTABLISHMENT,LD - Young Adults Team,LD - Young Adults - Special Needs,Residential Care
Cambridgeshire County Council,20-Jul-22,51301821599,"-2,333.13",AURORA ORCHARD MANOR,CARE ESTABLISHMENT,LD - Young Adults Team,LD - Young Adults - Special Needs,Residential Care
Cambridgeshire County Council,20-Jul-22,51301821599,"-2,333.13",AURORA ORCHARD MANOR,CARE ESTABLISHMENT,LD - Young Adults Team,LD - Young Adults - Special Needs,Residential Care
Cambridgeshire County Council,08-Jul-22,51301816484,"-2,311.50",THE EDMUND TRUST,CARE ESTABLISHMENT,LD - South Locality - Cost of Care,LD - South Cambs - Care,Supported Living
Cambridgeshire County Council,08-Jul-22,51301816484,"-2,311.50",THE EDMUND TRUST,CARE ESTABLISHMENT,LD - South Locality - Cost of Care,LD - South Cambs - Care,Supported Living
Cambridgeshire County Council,08-Jul-22,51301816484,"-2,311.50",THE EDMUND TRUST,CARE ESTABLISHMENT,LD - South Locality - Cost of Care,LD - South Cambs - Care,Supported Living
Cambridgeshire County Council,08-Jul-22,51301816484,"-2,311.50",THE EDMUND TRUST,CARE ESTABLISHMENT,LD - South Locality - Cost of Care,LD - South Cambs - Care,Supported Living
Cambridgeshire County Council,08-Jul-22,51301816484,"-2,311.50",THE EDMUND TRUST,CARE ESTABLISHMENT,LD - South Locality - Cost of Care,LD - South Cambs - Care,Supported Living
Cambridgeshire County Council,08-Jul-22,51301816484,"-2,311.50",THE EDMUND TRUST,CARE ESTABLISHMENT,LD - South Locality - Cost of Care,LD - South Cambs - Care,Supported Living
Cambridgeshire County Council,08-Jul-22,51301816484,"-2,311.50",THE EDMUND TRUST,CARE ESTABLISHMENT,LD - South Locality - Cost of Care,LD - South Cambs - Care,Supported Living
Cambridgeshire County Council,08-Jul-22,51301816484,"-2,311.50",THE EDMUND TRUST,CARE ESTABLISHMENT,LD - South Locality - Cost of Care,LD - South Cambs - Care,Supported Living
Cambridgeshire County Council,08-Jul-22,51301816484,"-2,311.50",THE EDMUND TRUST,CARE ESTABLISHMENT,LD - South Locality - Cost of Care,LD - South Cambs - Care,Supported Living
Cambridgeshire County Council,08-Jul-22,51301816484,"-2,311.50",THE EDMUND TRUST,CARE ESTABLISHMENT,LD - South Locality - Cost of Care,LD - South Cambs - Care,Supported Living
Cambridgeshire County Council,08-Jul-22,51301816484,"-2,311.50",THE EDMUND TRUST,CARE ESTABLISHMENT,LD - South Locality - Cost of Care,LD - South Cambs - Care,Supported Living
Cambridgeshire County Council,08-Jul-22,51301815001,"-2,307.66",26A LEROWE ROAD (REGARD),CARE ESTABLISHMENT,LD - Hunts Locality - Cost of Care,LD - Huntingdonshire - Care,Supported Living
Cambridgeshire County Council,08-Jul-22,51301815001,"-2,307.66",26A LEROWE ROAD (REGARD),CARE ESTABLISHMENT,LD - Hunts Locality - Cost of Care,LD - Huntingdonshire - Care,Supported Living
Cambridgeshire County Council,08-Jul-22,51301815001,"-2,307.66",26A LEROWE ROAD (REGARD),CARE ESTABLISHMENT,LD - Hunts Locality - Cost of Care,LD - Huntingdonshire - Care,Supported Living
Cambridgeshire County Council,08-Jul-22,51301815001,"-2,307.66",26A LEROWE ROAD (REGARD),CARE ESTABLISHMENT,LD - Hunts Locality - Cost of Care,LD - Huntingdonshire - Care,Supported Living
Cambridgeshire County Council,08-Jul-22,51301815001,"-2,307.66",26A LEROWE ROAD (REGARD),CARE ESTABLISHMENT,LD - Hunts Locality - Cost of Care,LD - Huntingdonshire - Care,Supported Living
Cambridgeshire County Council,08-Jul-22,51301815001,"-2,307.66",26A LEROWE ROAD (REGARD),CARE ESTABLISHMENT,LD - Hunts Locality - Cost of Care,LD - Huntingdonshire - Care,Supported Living
Cambridgeshire County Council,08-Jul-22,51301815001,"-2,307.66",26A LEROWE ROAD (REGARD),CARE ESTABLISHMENT,LD - Hunts Locality - Cost of Care,LD - Huntingdonshire - Care,Supported Living
Cambridgeshire County Council,08-Jul-22,51301815001,"-2,307.66",26A LEROWE ROAD (REGARD),CARE ESTABLISHMENT,LD - Hunts Locality - Cost of Care,LD - Huntingdonshire - Care,Supported Living
Cambridgeshire County Council,08-Jul-22,51301815001,"-2,307.66",26A LEROWE ROAD (REGARD),CARE ESTABLISHMENT,LD - Hunts Locality - Cost of Care,LD - Huntingdonshire - Care,Supported Living
Cambridgeshire County Council,08-Jul-22,51301815001,"-2,307.66",26A LEROWE ROAD (REGARD),CARE ESTABLISHMENT,LD - Hunts Locality - Cost of Care,LD - Huntingdonshire - Care,Supported Living
Cambridgeshire County Council,08-Jul-22,51301815001,"-2,307.66",26A LEROWE ROAD (REGARD),CARE ESTABLISHMENT,LD - Hunts Locality - Cost of Care,LD - Huntingdonshire - Care,Supported Living
Cambridgeshire County Council,15-Jul-22,51301819226,"-2,271.43",FEVACA,CARE ESTABLISHMENT,LAC Placements,Placements - supported accommodation,Agency Placements - In County
Cambridgeshire County Council,08-Jul-22,51301815633,"-2,265.82",CONSENSUS (CROMER HOUSE),CARE ESTABLISHMENT,LD - South Locality - Cost of Care,LD - South Cambs - Care,Supported Living
Cambridgeshire County Council,08-Jul-22,51301815633,"-2,265.82",CONSENSUS (CROMER HOUSE),CARE ESTABLISHMENT,LD - South Locality - Cost of Care,LD - South Cambs - Care,Supported Living
Cambridgeshire County Council,08-Jul-22,51301815633,"-2,265.82",CONSENSUS (CROMER HOUSE),CARE ESTABLISHMENT,LD - South Locality - Cost of Care,LD - South Cambs - Care,Supported Living
Cambridgeshire County Council,08-Jul-22,51301815633,"-2,265.82",CONSENSUS (CROMER HOUSE),CARE ESTABLISHMENT,LD - South Locality - Cost of Care,LD - South Cambs - Care,Supported Living
Cambridgeshire County Council,08-Jul-22,51301815633,"-2,265.82",CONSENSUS (CROMER HOUSE),CARE ESTABLISHMENT,LD - South Locality - Cost of Care,LD - South Cambs - Care,Supported Living
Cambridgeshire County Council,08-Jul-22,51301815633,"-2,265.82",CONSENSUS (CROMER HOUSE),CARE ESTABLISHMENT,LD - South Locality - Cost of Care,LD - South Cambs - Care,Supported Living
Cambridgeshire County Council,08-Jul-22,51301815633,"-2,265.82",CONSENSUS (CROMER HOUSE),CARE ESTABLISHMENT,LD - South Locality - Cost of Care,LD - South Cambs - Care,Supported Living
Cambridgeshire County Council,08-Jul-22,51301815633,"-2,265.82",CONSENSUS (CROMER HOUSE),CARE ESTABLISHMENT,LD - South Locality - Cost of Care,LD - South Cambs - Care,Supported Living
Cambridgeshire County Council,08-Jul-22,51301815633,"-2,265.82",CONSENSUS (CROMER HOUSE),CARE ESTABLISHMENT,LD - South Locality - Cost of Care,LD - South Cambs - Care,Supported Living
Cambridgeshire County Council,08-Jul-22,51301815633,"-2,265.82",CONSENSUS (CROMER HOUSE),CARE ESTABLISHMENT,LD - South Locality - Cost of Care,LD - South Cambs - Care,Supported Living
Cambridgeshire County Council,08-Jul-22,51301815633,"-2,265.82",CONSENSUS (CROMER HOUSE),CARE ESTABLISHMENT,LD - South Locality - Cost of Care,LD - South Cambs - Care,Supported Living
Cambridgeshire County Council,08-Jul-22,51301816311,"-2,248.02",THE RED HOUSE RESIDENTIAL & NURSING HOME,CARE ESTABLISHMENT,OPPD - Cost of Care - Huntingdon - Over 65,Hunts OP Team - Care,Nursing Care
Cambridgeshire County Council,06-Jul-22,51301813805,"-2,209.88",TURNING POINT SERVICES LTD,CARE ESTABLISHMENT,LD - Fenland Locality - Cost of Care,LD - Fenland  - Care,Homecare
Cambridgeshire County Council,06-Jul-22,51301813805,"-2,209.88",TURNING POINT SERVICES LTD,CARE ESTABLISHMENT,LD - Fenland Locality - Cost of Care,LD - Fenland  - Care,Homecare
Cambridgeshire County Council,06-Jul-22,51301813805,"-2,209.88",TURNING POINT SERVICES LTD,CARE ESTABLISHMENT,LD - Fenland Locality - Cost of Care,LD - Fenland  - Care,Homecare
Cambridgeshire County Council,06-Jul-22,51301813805,"-2,209.88",TURNING POINT SERVICES LTD,CARE ESTABLISHMENT,LD - Fenland Locality - Cost of Care,LD - Fenland  - Care,Homecare
Cambridgeshire County Council,06-Jul-22,51301813805,"-2,209.88",TURNING POINT SERVICES LTD,CARE ESTABLISHMENT,LD - Fenland Locality - Cost of Care,LD - Fenland  - Care,Homecare
Cambridgeshire County Council,06-Jul-22,51301813805,"-2,209.88",TURNING POINT SERVICES LTD,CARE ESTABLISHMENT,LD - Fenland Locality - Cost of Care,LD - Fenland  - Care,Homecare
Cambridgeshire County Council,06-Jul-22,51301813805,"-2,209.88",TURNING POINT SERVICES LTD,CARE ESTABLISHMENT,LD - Fenland Locality - Cost of Care,LD - Fenland  - Care,Homecare
Cambridgeshire County Council,06-Jul-22,51301813805,"-2,209.88",TURNING POINT SERVICES LTD,CARE ESTABLISHMENT,LD - Fenland Locality - Cost of Care,LD - Fenland  - Care,Homecare
Cambridgeshire County Council,06-Jul-22,51301813805,"-2,209.88",TURNING POINT SERVICES LTD,CARE ESTABLISHMENT,LD - Fenland Locality - Cost of Care,LD - Fenland  - Care,Homecare
Cambridgeshire County Council,06-Jul-22,51301813805,"-2,209.88",TURNING POINT SERVICES LTD,CARE ESTABLISHMENT,LD - Fenland Locality - Cost of Care,LD - Fenland  - Care,Homecare
Cambridgeshire County Council,06-Jul-22,51301813805,"-2,209.88",TURNING POINT SERVICES LTD,CARE ESTABLISHMENT,LD - Fenland Locality - Cost of Care,LD - Fenland  - Care,Homecare
Cambridgeshire County Council,08-Jul-22,51301796646,"-2,198.21",HFT TRUST LTD,TRUST (OTHER),LD - Hunts Locality - Cost of Care,LD - Huntingdonshire - Care,Residential Care
Cambridgeshire County Council,08-Jul-22,51301796646,"-2,198.21",HFT TRUST LTD,TRUST (OTHER),LD - Hunts Locality - Cost of Care,LD - Huntingdonshire - Care,Residential Care
Cambridgeshire County Council,08-Jul-22,51301796646,"-2,198.21",HFT TRUST LTD,TRUST (OTHER),LD - Hunts Locality - Cost of Care,LD - Huntingdonshire - Care,Residential Care
Cambridgeshire County Council,08-Jul-22,51301796646,"-2,198.21",HFT TRUST LTD,TRUST (OTHER),LD - Hunts Locality - Cost of Care,LD - Huntingdonshire - Care,Residential Care
Cambridgeshire County Council,08-Jul-22,51301796646,"-2,198.21",HFT TRUST LTD,TRUST (OTHER),LD - Hunts Locality - Cost of Care,LD - Huntingdonshire - Care,Residential Care
Cambridgeshire County Council,08-Jul-22,51301796646,"-2,198.21",HFT TRUST LTD,TRUST (OTHER),LD - Hunts Locality - Cost of Care,LD - Huntingdonshire - Care,Residential Care
Cambridgeshire County Council,08-Jul-22,51301796646,"-2,198.21",HFT TRUST LTD,TRUST (OTHER),LD - Hunts Locality - Cost of Care,LD - Huntingdonshire - Care,Residential Care
Cambridgeshire County Council,08-Jul-22,51301796646,"-2,198.21",HFT TRUST LTD,TRUST (OTHER),LD - Hunts Locality - Cost of Care,LD - Huntingdonshire - Care,Residential Care
Cambridgeshire County Council,08-Jul-22,51301796646,"-2,198.21",HFT TRUST LTD,TRUST (OTHER),LD - Hunts Locality - Cost of Care,LD - Huntingdonshire - Care,Residential Care
Cambridgeshire County Council,08-Jul-22,51301796646,"-2,198.21",HFT TRUST LTD,TRUST (OTHER),LD - Hunts Locality - Cost of Care,LD - Huntingdonshire - Care,Residential Care
Cambridgeshire County Council,08-Jul-22,51301796646,"-2,198.21",HFT TRUST LTD,TRUST (OTHER),LD - Hunts Locality - Cost of Care,LD - Huntingdonshire - Care,Residential Care
Cambridgeshire County Council,08-Jul-22,51301796646,"-2,198.21",HFT TRUST LTD,TRUST (OTHER),LD - Hunts Locality - Cost of Care,LD - Huntingdonshire - Care,Residential Care
Cambridgeshire County Council,08-Jul-22,51301796646,"-2,198.21",HFT TRUST LTD,TRUST (OTHER),LD - Hunts Locality - Cost of Care,LD - Huntingdonshire - Care,Residential Care
Cambridgeshire County Council,08-Jul-22,51301796646,"-2,198.21",HFT TRUST LTD,TRUST (OTHER),LD - Hunts Locality - Cost of Care,LD - Huntingdonshire - Care,Residential Care
Cambridgeshire County Council,08-Jul-22,51301796646,"-2,198.21",HFT TRUST LTD,TRUST (OTHER),LD - Hunts Locality - Cost of Care,LD - Huntingdonshire - Care,Residential Care
Cambridgeshire County Council,08-Jul-22,51301796646,"-2,198.21",HFT TRUST LTD,TRUST (OTHER),LD - Hunts Locality - Cost of Care,LD - Huntingdonshire - Care,Residential Care
Cambridgeshire County Council,08-Jul-22,51301796646,"-2,198.21",HFT TRUST LTD,TRUST (OTHER),LD - Hunts Locality - Cost of Care,LD - Huntingdonshire - Care,Residential Care
Cambridgeshire County Council,08-Jul-22,51301796646,"-2,198.21",HFT TRUST LTD,TRUST (OTHER),LD - Hunts Locality - Cost of Care,LD - Huntingdonshire - Care,Residential Care
Cambridgeshire County Council,08-Jul-22,51301796646,"-2,198.21",HFT TRUST LTD,TRUST (OTHER),LD - Hunts Locality - Cost of Care,LD - Huntingdonshire - Care,Residential Care
Cambridgeshire County Council,08-Jul-22,51301796646,"-2,198.21",HFT TRUST LTD,TRUST (OTHER),LD - Hunts Locality - Cost of Care,LD - Huntingdonshire - Care,Residential Care
Cambridgeshire County Council,08-Jul-22,51301796646,"-2,198.21",HFT TRUST LTD,TRUST (OTHER),LD - Hunts Locality - Cost of Care,LD - Huntingdonshire - Care,Residential Care
Cambridgeshire County Council,08-Jul-22,51301796646,"-2,198.21",HFT TRUST LTD,TRUST (OTHER),LD - Hunts Locality - Cost of Care,LD - Huntingdonshire - Care,Residential Care
Cambridgeshire County Council,08-Jul-22,51301796646,"-2,198.21",HFT TRUST LTD,TRUST (OTHER),LD - Hunts Locality - Cost of Care,LD - Huntingdonshire - Care,Residential Care
Cambridgeshire County Council,20-Jul-22,51301821671,"-2,180.38",AURORA ORCHARD MANOR,CARE ESTABLISHMENT,LD - South Locality - Cost of Care,LD - South Cambs - Special Needs,Day Care
Cambridgeshire County Council,20-Jul-22,51301821671,"-2,180.38",AURORA ORCHARD MANOR,CARE ESTABLISHMENT,LD - South Locality - Cost of Care,LD - South Cambs - Special Needs,Day Care
Cambridgeshire County Council,20-Jul-22,51301821671,"-2,180.38",AURORA ORCHARD MANOR,CARE ESTABLISHMENT,LD - South Locality - Cost of Care,LD - South Cambs - Special Needs,Day Care
Cambridgeshire County Council,20-Jul-22,51301821671,"-2,180.38",AURORA ORCHARD MANOR,CARE ESTABLISHMENT,LD - South Locality - Cost of Care,LD - South Cambs - Special Needs,Day Care
Cambridgeshire County Council,20-Jul-22,51301821671,"-2,180.38",AURORA ORCHARD MANOR,CARE ESTABLISHMENT,LD - South Locality - Cost of Care,LD - South Cambs - Special Needs,Day Care
Cambridgeshire County Council,20-Jul-22,51301821671,"-2,180.38",AURORA ORCHARD MANOR,CARE ESTABLISHMENT,LD - South Locality - Cost of Care,LD - South Cambs - Special Needs,Day Care
Cambridgeshire County Council,20-Jul-22,51301821671,"-2,180.38",AURORA ORCHARD MANOR,CARE ESTABLISHMENT,LD - South Locality - Cost of Care,LD - South Cambs - Special Needs,Day Care
Cambridgeshire County Council,20-Jul-22,51301821671,"-2,180.38",AURORA ORCHARD MANOR,CARE ESTABLISHMENT,LD - South Locality - Cost of Care,LD - South Cambs - Special Needs,Day Care
Cambridgeshire County Council,20-Jul-22,51301821671,"-2,180.38",AURORA ORCHARD MANOR,CARE ESTABLISHMENT,LD - South Locality - Cost of Care,LD - South Cambs - Special Needs,Day Care
Cambridgeshire County Council,20-Jul-22,51301821671,"-2,180.38",AURORA ORCHARD MANOR,CARE ESTABLISHMENT,LD - South Locality - Cost of Care,LD - South Cambs - Special Needs,Day Care
Cambridgeshire County Council,20-Jul-22,51301821671,"-2,180.38",AURORA ORCHARD MANOR,CARE ESTABLISHMENT,LD - South Locality - Cost of Care,LD - South Cambs - Special Needs,Day Care
Cambridgeshire County Council,20-Jul-22,51301821671,"-2,180.38",AURORA ORCHARD MANOR,CARE ESTABLISHMENT,LD - South Locality - Cost of Care,LD - South Cambs - Special Needs,Day Care
Cambridgeshire County Council,20-Jul-22,51301821671,"-2,180.38",AURORA ORCHARD MANOR,CARE ESTABLISHMENT,LD - South Locality - Cost of Care,LD - South Cambs - Special Needs,Day Care
Cambridgeshire County Council,20-Jul-22,51301821671,"-2,180.38",AURORA ORCHARD MANOR,CARE ESTABLISHMENT,LD - South Locality - Cost of Care,LD - South Cambs - Special Needs,Day Care
Cambridgeshire County Council,20-Jul-22,51301821671,"-2,180.38",AURORA ORCHARD MANOR,CARE ESTABLISHMENT,LD - South Locality - Cost of Care,LD - South Cambs - Special Needs,Day Care
Cambridgeshire County Council,20-Jul-22,51301821689,"-2,166.87",Redacted Personal Data,SERVICE USER,OPPD - Cost of Care - East Cambs - Under 65,OPPD - Under 65 - East Cambs,Direct Payments
Cambridgeshire County Council,20-Jul-22,51301821689,"-2,166.87",Redacted Personal Data,SERVICE USER,OPPD - Cost of Care - East Cambs - Under 65,OPPD - Under 65 - East Cambs,Direct Payments
Cambridgeshire County Council,20-Jul-22,51301821689,"-2,166.87",Redacted Personal Data,SERVICE USER,OPPD - Cost of Care - East Cambs - Under 65,OPPD - Under 65 - East Cambs,Direct Payments
Cambridgeshire County Council,20-Jul-22,51301821689,"-2,166.87",Redacted Personal Data,SERVICE USER,OPPD - Cost of Care - East Cambs - Under 65,OPPD - Under 65 - East Cambs,Direct Payments
Cambridgeshire County Council,20-Jul-22,51301821689,"-2,166.87",Redacted Personal Data,SERVICE USER,OPPD - Cost of Care - East Cambs - Under 65,OPPD - Under 65 - East Cambs,Direct Payments
